SERVICE_CODE,ORGANISATION_UNIT,EXPENDITURE_CATEGORY,EXPENDITURE_DESCRIPTION,EXPENDITURE_CODE,NARRATIVE,DATE,TRANSATION_CODE,NET_AMOUNT,SUPPLIER_CODE,SUPPLIER_NAME,FROM_DATE,TO_DATE,FINANCIAL_PERIOD_YEAR
,LEE VALLEY CARAVAN PARK,PREMISES RELATED EXPENDITURE,CONTRACT CLEANING,2120,P120871-SERVICE-Laundry Cleaning,14/02/2023 00:00,270734,793.39,JO0168,JOHNSONS STALBRIDGE LINEN SERVICES,30/01/2023 00:00,26/02/2023 00:00,P11-2023
,LEE VALLEY CARAVAN PARK,PREMISES RELATED EXPENDITURE,CONTRACT CLEANING,2120,P120881-SERVICE-Contract Cleaning,14/02/2023 00:00,270965,2802,LI0305,LIMPIAR CLEANING,30/01/2023 00:00,26/02/2023 00:00,P11-2023
,LEE VALLEY CARAVAN PARK,PREMISES RELATED EXPENDITURE,CONTRACT CLEANING,2120,P121041-SERVICE-Washroom hygiene service,26/02/2023 00:00,271326,93.28,IN0012,INITIAL WASHROOM HYGIENE,30/01/2023 00:00,26/02/2023 00:00,P11-2023
P&V,NORTH AREA RANGERS,PREMISES RELATED EXPENDITURE,CONTRACT CLEANING,2120,Jan-23,20/02/2023 00:00,271329,201.67,GL0214,GLENDALE GROUNDS MANAGEMENT LIMITED,30/01/2023 00:00,26/02/2023 00:00,P11-2023
P&V,GUNPOWDER PARK,PREMISES RELATED EXPENDITURE,CONTRACT CLEANING,2120,Jan-23,20/02/2023 00:00,271329,276.13,GL0214,GLENDALE GROUNDS MANAGEMENT LIMITED,30/01/2023 00:00,26/02/2023 00:00,P11-2023
P&V,RIVER LEE COUNTRY PARK,PREMISES RELATED EXPENDITURE,CONTRACT CLEANING,2120,Jan-23,20/02/2023 00:00,271329,552.26,GL0214,GLENDALE GROUNDS MANAGEMENT LIMITED,30/01/2023 00:00,26/02/2023 00:00,P11-2023
,LV LEISURE CENTRE CAMPSITE,PREMISES RELATED EXPENDITURE,CONTRACT CLEANING,2120,P120833-SERVICE-Site cleaning,14/02/2023 00:00,270966,1828,LI0305,LIMPIAR CLEANING,30/01/2023 00:00,26/02/2023 00:00,P11-2023
,LV LEISURE CENTRE CAMPSITE,PREMISES RELATED EXPENDITURE,CONTRACT CLEANING,2120,P120911-SERVICE-Refuse sacks,26/02/2023 00:00,271337,124.55,HY0043,HYGIENE SYSTEMS LTD,30/01/2023 00:00,26/02/2023 00:00,P11-2023
,LEE VALLEY CAMPSITE,PREMISES RELATED EXPENDITURE,LINEN SERVICE,2122,P120235-SERVICE-FEB 23,26/02/2023 00:00,271480,22.25,JO0168,JOHNSONS STALBRIDGE LINEN SERVICES,30/01/2023 00:00,26/02/2023 00:00,P11-2023
,LEE VALLEY CAMPSITE,PREMISES RELATED EXPENDITURE,LINEN SERVICE,2122,P120235-SERVICE-JAN 23,26/02/2023 00:00,271480,50.5,JO0168,JOHNSONS STALBRIDGE LINEN SERVICES,30/01/2023 00:00,26/02/2023 00:00,P11-2023
,LEE VALLEY CARAVAN PARK,PREMISES RELATED EXPENDITURE,LINEN SERVICE,2122,P121045-SERVICE-Laundry service,26/02/2023 00:00,271481,199.51,JO0168,JOHNSONS STALBRIDGE LINEN SERVICES,30/01/2023 00:00,26/02/2023 00:00,P11-2023
,LEE VALLEY MARINA STANSTEAD,PREMISES RELATED EXPENDITURE,GM MAIN CONTRACT SCHEDULED,2141,Jan-23,20/02/2023 00:00,271329,322.59,GL0214,GLENDALE GROUNDS MANAGEMENT LIMITED,30/01/2023 00:00,26/02/2023 00:00,P11-2023
,LEE VALLEY WATERWORKS CENTRE,PREMISES RELATED EXPENDITURE,GM MAIN CONTRACT SCHEDULED,2141,Jan-23,20/02/2023 00:00,271329,132.87,GL0214,GLENDALE GROUNDS MANAGEMENT LIMITED,30/01/2023 00:00,26/02/2023 00:00,P11-2023
,LEE VALLEY WATERWORKS CENTRE,PREMISES RELATED EXPENDITURE,GM MAIN CONTRACT SCHEDULED,2141,Jan-23,20/02/2023 00:00,271329,303.06,GL0214,GLENDALE GROUNDS MANAGEMENT LIMITED,30/01/2023 00:00,26/02/2023 00:00,P11-2023
,LEE VALLEY FARM HAYES HILL,PREMISES RELATED EXPENDITURE,GM MAIN CONTRACT SCHEDULED,2141,Jan-23,20/02/2023 00:00,271329,74.84,GL0214,GLENDALE GROUNDS MANAGEMENT LIMITED,30/01/2023 00:00,26/02/2023 00:00,P11-2023
P&V,EAST INDIA DOCK AND BOW CREEK,PREMISES RELATED EXPENDITURE,GM MAIN CONTRACT SCHEDULED,2141,Jan-23,20/02/2023 00:00,271329,424.94,GL0214,GLENDALE GROUNDS MANAGEMENT LIMITED,30/01/2023 00:00,26/02/2023 00:00,P11-2023
P&V,EAST INDIA DOCK AND BOW CREEK,PREMISES RELATED EXPENDITURE,GM MAIN CONTRACT SCHEDULED,2141,Jan-23,20/02/2023 00:00,271329,474.54,GL0214,GLENDALE GROUNDS MANAGEMENT LIMITED,30/01/2023 00:00,26/02/2023 00:00,P11-2023
P&V,NORTH AREA RANGERS,PREMISES RELATED EXPENDITURE,GM MAIN CONTRACT SCHEDULED,2141,Jan-23,20/02/2023 00:00,271329,2857.67,GL0214,GLENDALE GROUNDS MANAGEMENT LIMITED,30/01/2023 00:00,26/02/2023 00:00,P11-2023
P&V,SOUTH AREA RANGERS,PREMISES RELATED EXPENDITURE,GM MAIN CONTRACT SCHEDULED,2141,Jan-23,20/02/2023 00:00,271329,3264.04,GL0214,GLENDALE GROUNDS MANAGEMENT LIMITED,30/01/2023 00:00,26/02/2023 00:00,P11-2023
P&V,SOUTH AREA RANGERS,PREMISES RELATED EXPENDITURE,GM MAIN CONTRACT SCHEDULED,2141,Jan-23,20/02/2023 00:00,271329,379.64,GL0214,GLENDALE GROUNDS MANAGEMENT LIMITED,30/01/2023 00:00,26/02/2023 00:00,P11-2023
P&V,ABBEY GARDENS,PREMISES RELATED EXPENDITURE,GM MAIN CONTRACT SCHEDULED,2141,Jan-23,20/02/2023 00:00,271329,1447.59,GL0214,GLENDALE GROUNDS MANAGEMENT LIMITED,30/01/2023 00:00,26/02/2023 00:00,P11-2023
P&V,GUNPOWDER PARK,PREMISES RELATED EXPENDITURE,GM MAIN CONTRACT SCHEDULED,2141,Jan-23,20/02/2023 00:00,271329,1425.25,GL0214,GLENDALE GROUNDS MANAGEMENT LIMITED,30/01/2023 00:00,26/02/2023 00:00,P11-2023
P&V,RIVER LEE COUNTRY PARK,PREMISES RELATED EXPENDITURE,GM MAIN CONTRACT SCHEDULED,2141,Jan-23,20/02/2023 00:00,271329,8331.92,GL0214,GLENDALE GROUNDS MANAGEMENT LIMITED,30/01/2023 00:00,26/02/2023 00:00,P11-2023
P&V,RIVER LEE COUNTRY PARK,PREMISES RELATED EXPENDITURE,GM MAIN CONTRACT SCHEDULED,2141,Jan-23,20/02/2023 00:00,271329,1328.73,GL0214,GLENDALE GROUNDS MANAGEMENT LIMITED,30/01/2023 00:00,26/02/2023 00:00,P11-2023
,LEE VALLEY VELOPARK,PREMISES RELATED EXPENDITURE,GM MAIN CONTRACT SCHEDULED,2141,Jan-23,20/02/2023 00:00,271329,3609.52,GL0214,GLENDALE GROUNDS MANAGEMENT LIMITED,30/01/2023 00:00,26/02/2023 00:00,P11-2023
,LV HOCKEY AND TENNIS CENTRE,PREMISES RELATED EXPENDITURE,GM MAIN CONTRACT SCHEDULED,2141,Jan-23,20/02/2023 00:00,271329,2219.56,GL0214,GLENDALE GROUNDS MANAGEMENT LIMITED,30/01/2023 00:00,26/02/2023 00:00,P11-2023
P&V,THREE MILLS,PREMISES RELATED EXPENDITURE,GM MAIN CONTRACT SCHEDULED,2141,Jan-23,20/02/2023 00:00,271329,811.82,GL0214,GLENDALE GROUNDS MANAGEMENT LIMITED,30/01/2023 00:00,26/02/2023 00:00,P11-2023
,LEE VALLEY RIDING CENTRE,PREMISES RELATED EXPENDITURE,GM MAIN CONTRACT SCHEDULED,2141,Jan-23,20/02/2023 00:00,271329,247.99,GL0214,GLENDALE GROUNDS MANAGEMENT LIMITED,30/01/2023 00:00,26/02/2023 00:00,P11-2023
,LEE VALLEY ICE CENTRE,PREMISES RELATED EXPENDITURE,GM MAIN CONTRACT SCHEDULED,2141,Jan-23,20/02/2023 00:00,271329,167.98,GL0214,GLENDALE GROUNDS MANAGEMENT LIMITED,30/01/2023 00:00,26/02/2023 00:00,P11-2023
P&V,FORMER LV LIDO SITE,PREMISES RELATED EXPENDITURE,GM MAIN CONTRACT SCHEDULED,2141,Jan-23,20/02/2023 00:00,271329,556.1,GL0214,GLENDALE GROUNDS MANAGEMENT LIMITED,30/01/2023 00:00,26/02/2023 00:00,P11-2023
,LEE VALLEY ATHLETICS CENTRE,PREMISES RELATED EXPENDITURE,GM MAIN CONTRACT SCHEDULED,2141,Jan-23,20/02/2023 00:00,271329,333.7,GL0214,GLENDALE GROUNDS MANAGEMENT LIMITED,30/01/2023 00:00,26/02/2023 00:00,P11-2023
,LEE VALLEY WHITE WATER CENTRE,PREMISES RELATED EXPENDITURE,GM MAIN CONTRACT SCHEDULED,2141,Jan-23,20/02/2023 00:00,271329,1325.68,GL0214,GLENDALE GROUNDS MANAGEMENT LIMITED,30/01/2023 00:00,26/02/2023 00:00,P11-2023
P&V,SOUTH AREA RANGERS,PREMISES RELATED EXPENDITURE,GM MAIN CONTRACT UNSCHEDULED,2142,Jan-23,20/02/2023 00:00,271329,121.7,GL0214,GLENDALE GROUNDS MANAGEMENT LIMITED,30/01/2023 00:00,26/02/2023 00:00,P11-2023
,LEE VALLEY WATERWORKS CENTRE,PREMISES RELATED EXPENDITURE,GM HORTICULTURE SCHEDULED,2143,Jan-23,20/02/2023 00:00,271329,84.97,GL0214,GLENDALE GROUNDS MANAGEMENT LIMITED,30/01/2023 00:00,26/02/2023 00:00,P11-2023
P&V,NORTH AREA RANGERS,PREMISES RELATED EXPENDITURE,GM HORTICULTURE SCHEDULED,2143,Jan-23,20/02/2023 00:00,271329,126.34,GL0214,GLENDALE GROUNDS MANAGEMENT LIMITED,30/01/2023 00:00,26/02/2023 00:00,P11-2023
P&V,SOUTH AREA RANGERS,PREMISES RELATED EXPENDITURE,GM HORTICULTURE SCHEDULED,2143,Jan-23,20/02/2023 00:00,271329,72.43,GL0214,GLENDALE GROUNDS MANAGEMENT LIMITED,30/01/2023 00:00,26/02/2023 00:00,P11-2023
P&V,ABBEY GARDENS,PREMISES RELATED EXPENDITURE,GM HORTICULTURE SCHEDULED,2143,Jan-23,20/02/2023 00:00,271329,987.1,GL0214,GLENDALE GROUNDS MANAGEMENT LIMITED,30/01/2023 00:00,26/02/2023 00:00,P11-2023
P&V,GUNPOWDER PARK,PREMISES RELATED EXPENDITURE,GM HORTICULTURE SCHEDULED,2143,Jan-23,20/02/2023 00:00,271329,129.58,GL0214,GLENDALE GROUNDS MANAGEMENT LIMITED,30/01/2023 00:00,26/02/2023 00:00,P11-2023
P&V,RIVER LEE COUNTRY PARK,PREMISES RELATED EXPENDITURE,GM HORTICULTURE SCHEDULED,2143,Jan-23,20/02/2023 00:00,271329,67.24,GL0214,GLENDALE GROUNDS MANAGEMENT LIMITED,30/01/2023 00:00,26/02/2023 00:00,P11-2023
,LEE VALLEY VELOPARK,PREMISES RELATED EXPENDITURE,GM HORTICULTURE SCHEDULED,2143,Jan-23,20/02/2023 00:00,271329,576.37,GL0214,GLENDALE GROUNDS MANAGEMENT LIMITED,30/01/2023 00:00,26/02/2023 00:00,P11-2023
,LV HOCKEY AND TENNIS CENTRE,PREMISES RELATED EXPENDITURE,GM HORTICULTURE SCHEDULED,2143,Jan-23,20/02/2023 00:00,271329,830.01,GL0214,GLENDALE GROUNDS MANAGEMENT LIMITED,30/01/2023 00:00,26/02/2023 00:00,P11-2023
P&V,THREE MILLS,PREMISES RELATED EXPENDITURE,GM HORTICULTURE SCHEDULED,2143,Jan-23,20/02/2023 00:00,271329,26.94,GL0214,GLENDALE GROUNDS MANAGEMENT LIMITED,30/01/2023 00:00,26/02/2023 00:00,P11-2023
,LEE VALLEY RIDING CENTRE,PREMISES RELATED EXPENDITURE,GM HORTICULTURE SCHEDULED,2143,Jan-23,20/02/2023 00:00,271329,6.74,GL0214,GLENDALE GROUNDS MANAGEMENT LIMITED,30/01/2023 00:00,26/02/2023 00:00,P11-2023
P&V,FORMER LV LIDO SITE,PREMISES RELATED EXPENDITURE,GM HORTICULTURE SCHEDULED,2143,Jan-23,20/02/2023 00:00,271329,6.42,GL0214,GLENDALE GROUNDS MANAGEMENT LIMITED,30/01/2023 00:00,26/02/2023 00:00,P11-2023
,LEE VALLEY WHITE WATER CENTRE,PREMISES RELATED EXPENDITURE,GM HORTICULTURE SCHEDULED,2143,Jan-23,20/02/2023 00:00,271329,14.71,GL0214,GLENDALE GROUNDS MANAGEMENT LIMITED,30/01/2023 00:00,26/02/2023 00:00,P11-2023
P&V,NORTH AREA RANGERS,PREMISES RELATED EXPENDITURE,GM ARBORICULTURE UNSCHEDULED,2146,P120678-SERVICE-Tree Works Dobbs Weir Island Site,21/02/2023 00:00,270776,825,MU0030,P J MUSK TREES,30/01/2023 00:00,26/02/2023 00:00,P11-2023
P&V,NORTH AREA RANGERS,PREMISES RELATED EXPENDITURE,GM ARBORICULTURE UNSCHEDULED,2146,P120597-SERVICE-Tree Works at Rye House Gatehouse,06/02/2023 00:00,270903,2479,MU0030,P J MUSK TREES,30/01/2023 00:00,26/02/2023 00:00,P11-2023
P&V,NORTH AREA RANGERS,PREMISES RELATED EXPENDITURE,GM ARBORICULTURE UNSCHEDULED,2146,P117094-SERVICE-Tree Works - Rushy Mead,26/02/2023 00:00,271484,800,MU0030,P J MUSK TREES,30/01/2023 00:00,26/02/2023 00:00,P11-2023
P&V,SOUTH AREA RANGERS,PREMISES RELATED EXPENDITURE,GM ARBORICULTURE UNSCHEDULED,2146,P120537-SERVICE-Tree Works at Walthamstow Marshes,06/02/2023 00:00,270418,75,PA0222,PARKIN & PARKER TREE SPECIALISTS,30/01/2023 00:00,26/02/2023 00:00,P11-2023
P&V,SOUTH AREA RANGERS,PREMISES RELATED EXPENDITURE,GM ARBORICULTURE UNSCHEDULED,2146,P120537-SERVICE-Tree Works at Walthamstow Marshes,06/02/2023 00:00,270418,150,PA0222,PARKIN & PARKER TREE SPECIALISTS,30/01/2023 00:00,26/02/2023 00:00,P11-2023
P&V,SOUTH AREA RANGERS,PREMISES RELATED EXPENDITURE,GM ARBORICULTURE UNSCHEDULED,2146,P120537-SERVICE-Tree Works at Walthamstow Marshes,06/02/2023 00:00,270418,295,PA0222,PARKIN & PARKER TREE SPECIALISTS,30/01/2023 00:00,26/02/2023 00:00,P11-2023
P&V,SOUTH AREA RANGERS,PREMISES RELATED EXPENDITURE,GM ARBORICULTURE UNSCHEDULED,2146,P120683-SERVICE-Tree Works at Tottenham Marshes - Wild Marsh,26/02/2023 00:00,271515,300,PA0222,PARKIN & PARKER TREE SPECIALISTS,30/01/2023 00:00,26/02/2023 00:00,P11-2023
P&V,SOUTH AREA RANGERS,PREMISES RELATED EXPENDITURE,GM ARBORICULTURE UNSCHEDULED,2146,P120683-SERVICE-Tree Works at Tottenham Marshes - Wild Marsh,26/02/2023 00:00,271515,300,PA0222,PARKIN & PARKER TREE SPECIALISTS,30/01/2023 00:00,26/02/2023 00:00,P11-2023
P&V,NORTH AREA RANGERS,EMPLOYEES,APPOINTMENT EXPENSES,1301,P120971-SERVICE-RANGERS/ASST RANGERS JOB ADVERTS,22/02/2023 00:00,271380,815.1,SA0133,SOWERBY ADVERTISING AND COMMUNICATIONS,30/01/2023 00:00,26/02/2023 00:00,P11-2023
P&V,SOUTH AREA RANGERS,EMPLOYEES,APPOINTMENT EXPENSES,1301,P120971-SERVICE-RANGERS/ASST RANGERS JOB ADVERTS,22/02/2023 00:00,271380,815.1,SA0133,SOWERBY ADVERTISING AND COMMUNICATIONS,30/01/2023 00:00,26/02/2023 00:00,P11-2023
R&B,HUMAN RESOURCES,EMPLOYEES,TRAINING EXPENSES,1305,P120974-SERVICE-MOCK MEDIATION TRAINING 26/04/23,22/02/2023 00:00,271376,115,AC0248,ACAS YORKSHIRE AND HUMBER,30/01/2023 00:00,26/02/2023 00:00,P11-2023
R&B,CORPORATE TRAINING,EMPLOYEES,TRAINING EXPENSES,1305,P120763-SERVICE-FAW Training 06/02/23 E Boako-Aggrey,06/02/2023 00:00,270821,419,BR0069,BRITISH RED CROSS,30/01/2023 00:00,26/02/2023 00:00,P11-2023
R&B,CORPORATE TRAINING,EMPLOYEES,TRAINING EXPENSES,1305,P120778-SERVICE-FAW Training G Amoah-Gyasi,14/02/2023 00:00,270991,419,BR0069,BRITISH RED CROSS,30/01/2023 00:00,26/02/2023 00:00,P11-2023
P&V,LEE VALLEY FARM HOLYFIELDHALL,EMPLOYEES,TRAINING EXPENSES,1305,P120760-SERVICE-Training Event,06/02/2023 00:00,270770,80,HA0013,HARLOW AGRICULTURAL MERCHANTS,30/01/2023 00:00,26/02/2023 00:00,P11-2023
,LEE VALLEY CAMPSITE,EMPLOYEES,TRAINING EXPENSES,1305,P120727-SERVICE-SC Staff Training,07/02/2023 00:00,270943,408.33,YO0040,YOUR SUCCESS SOLUTIONS,30/01/2023 00:00,26/02/2023 00:00,P11-2023
,LEE VALLEY CAMPSITE,EMPLOYEES,TRAINING EXPENSES,1305,P120937-SERVICE-Gemaparks traing 08 Feb 23,22/02/2023 00:00,271138,30,NE0218,NETGUIDES LIMITED,30/01/2023 00:00,26/02/2023 00:00,P11-2023
,LEE VALLEY CAMPSITE,EMPLOYEES,TRAINING EXPENSES,1305,P120726-SERVICE-SC Training,26/02/2023 00:00,271366,200,VE0038,VENNERS LTD,30/01/2023 00:00,26/02/2023 00:00,P11-2023
,LEE VALLEY CARAVAN PARK,EMPLOYEES,TRAINING EXPENSES,1305,P120727-SERVICE-DW Staff Training,07/02/2023 00:00,270943,408.33,YO0040,YOUR SUCCESS SOLUTIONS,30/01/2023 00:00,26/02/2023 00:00,P11-2023
,LEE VALLEY CARAVAN PARK,EMPLOYEES,TRAINING EXPENSES,1305,P120937-SERVICE-Gemaparks training 8th Feb 23,22/02/2023 00:00,271138,30,NE0218,NETGUIDES LIMITED,30/01/2023 00:00,26/02/2023 00:00,P11-2023
,LEE VALLEY CARAVAN PARK,EMPLOYEES,TRAINING EXPENSES,1305,P120726-SERVICE-DW Training,26/02/2023 00:00,271366,200,VE0038,VENNERS LTD,30/01/2023 00:00,26/02/2023 00:00,P11-2023
P&V,MYDDELTON HOUSE GARDENS,EMPLOYEES,TRAINING EXPENSES,1305,P119457-SERVICE-Basic Tree Inspection Couse - Gardeners,15/02/2023 00:00,271192,200,CO0135,CAPEL MANOR COLLEGE,30/01/2023 00:00,26/02/2023 00:00,P11-2023
P&V,SOUTH AREA RANGERS,EMPLOYEES,TRAINING EXPENSES,1305,P120402-SERVICE-Chainsaw Training for CS31 - 2 Candidates,21/02/2023 00:00,271201,1300,GR0457,GROUND UP TRAINING LTD,30/01/2023 00:00,26/02/2023 00:00,P11-2023
P&V,ALMOST WILD CAMPSITE,EMPLOYEES,TRAINING EXPENSES,1305,P120937-SERVICE-Gemaparks training 08 Feb 23,22/02/2023 00:00,271138,30,NE0218,NETGUIDES LIMITED,30/01/2023 00:00,26/02/2023 00:00,P11-2023
,LV LEISURE CENTRE CAMPSITE,EMPLOYEES,TRAINING EXPENSES,1305,P120727-SERVICE-ED Staff Training,07/02/2023 00:00,270943,408.34,YO0040,YOUR SUCCESS SOLUTIONS,30/01/2023 00:00,26/02/2023 00:00,P11-2023
,LV LEISURE CENTRE CAMPSITE,EMPLOYEES,TRAINING EXPENSES,1305,P120937-SERVICE-Gemaparks training 08 Feb 23,22/02/2023 00:00,271138,30,NE0218,NETGUIDES LIMITED,30/01/2023 00:00,26/02/2023 00:00,P11-2023
,LV LEISURE CENTRE CAMPSITE,EMPLOYEES,TRAINING EXPENSES,1305,P120726-SERVICE-ED Training,26/02/2023 00:00,271366,200,VE0038,VENNERS LTD,30/01/2023 00:00,26/02/2023 00:00,P11-2023
R&B,NON DISTRIBUTED COSTS,EMPLOYEES,SUPERANNUATION ADDED YEARS,1310,LONDON PENSIONS FUND AUTHORITY,21/02/2023 00:00,271367,4837.34,LO0031,LONDON PENSIONS FUND AUTHORITY,30/01/2023 00:00,26/02/2023 00:00,P11-2023
R&B,NON DISTRIBUTED COSTS,EMPLOYEES,SUPERANNUATION ADDED YEARS,1310,LONDON PENSIONS FUND AUTHORITY,26/02/2023 00:00,271553,4894.51,LO0031,LONDON PENSIONS FUND AUTHORITY,30/01/2023 00:00,26/02/2023 00:00,P11-2023
P&V,LEE VALLEY FARM HOLYFIELDHALL,EMPLOYEES,CRB CHECKS,1330,DBS CHECKS,07/02/2023 00:00,270927,36,DD0119,DUE DILIGENCE CHECKING LIMITED,30/01/2023 00:00,26/02/2023 00:00,P11-2023
P&V,LEE VALLEY FARM HOLYFIELDHALL,EMPLOYEES,CRB CHECKS,1330,ADMIN FEE,07/02/2023 00:00,270927,18,DD0119,DUE DILIGENCE CHECKING LIMITED,30/01/2023 00:00,26/02/2023 00:00,P11-2023
,LEE VALLEY CARAVAN PARK,EMPLOYEES,CRB CHECKS,1330,ADMIN FEE,07/02/2023 00:00,270927,18,DD0119,DUE DILIGENCE CHECKING LIMITED,30/01/2023 00:00,26/02/2023 00:00,P11-2023
,LEE VALLEY CARAVAN PARK,EMPLOYEES,CRB CHECKS,1330,DBS CHECKS,07/02/2023 00:00,270927,18,DD0119,DUE DILIGENCE CHECKING LIMITED,30/01/2023 00:00,26/02/2023 00:00,P11-2023
P&V,YOUTH AND SCHOOLS,EMPLOYEES,CRB CHECKS,1330,P120803-SERVICE-Barring & Disclosure Service Learning & Engag,14/02/2023 00:00,270926,36,DD0119,DUE DILIGENCE CHECKING LIMITED,30/01/2023 00:00,26/02/2023 00:00,P11-2023
P&V,YOUTH AND SCHOOLS,EMPLOYEES,CRB CHECKS,1330,ADMIN FEE,07/02/2023 00:00,270927,18,DD0119,DUE DILIGENCE CHECKING LIMITED,30/01/2023 00:00,26/02/2023 00:00,P11-2023
P&V,YOUTH AND SCHOOLS,EMPLOYEES,CRB CHECKS,1330,DBS CHECKS,07/02/2023 00:00,270927,38,DD0119,DUE DILIGENCE CHECKING LIMITED,30/01/2023 00:00,26/02/2023 00:00,P11-2023
,LV LEISURE CENTRE CAMPSITE,EMPLOYEES,CRB CHECKS,1330,DBS CHECKS,07/02/2023 00:00,270927,18,DD0119,DUE DILIGENCE CHECKING LIMITED,30/01/2023 00:00,26/02/2023 00:00,P11-2023
,LV LEISURE CENTRE CAMPSITE,EMPLOYEES,CRB CHECKS,1330,ADMIN FEE,07/02/2023 00:00,270927,18,DD0119,DUE DILIGENCE CHECKING LIMITED,30/01/2023 00:00,26/02/2023 00:00,P11-2023
P&V,SPORTS DEVELOPMENT GRANTS & AG,EMPLOYEES,CRB CHECKS,1330,P120803-SERVICE-Barring & disclosure service Sports developme,14/02/2023 00:00,270926,36,DD0119,DUE DILIGENCE CHECKING LIMITED,30/01/2023 00:00,26/02/2023 00:00,P11-2023
P&V,VOLUNTEERS (L&E),EMPLOYEES,DRIVING LICENCE CHECKS,1335,J WHITEHEAD DRIVING LICENCE CHECK,07/02/2023 00:00,270963,6.25,FI0288,FIRST ADVANTAGE EUROPE LTD,30/01/2023 00:00,26/02/2023 00:00,P11-2023
R&B,CORPORATE TRAINING,EMPLOYEES,APPRENTICE LEVY,1390,PAYE,14/02/2023 00:00,270985,792,HM0368,HMRC,30/01/2023 00:00,26/02/2023 00:00,P11-2023
CEO,LVLC SERVICE CHARGE,PREMISES RELATED EXPENDITURE,SCHEDULED GROUND MAINTENANCE,2111,Jan-23,20/02/2023 00:00,271329,1511.73,GL0214,GLENDALE GROUNDS MANAGEMENT LIMITED,30/01/2023 00:00,26/02/2023 00:00,P11-2023
CEO,LVLC SERVICE CHARGE,PREMISES RELATED EXPENDITURE,SCHEDULED GROUND MAINTENANCE,2111,Jan-23,20/02/2023 00:00,271329,55.14,GL0214,GLENDALE GROUNDS MANAGEMENT LIMITED,30/01/2023 00:00,26/02/2023 00:00,P11-2023
,LEE VALLEY CAMPSITE,PREMISES RELATED EXPENDITURE,CONTRACT CLEANING,2120,P120237-SERVICE-Site Cleaning JAN 23,07/02/2023 00:00,270967,2014,LI0305,LIMPIAR CLEANING,30/01/2023 00:00,26/02/2023 00:00,P11-2023
,LEE VALLEY CAMPSITE,PREMISES RELATED EXPENDITURE,CONTRACT CLEANING,2120,P119749-SERVICE-Monthly toilet clean oct-mar23,08/02/2023 00:00,271018,88.25,IN0012,INITIAL WASHROOM HYGIENE,30/01/2023 00:00,26/02/2023 00:00,P11-2023
P&V,SOUTH AREA RANGERS,PREMISES RELATED EXPENDITURE,GM ARBORICULTURE UNSCHEDULED,2146,P120683-SERVICE-Tree Works at Tottenham Marshes - Car Park,26/02/2023 00:00,271515,250,PA0222,PARKIN & PARKER TREE SPECIALISTS,30/01/2023 00:00,26/02/2023 00:00,P11-2023
P&V,SOUTH AREA RANGERS,PREMISES RELATED EXPENDITURE,GM ARBORICULTURE UNSCHEDULED,2146,P120683-SERVICE-Tree Works at Tottenham Marshes - Millmead Ro,26/02/2023 00:00,271515,150,PA0222,PARKIN & PARKER TREE SPECIALISTS,30/01/2023 00:00,26/02/2023 00:00,P11-2023
P&V,SOUTH AREA RANGERS,PREMISES RELATED EXPENDITURE,GM ARBORICULTURE UNSCHEDULED,2146,P120683-SERVICE-Tree Works at Tottenham Marshes - Clendish Wo,26/02/2023 00:00,271515,550,PA0222,PARKIN & PARKER TREE SPECIALISTS,30/01/2023 00:00,26/02/2023 00:00,P11-2023
P&V,SOUTH AREA RANGERS,PREMISES RELATED EXPENDITURE,GM ARBORICULTURE UNSCHEDULED,2146,P120683-SERVICE-Tree Works at Tottenham Marshes - Clendish Ma,26/02/2023 00:00,271515,100,PA0222,PARKIN & PARKER TREE SPECIALISTS,30/01/2023 00:00,26/02/2023 00:00,P11-2023
P&V,GUNPOWDER PARK,PREMISES RELATED EXPENDITURE,GM ARBORICULTURE UNSCHEDULED,2146,P120781-SERVICE-Tree Works at Godwin Close,14/02/2023 00:00,270992,275,PA0222,PARKIN & PARKER TREE SPECIALISTS,30/01/2023 00:00,26/02/2023 00:00,P11-2023
P&V,GUNPOWDER PARK,PREMISES RELATED EXPENDITURE,GM ARBORICULTURE UNSCHEDULED,2146,P120084-SERVICE-Tree Works - Sewardstone Paddocks,21/02/2023 00:00,271345,495,PA0222,PARKIN & PARKER TREE SPECIALISTS,30/01/2023 00:00,26/02/2023 00:00,P11-2023
P&V,GUNPOWDER PARK,PREMISES RELATED EXPENDITURE,GM ARBORICULTURE UNSCHEDULED,2146,P120230-SERVICE-Tree Works -at Rammey Marsh,21/02/2023 00:00,271346,300,PA0222,PARKIN & PARKER TREE SPECIALISTS,30/01/2023 00:00,26/02/2023 00:00,P11-2023
P&V,RIVER LEE COUNTRY PARK,PREMISES RELATED EXPENDITURE,GM ARBORICULTURE UNSCHEDULED,2146,P120580-SERVICE-Tree Works Stanstead Innings - Emergency Work,06/02/2023 00:00,270513,295,VE0004,PRINCIPAL TREES LTD,30/01/2023 00:00,26/02/2023 00:00,P11-2023
P&V,RIVER LEE COUNTRY PARK,PREMISES RELATED EXPENDITURE,GM ARBORICULTURE UNSCHEDULED,2146,P120495-SERVICE-Tree Works - OM&M Boat Centre Car Park,06/02/2023 00:00,270604,1595,MU0030,P J MUSK TREES,30/01/2023 00:00,26/02/2023 00:00,P11-2023
P&V,RIVER LEE COUNTRY PARK,PREMISES RELATED EXPENDITURE,GM ARBORICULTURE UNSCHEDULED,2146,P120495-SERVICE-Tree Works - Old Mill & Meadows,06/02/2023 00:00,270604,1590,MU0030,P J MUSK TREES,30/01/2023 00:00,26/02/2023 00:00,P11-2023
P&V,RIVER LEE COUNTRY PARK,PREMISES RELATED EXPENDITURE,GM ARBORICULTURE UNSCHEDULED,2146,P120622-SERVICE-Tree Works at Hooks Marsh Lake Area,15/02/2023 00:00,270775,1395,MU0030,P J MUSK TREES,30/01/2023 00:00,26/02/2023 00:00,P11-2023
P&V,RIVER LEE COUNTRY PARK,PREMISES RELATED EXPENDITURE,GM ARBORICULTURE UNSCHEDULED,2146,P120616-SERVICE-Tree Works at Trinity Lane Area,26/02/2023 00:00,271517,1845,VE0004,PRINCIPAL TREES LTD,30/01/2023 00:00,26/02/2023 00:00,P11-2023
P&V,RIVER LEE COUNTRY PARK,PREMISES RELATED EXPENDITURE,GM ARBORICULTURE UNSCHEDULED,2146,P120675-SERVICE-Emergency Tree Works Fishers Green,26/02/2023 00:00,271518,130,VE0004,PRINCIPAL TREES LTD,30/01/2023 00:00,26/02/2023 00:00,P11-2023
P&V,RIVER LEE COUNTRY PARK,PREMISES RELATED EXPENDITURE,GM ARBORICULTURE UNSCHEDULED,2146,P120614-SERVICE-Tree Works at Bowyers,26/02/2023 00:00,271521,1875,VE0004,PRINCIPAL TREES LTD,30/01/2023 00:00,26/02/2023 00:00,P11-2023
P&V,RIVER LEE COUNTRY PARK,PREMISES RELATED EXPENDITURE,GM ARBORICULTURE UNSCHEDULED,2146,P120711-SERVICE-Tree Works at Ashley as per quote QU-0245,26/02/2023 00:00,271562,3185,MU0030,P J MUSK TREES,30/01/2023 00:00,26/02/2023 00:00,P11-2023
P&V,RIVER LEE COUNTRY PARK,PREMISES RELATED EXPENDITURE,GM ARBORICULTURE UNSCHEDULED,2146,P120996-SERVICE-Emergency Tree Works at Slipe Lane,26/02/2023 00:00,271563,400,MU0030,P J MUSK TREES,30/01/2023 00:00,26/02/2023 00:00,P11-2023
P&V,FORMER LV LIDO SITE,PREMISES RELATED EXPENDITURE,GM ARBORICULTURE UNSCHEDULED,2146,P120494-SERVICE-Tree Works - Broxbourne Riverside,21/02/2023 00:00,271369,1680,MU0030,P J MUSK TREES,30/01/2023 00:00,26/02/2023 00:00,P11-2023
P&V,NORTH AREA RANGERS,PREMISES RELATED EXPENDITURE,GM NON MAIN CONT UNSCHEDULED,2147,P120592-SERVICE-Meadgate Road Ditch near Lignacite Compound,06/02/2023 00:00,270815,750,BU0090,BUSH WHEELER SERVICES LTD,30/01/2023 00:00,26/02/2023 00:00,P11-2023
P&V,RIVER LEE COUNTRY PARK,PREMISES RELATED EXPENDITURE,GM NON MAIN CONT UNSCHEDULED,2147,P120842-SERVICE-Concrete Block Cornmill Meadows Car Park,26/02/2023 00:00,271487,300,BU0090,BUSH WHEELER SERVICES LTD,30/01/2023 00:00,26/02/2023 00:00,P11-2023
,LEE VALLEY MARINA SPRINGFIELD,PREMISES RELATED EXPENDITURE,GENERAL WASTE,2211,"P120302-SERVICE-General waste & recyling Nov 22,Dec 22,Jan 23",07/02/2023 00:00,270950,577.44,CL0037,VEOLIA ES (UK) LTD,30/01/2023 00:00,26/02/2023 00:00,P11-2023
,LEE VALLEY MARINA SPRINGFIELD,PREMISES RELATED EXPENDITURE,GENERAL WASTE,2211,"P120302-SERVICE-General waste & recyling Nov 22,Dec 22,Jan 23",07/02/2023 00:00,270951,29.7,CL0037,VEOLIA ES (UK) LTD,30/01/2023 00:00,26/02/2023 00:00,P11-2023
,LEE VALLEY MARINA SPRINGFIELD,PREMISES RELATED EXPENDITURE,GENERAL WASTE,2211,"P120302-SERVICE-General waste & recyling Nov 22,Dec 22,Jan 23",07/02/2023 00:00,270952,790.33,CL0037,VEOLIA ES (UK) LTD,30/01/2023 00:00,26/02/2023 00:00,P11-2023
,LEE VALLEY MARINA STANSTEAD,PREMISES RELATED EXPENDITURE,GENERAL WASTE,2211,P117691-SERVICE-Annual useage Veolia -bins 4 Rye and Stan Mar,14/02/2023 00:00,270145,157.2,CL0037,VEOLIA ES (UK) LTD,30/01/2023 00:00,26/02/2023 00:00,P11-2023
,LEE VALLEY MARINA STANSTEAD,PREMISES RELATED EXPENDITURE,GENERAL WASTE,2211,P117691-SERVICE-Annual useage Veolia -bins 4 Rye and Stan Mar,15/02/2023 00:00,270147,459.03,CL0037,VEOLIA ES (UK) LTD,30/01/2023 00:00,26/02/2023 00:00,P11-2023
,LEE VALLEY MARINA STANSTEAD,PREMISES RELATED EXPENDITURE,GENERAL WASTE,2211,P117691-SERVICE-Annual useage Veolia -bins 4 Rye and Stan Mar,06/02/2023 00:00,270793,-121.7,CL0037,VEOLIA ES (UK) LTD,30/01/2023 00:00,26/02/2023 00:00,P11-2023
,LEE VALLEY MARINA STANSTEAD,PREMISES RELATED EXPENDITURE,GENERAL WASTE,2211,P117691-SERVICE-Annual useage Veolia -bins 4 Rye and Stan Mar,14/02/2023 00:00,270955,15.49,CL0037,VEOLIA ES (UK) LTD,30/01/2023 00:00,26/02/2023 00:00,P11-2023
,LEE VALLEY MARINA STANSTEAD,PREMISES RELATED EXPENDITURE,GENERAL WASTE,2211,P117691-SERVICE-Annual useage Veolia -bins 4 Rye and Stan Mar,15/02/2023 00:00,270959,207.69,CL0037,VEOLIA ES (UK) LTD,30/01/2023 00:00,26/02/2023 00:00,P11-2023
,LEE VALLEY MARINA STANSTEAD,PREMISES RELATED EXPENDITURE,GENERAL WASTE,2211,P117691-SERVICE-Annual useage Veolia -bins 4 Rye and Stan Mar,22/02/2023 00:00,270962,165.6,CL0037,VEOLIA ES (UK) LTD,30/01/2023 00:00,26/02/2023 00:00,P11-2023
,LEE VALLEY MARINA STANSTEAD,PREMISES RELATED EXPENDITURE,GENERAL WASTE,2211,P117691-SERVICE-Annual useage Veolia -bins 4 Rye and Stan Mar,15/02/2023 00:00,271149,-146,CL0037,VEOLIA ES (UK) LTD,30/01/2023 00:00,26/02/2023 00:00,P11-2023
P&V,LEE VALLEY FARM HOLYFIELDHALL,PREMISES RELATED EXPENDITURE,GENERAL WASTE,2211,P120859-SERVICE-Waste for Incineration,26/02/2023 00:00,271136,444.78,BY0049,BYWATERS (LEYTON) LTD,30/01/2023 00:00,26/02/2023 00:00,P11-2023
,LEE VALLEY CARAVAN PARK,PREMISES RELATED EXPENDITURE,GENERAL WASTE,2211,P120879-SERVICE-Waste collection,14/02/2023 00:00,270956,2849.84,CL0037,VEOLIA ES (UK) LTD,30/01/2023 00:00,26/02/2023 00:00,P11-2023
,LEE VALLEY CARAVAN PARK,PREMISES RELATED EXPENDITURE,GENERAL WASTE,2211,P120880-SERVICE-Excess weight surcharge,14/02/2023 00:00,270957,121.5,CL0037,VEOLIA ES (UK) LTD,30/01/2023 00:00,26/02/2023 00:00,P11-2023
P&V,SOUTH AREA RANGERS,PREMISES RELATED EXPENDITURE,GENERAL WASTE,2211,P119545-SERVICE-Skip at WaterWorks Centre,21/02/2023 00:00,271146,308,GB0239,GBN SERVICES LTD,30/01/2023 00:00,26/02/2023 00:00,P11-2023
P&V,GUNPOWDER PARK,PREMISES RELATED EXPENDITURE,GENERAL WASTE,2211,P120947-SERVICE-Deep Litter Pick at Lee Park Way,26/02/2023 00:00,271499,300,JO0019,R G JOYCE,30/01/2023 00:00,26/02/2023 00:00,P11-2023
P&V,RIVER LEE COUNTRY PARK,PREMISES RELATED EXPENDITURE,GENERAL WASTE,2211,P120786-SERVICE-12yd General Rubbish Skip at Holyfield Hall F,21/02/2023 00:00,271147,308,GB0239,GBN SERVICES LTD,30/01/2023 00:00,26/02/2023 00:00,P11-2023
P&V,RIVER LEE COUNTRY PARK,PREMISES RELATED EXPENDITURE,GENERAL WASTE,2211,P120786-SERVICE-12yd General Rubbish Skip at Holyfield Hall F,21/02/2023 00:00,271307,308,GB0239,GBN SERVICES LTD,30/01/2023 00:00,26/02/2023 00:00,P11-2023
,LV LEISURE CENTRE CAMPSITE,PREMISES RELATED EXPENDITURE,GENERAL WASTE,2211,P120832-SERVICE-skip and compactor,14/02/2023 00:00,270960,1381.06,CL0037,VEOLIA ES (UK) LTD,30/01/2023 00:00,26/02/2023 00:00,P11-2023
,LV LEISURE CENTRE CAMPSITE,PREMISES RELATED EXPENDITURE,GENERAL WASTE,2211,P120888-SERVICE-Recycling empty,14/02/2023 00:00,270988,254.6,BY0049,BYWATERS (LEYTON) LTD,30/01/2023 00:00,26/02/2023 00:00,P11-2023
,LV LEISURE CENTRE CAMPSITE,PREMISES RELATED EXPENDITURE,GENERAL WASTE,2211,P120889-SERVICE-Sanitary unit waste empty,14/02/2023 00:00,271026,157.48,PE0015,PHS GROUP PLC,30/01/2023 00:00,26/02/2023 00:00,P11-2023
P&V,GUNPOWDER PARK,PREMISES RELATED EXPENDITURE,FLYTIPPING/WHITE GOOD DISPOSAL,2213,P120836-SERVICE-Remove Fly Tip from Rammey Marsh Car Park,14/02/2023 00:00,271122,150,JO0019,R G JOYCE,30/01/2023 00:00,26/02/2023 00:00,P11-2023
P&V,MYDDELTON HOUSE,PREMISES RELATED EXPENDITURE,RECYCLING,2214,P120756-SERVICE-Recycling,06/02/2023 00:00,270792,98.28,CA0341,F & R CAWLEY LTD,30/01/2023 00:00,26/02/2023 00:00,P11-2023
P&V,MYDDELTON HOUSE,PREMISES RELATED EXPENDITURE,RECYCLING,2214,P120756-SERVICE-Recycling,14/02/2023 00:00,271097,247.77,CA0341,F & R CAWLEY LTD,30/01/2023 00:00,26/02/2023 00:00,P11-2023
P&V,MYDDELTON HOUSE,PREMISES RELATED EXPENDITURE,BUILDING SERVICE AGREEMENTS,2220,P120649-SERVICE-drains call out fee,07/02/2023 00:00,270603,450,AB0257,ABBEY DRAINS LTD,30/01/2023 00:00,26/02/2023 00:00,P11-2023
P&V,MYDDELTON HOUSE,PREMISES RELATED EXPENDITURE,BUILDING SERVICE AGREEMENTS,2220,P120853-SERVICE-Service Clock in Stable Block,21/02/2023 00:00,271310,141.69,PU0050,PUBLIC CLOCKS LTD,30/01/2023 00:00,26/02/2023 00:00,P11-2023
P&V,MYDDELTON HOUSE,PREMISES RELATED EXPENDITURE,BUILDING SERVICE AGREEMENTS,2220,P120851-SERVICE-Service Care Sewage Pump Maintenance Contract,21/02/2023 00:00,271325,918.92,CL0039,XYLEM WATER SOLUTIONS UK  LIMITED,30/01/2023 00:00,26/02/2023 00:00,P11-2023
P&V,MYDDELTON HOUSE,PREMISES RELATED EXPENDITURE,BUILDING SERVICE AGREEMENTS,2220,P120982-SERVICE-Sanitary Services,22/02/2023 00:00,271359,80.68,PE0015,PHS GROUP PLC,30/01/2023 00:00,26/02/2023 00:00,P11-2023
P&V,MYDDELTON HOUSE,PREMISES RELATED EXPENDITURE,BUILDING SERVICE AGREEMENTS,2220,P120983-SERVICE-12 Month Service,22/02/2023 00:00,271370,170,AB0435,ABSOLUTE DOOR SERVICES ESSEX LTD,30/01/2023 00:00,26/02/2023 00:00,P11-2023
P&V,MYDDELTON HOUSE,PREMISES RELATED EXPENDITURE,BUILDING SERVICE AGREEMENTS,2220,P120982-SERVICE-Sanitary Services,26/02/2023 00:00,271535,190.23,PE0015,PHS GROUP PLC,30/01/2023 00:00,26/02/2023 00:00,P11-2023
P&V,MYDDELTON HOUSE,PREMISES RELATED EXPENDITURE,BUILDING SERVICE AGREEMENTS,2220,P119876-SERVICE-Sanitary Services,26/02/2023 00:00,271566,9.09,PE0015,PHS GROUP PLC,30/01/2023 00:00,26/02/2023 00:00,P11-2023
P&V,MYDDELTON HOUSE,PREMISES RELATED EXPENDITURE,BUILDING SERVICE AGREEMENTS,2220,P119876-SERVICE-Sanitary Services,26/02/2023 00:00,271567,24.15,PE0015,PHS GROUP PLC,30/01/2023 00:00,26/02/2023 00:00,P11-2023
,LEE VALLEY MARINA STANSTEAD,PREMISES RELATED EXPENDITURE,BUILDING SERVICE AGREEMENTS,2220,P120807-SERVICE-cage,14/02/2023 00:00,270746,13,CA0006,CALOR GAS LIMITED,30/01/2023 00:00,26/02/2023 00:00,P11-2023
,LEE VALLEY WATERWORKS CENTRE,PREMISES RELATED EXPENDITURE,BUILDING SERVICE AGREEMENTS,2220,P118014-SERVICE-Legionella Risk Assessment - Waterworks Centr,08/02/2023 00:00,271010,562.07,KI0090,KINGFISHER ENVIRONMENTAL SERVICES LTD,30/01/2023 00:00,26/02/2023 00:00,P11-2023
,LEE VALLEY CAMPSITE,PREMISES RELATED EXPENDITURE,BUILDING SERVICE AGREEMENTS,2220,P121016-SERVICE-Fault on Shop Intruder Alarm 24/01/23,26/02/2023 00:00,271181,115,AC0012,SCUTUM SOUTH EAST LTD (frmly Active Security),30/01/2023 00:00,26/02/2023 00:00,P11-2023
,LEE VALLEY CAMPSITE,PREMISES RELATED EXPENDITURE,BUILDING SERVICE AGREEMENTS,2220,P119632-SERVICE-Jan 23,21/02/2023 00:00,271297,70,VE0006,VERMINATE CITY & RURAL PEST CONTROL LTD,30/01/2023 00:00,26/02/2023 00:00,P11-2023
,LEE VALLEY CAMPSITE,PREMISES RELATED EXPENDITURE,BUILDING SERVICE AGREEMENTS,2220,P119632-SERVICE-Feb 23,21/02/2023 00:00,271298,70,VE0006,VERMINATE CITY & RURAL PEST CONTROL LTD,30/01/2023 00:00,26/02/2023 00:00,P11-2023
,LEE VALLEY CARAVAN PARK,PREMISES RELATED EXPENDITURE,BUILDING SERVICE AGREEMENTS,2220,P121039-SERVICE-Pest control,26/02/2023 00:00,271299,70,VE0006,VERMINATE CITY & RURAL PEST CONTROL LTD,30/01/2023 00:00,26/02/2023 00:00,P11-2023
,LEE VALLEY CARAVAN PARK,PREMISES RELATED EXPENDITURE,BUILDING SERVICE AGREEMENTS,2220,P121040-SERVICE-Pest control,26/02/2023 00:00,271300,70,VE0006,VERMINATE CITY & RURAL PEST CONTROL LTD,30/01/2023 00:00,26/02/2023 00:00,P11-2023
P&V,NORTH AREA RANGERS,PREMISES RELATED EXPENDITURE,BUILDING SERVICE AGREEMENTS,2220,P121023-SERVICE-Sanitary Disposal - Old Mill & Meadows Toilet,26/02/2023 00:00,271358,3.74,PE0015,PHS GROUP PLC,30/01/2023 00:00,26/02/2023 00:00,P11-2023
P&V,SOUTH AREA RANGERS,PREMISES RELATED EXPENDITURE,BUILDING SERVICE AGREEMENTS,2220,P119469-SERVICE-Maintenance of Lighting at Lea Bridge Rd Unde,21/02/2023 00:00,271162,723.36,CO0199,EQUANS FM LIMITED (frmlyENGIE FM LIMITED),30/01/2023 00:00,26/02/2023 00:00,P11-2023
P&V,GUNPOWDER PARK,PREMISES RELATED EXPENDITURE,BUILDING SERVICE AGREEMENTS,2220,P117222-SERVICE-Sanitary Disposal - Gunpowder Park - Public T,21/02/2023 00:00,271159,14.3,PE0015,PHS GROUP PLC,30/01/2023 00:00,26/02/2023 00:00,P11-2023
P&V,GUNPOWDER PARK,PREMISES RELATED EXPENDITURE,BUILDING SERVICE AGREEMENTS,2220,P119459-SERVICE-Building Servcie Agreement - Gunpowder Park,21/02/2023 00:00,271163,196.79,CO0199,EQUANS FM LIMITED (frmlyENGIE FM LIMITED),30/01/2023 00:00,26/02/2023 00:00,P11-2023
P&V,RIVER LEE COUNTRY PARK,PREMISES RELATED EXPENDITURE,BUILDING SERVICE AGREEMENTS,2220,P117224-SERVICE-Sanitary Disposal - Fishers Green Toilets,21/02/2023 00:00,271158,10.07,PE0015,PHS GROUP PLC,30/01/2023 00:00,26/02/2023 00:00,P11-2023
,LV LEISURE CENTRE CAMPSITE,PREMISES RELATED EXPENDITURE,BUILDING SERVICE AGREEMENTS,2220,P121003-SERVICE-site pest control,26/02/2023 00:00,271295,70,VE0006,VERMINATE CITY & RURAL PEST CONTROL LTD,30/01/2023 00:00,26/02/2023 00:00,P11-2023
,LV LEISURE CENTRE CAMPSITE,PREMISES RELATED EXPENDITURE,BUILDING SERVICE AGREEMENTS,2220,P121004-SERVICE-site pest control check,26/02/2023 00:00,271296,70,VE0006,VERMINATE CITY & RURAL PEST CONTROL LTD,30/01/2023 00:00,26/02/2023 00:00,P11-2023
,LV LEISURE CENTRE CAMPSITE,PREMISES RELATED EXPENDITURE,BUILDING SERVICE AGREEMENTS,2220,P120998-SERVICE-intruder alarm system works,26/02/2023 00:00,271341,115,AC0012,SCUTUM SOUTH EAST LTD (frmly Active Security),30/01/2023 00:00,26/02/2023 00:00,P11-2023
,LV LEISURE CENTRE CAMPSITE,PREMISES RELATED EXPENDITURE,BUILDING SERVICE AGREEMENTS,2220,P121033-SERVICE-emerg drian unblock,26/02/2023 00:00,271531,600,CO0550,CONVERT WATER LTD,30/01/2023 00:00,26/02/2023 00:00,P11-2023
CEO,RESIDENTIAL ACCOMMODATION,PREMISES RELATED EXPENDITURE,BUILDING REPAIRS & MAINTENANCE,2222,P120298-SERVICE-Maintenance,06/02/2023 00:00,270571,75,CA0165,CASTLES,30/01/2023 00:00,26/02/2023 00:00,P11-2023
CEO,RESIDENTIAL ACCOMMODATION,PREMISES RELATED EXPENDITURE,BUILDING REPAIRS & MAINTENANCE,2222,P120734-SERVICE-Supply and Fit Kitchen Taps - 1 Gate Cottage,06/02/2023 00:00,270743,200,MY0475,MY GAS HEATING CO LTD,30/01/2023 00:00,26/02/2023 00:00,P11-2023
CEO,RESIDENTIAL ACCOMMODATION,PREMISES RELATED EXPENDITURE,BUILDING REPAIRS & MAINTENANCE,2222,P120298-SERVICE-Maintenance,26/02/2023 00:00,271012,135,CA0165,CASTLES,30/01/2023 00:00,26/02/2023 00:00,P11-2023
CEO,RESIDENTIAL ACCOMMODATION,PREMISES RELATED EXPENDITURE,BUILDING REPAIRS & MAINTENANCE,2222,P120298-SERVICE-Maintenance,26/02/2023 00:00,271103,250,CA0165,CASTLES,30/01/2023 00:00,26/02/2023 00:00,P11-2023
CEO,RESIDENTIAL ACCOMMODATION,PREMISES RELATED EXPENDITURE,BUILDING REPAIRS & MAINTENANCE,2222,P120298-SERVICE-Maintenance,26/02/2023 00:00,271104,425,CA0165,CASTLES,30/01/2023 00:00,26/02/2023 00:00,P11-2023
CEO,RESIDENTIAL ACCOMMODATION,PREMISES RELATED EXPENDITURE,BUILDING REPAIRS & MAINTENANCE,2222,P120298-SERVICE-Maintenance,26/02/2023 00:00,271105,93.6,CA0165,CASTLES,30/01/2023 00:00,26/02/2023 00:00,P11-2023
CEO,RESIDENTIAL ACCOMMODATION,PREMISES RELATED EXPENDITURE,BUILDING REPAIRS & MAINTENANCE,2222,P120985-SERVICE-Marshgate Cottage Various Repairs,26/02/2023 00:00,271179,1057.5,WA0315,PAUL WALLACE ESTATE AGENTS,30/01/2023 00:00,26/02/2023 00:00,P11-2023
CEO,RESIDENTIAL ACCOMMODATION,PREMISES RELATED EXPENDITURE,BUILDING REPAIRS & MAINTENANCE,2222,P120986-SERVICE-Railway Cottage CO2 Alarm,26/02/2023 00:00,271180,65,WA0315,PAUL WALLACE ESTATE AGENTS,30/01/2023 00:00,26/02/2023 00:00,P11-2023
CEO,RESIDENTIAL ACCOMMODATION,PREMISES RELATED EXPENDITURE,BUILDING REPAIRS & MAINTENANCE,2222,P118137-SERVICE-2 Connaught Close Pest Control,26/02/2023 00:00,271292,70,VE0006,VERMINATE CITY & RURAL PEST CONTROL LTD,30/01/2023 00:00,26/02/2023 00:00,P11-2023
CEO,COMMERCIAL ACCOMMODATION,PREMISES RELATED EXPENDITURE,BUILDING REPAIRS & MAINTENANCE,2222,P117857-SERVICE-Concrete Blocks Wharf road,06/02/2023 00:00,270904,62,NA0171,NAIVETTE SERVICES LTD,30/01/2023 00:00,26/02/2023 00:00,P11-2023
CEO,COMMERCIAL ACCOMMODATION,PREMISES RELATED EXPENDITURE,BUILDING REPAIRS & MAINTENANCE,2222,P120579-SERVICE-Tarmac Repairs at Fishers Green,14/02/2023 00:00,271125,17200,HE0445,HERITAGE RESURFACING LTD,30/01/2023 00:00,26/02/2023 00:00,P11-2023
,LEE VALLEY MARINA SPRINGFIELD,PREMISES RELATED EXPENDITURE,BUILDING REPAIRS & MAINTENANCE,2222,P118269-SERVICE-To supply items as requested,15/02/2023 00:00,271153,60.17,BQ0164,TRADE UK ACCOUNT,30/01/2023 00:00,26/02/2023 00:00,P11-2023
,LEE VALLEY MARINA SPRINGFIELD,PREMISES RELATED EXPENDITURE,BUILDING REPAIRS & MAINTENANCE,2222,P117786-SERVICE-To supply pest & vermin control,26/02/2023 00:00,271290,380,VE0006,VERMINATE CITY & RURAL PEST CONTROL LTD,30/01/2023 00:00,26/02/2023 00:00,P11-2023
,LEE VALLEY MARINA SPRINGFIELD,PREMISES RELATED EXPENDITURE,BUILDING REPAIRS & MAINTENANCE,2222,P119044-SERVICE-Dec cctv maintenance & fix fault on camera 15,26/02/2023 00:00,271581,300,DE0013,DENNIS SECURITY CENTRE,30/01/2023 00:00,26/02/2023 00:00,P11-2023
,LEE VALLEY MARINA STANSTEAD,PREMISES RELATED EXPENDITURE,BUILDING REPAIRS & MAINTENANCE,2222,P120802-SERVICE-w/shop boiler servc + gas safety chk 13/12,07/02/2023 00:00,270812,75,TA0204,TAYLOR HEATING GROUP LTD,30/01/2023 00:00,26/02/2023 00:00,P11-2023
,LEE VALLEY MARINA STANSTEAD,PREMISES RELATED EXPENDITURE,BUILDING REPAIRS & MAINTENANCE,2222,P120932-SERVICE-over door heater fix in chandlery,22/02/2023 00:00,270940,70,BR0018,BRADSHAW ELECTRICAL LIMITED,30/01/2023 00:00,26/02/2023 00:00,P11-2023
,LEE VALLEY MARINA STANSTEAD,PREMISES RELATED EXPENDITURE,BUILDING REPAIRS & MAINTENANCE,2222,P120474-SERVICE-Fixed Wire Testing (EICR) (5yrly),14/02/2023 00:00,271006,960,BR0018,BRADSHAW ELECTRICAL LIMITED,30/01/2023 00:00,26/02/2023 00:00,P11-2023
,LEE VALLEY MARINA STANSTEAD,PREMISES RELATED EXPENDITURE,BUILDING REPAIRS & MAINTENANCE,2222,P120995-SERVICE-ambirad annual service + cherry picker hire,26/02/2023 00:00,271501,1399,IN0203,THE INDEPENDENT HEATING COMPANY LTD,30/01/2023 00:00,26/02/2023 00:00,P11-2023
,LEE VALLEY MARINA STANSTEAD,PREMISES RELATED EXPENDITURE,BUILDING REPAIRS & MAINTENANCE,2222,P120166-SERVICE-rye house extra fire extinguishers & cabinets,26/02/2023 00:00,271532,1050.06,TJ0009,T.J.FIRE & SECURITY,30/01/2023 00:00,26/02/2023 00:00,P11-2023
,LEE VALLEY MARINA STANSTEAD,PREMISES RELATED EXPENDITURE,BUILDING REPAIRS & MAINTENANCE,2222,P120705-SERVICE-fittings for RH fire extinguishers,26/02/2023 00:00,271602,187.16,TJ0009,T.J.FIRE & SECURITY,30/01/2023 00:00,26/02/2023 00:00,P11-2023
P&V,LEE VALLEY FARM HOLYFIELDHALL,PREMISES RELATED EXPENDITURE,BUILDING REPAIRS & MAINTENANCE,2222,P120761-SERVICE-Emergency Lighting Test,06/02/2023 00:00,270783,405,BR0018,BRADSHAW ELECTRICAL LIMITED,30/01/2023 00:00,26/02/2023 00:00,P11-2023
P&V,LEE VALLEY FARM HOLYFIELDHALL,PREMISES RELATED EXPENDITURE,BUILDING REPAIRS & MAINTENANCE,2222,P120923-SERVICE-1 Gate Cottage - New Vaillant Timer,26/02/2023 00:00,271137,200,MY0475,MY GAS HEATING CO LTD,30/01/2023 00:00,26/02/2023 00:00,P11-2023
P&V,LEE VALLEY FARM HOLYFIELDHALL,PREMISES RELATED EXPENDITURE,BUILDING REPAIRS & MAINTENANCE,2222,P117595-SERVICE-Building Repairs,26/02/2023 00:00,271396,87.52,JE0011,SAINT-GOBAIN BUILDING DISTRIBUTION,30/01/2023 00:00,26/02/2023 00:00,P11-2023
,LEE VALLEY CAMPSITE,PREMISES RELATED EXPENDITURE,BUILDING REPAIRS & MAINTENANCE,2222,P120533-SERVICE-Ash willows  fell & remove,14/02/2023 00:00,270993,600,PA0222,PARKIN & PARKER TREE SPECIALISTS,30/01/2023 00:00,26/02/2023 00:00,P11-2023
,LEE VALLEY CAMPSITE,PREMISES RELATED EXPENDITURE,BUILDING REPAIRS & MAINTENANCE,2222,P120534-SERVICE-Tree Felling - Various,14/02/2023 00:00,271166,725,PA0222,PARKIN & PARKER TREE SPECIALISTS,30/01/2023 00:00,26/02/2023 00:00,P11-2023
,LEE VALLEY CAMPSITE,PREMISES RELATED EXPENDITURE,BUILDING REPAIRS & MAINTENANCE,2222,P120535-SERVICE-chestnut oak reduce limbs,15/02/2023 00:00,271167,200,PA0222,PARKIN & PARKER TREE SPECIALISTS,30/01/2023 00:00,26/02/2023 00:00,P11-2023
,LEE VALLEY CAMPSITE,PREMISES RELATED EXPENDITURE,BUILDING REPAIRS & MAINTENANCE,2222,P120535-SERVICE-various trees  - fell deadwood,15/02/2023 00:00,271167,450,PA0222,PARKIN & PARKER TREE SPECIALISTS,30/01/2023 00:00,26/02/2023 00:00,P11-2023
P&V,ABBEY GARDENS,PREMISES RELATED EXPENDITURE,BUILDING REPAIRS & MAINTENANCE,2222,P120815-SERVICE-Lamp Posts at Waltham Abbey Gardens,07/02/2023 00:00,270941,105,BR0018,BRADSHAW ELECTRICAL LIMITED,30/01/2023 00:00,26/02/2023 00:00,P11-2023
P&V,WILDLIFE DISCOVERY CENTRE,PREMISES RELATED EXPENDITURE,BUILDING REPAIRS & MAINTENANCE,2222,P120666-SERVICE-Cabling WDC,15/02/2023 00:00,271120,800,JP0183,JPH CABLING SERVICES,30/01/2023 00:00,26/02/2023 00:00,P11-2023
P&V,GUNPOWDER PARK,PREMISES RELATED EXPENDITURE,BUILDING REPAIRS & MAINTENANCE,2222,P120269-SERVICE-Replace Taps Ladies Toilets at Gunowder Park,21/02/2023 00:00,271334,421.97,CO0199,EQUANS FM LIMITED (frmlyENGIE FM LIMITED),30/01/2023 00:00,26/02/2023 00:00,P11-2023
,LV LEISURE CENTRE CAMPSITE,PREMISES RELATED EXPENDITURE,BUILDING REPAIRS & MAINTENANCE,2222,P120835-SERVICE-cctv repair,08/02/2023 00:00,270407,135,RV0035,RVTV SECURITY GROUP LTD,30/01/2023 00:00,26/02/2023 00:00,P11-2023
,LV LEISURE CENTRE CAMPSITE,PREMISES RELATED EXPENDITURE,BUILDING REPAIRS & MAINTENANCE,2222,P120441-SERVICE-RVTV cctv repairs,08/02/2023 00:00,270407,1651.95,RV0035,RVTV SECURITY GROUP LTD,30/01/2023 00:00,26/02/2023 00:00,P11-2023
,LV LEISURE CENTRE CAMPSITE,PREMISES RELATED EXPENDITURE,BUILDING REPAIRS & MAINTENANCE,2222,P120438-SERVICE-Washing machine coin boxes,07/02/2023 00:00,270596,275.52,AL0434,ALLSOP & FRANCIS,30/01/2023 00:00,26/02/2023 00:00,P11-2023
,LEE VALLEY WHITE WATER CENTRE,PREMISES RELATED EXPENDITURE,BUILDING REPAIRS & MAINTENANCE,2222,P117173-SERVICE-Bathing Water sampling,26/02/2023 00:00,271497,-596.53,KI0090,KINGFISHER ENVIRONMENTAL SERVICES LTD,30/01/2023 00:00,26/02/2023 00:00,P11-2023
CEO,LVLC SERVICE CHARGE,PREMISES RELATED EXPENDITURE,BUILDING REPAIRS & MAINTENANCE,2222,P120774-SERVICE-Contract Sweep,06/02/2023 00:00,270820,150,SE0374,SELECT SWEEPER HIRE LTD,30/01/2023 00:00,26/02/2023 00:00,P11-2023
P&V,SOUTH AREA RANGERS,SUPPLIES AND SERVICES,FENCES/GATES ETC.,2231,P120826-SERVICE-6x 30M Galvanised Wire 1.6mm,08/02/2023 00:00,271013,53.94,CE0764,CERCIS LTD T/A PRIMROSE,30/01/2023 00:00,26/02/2023 00:00,P11-2023
P&V,SOUTH AREA RANGERS,SUPPLIES AND SERVICES,FENCES/GATES ETC.,2231,P120826-SERVICE-23x 2.4mx75x75 Square Fence Posts - Class 4 S,08/02/2023 00:00,271013,344.77,CE0764,CERCIS LTD T/A PRIMROSE,30/01/2023 00:00,26/02/2023 00:00,P11-2023
P&V,SOUTH AREA RANGERS,SUPPLIES AND SERVICES,FENCES/GATES ETC.,2231,P120826-SERVICE-20x 6ft Hazel Hurdle Fence Panels Green Tie,08/02/2023 00:00,271013,1599.8,CE0764,CERCIS LTD T/A PRIMROSE,30/01/2023 00:00,26/02/2023 00:00,P11-2023
P&V,SOUTH AREA RANGERS,SUPPLIES AND SERVICES,FENCES/GATES ETC.,2231,P120765-SERVICE-Repair Height Barrier at Tottenham Marsh - Ma,21/02/2023 00:00,271199,1960,RE0094,REACT 2 IT (BUILDING & REFURBISHMENT) LTD,30/01/2023 00:00,26/02/2023 00:00,P11-2023
P&V,SOUTH AREA RANGERS,SUPPLIES AND SERVICES,FENCES/GATES ETC.,2231,P120741-SERVICE-Fence Repairs at Tottenham Marsh Car Park,21/02/2023 00:00,271335,650,JO0019,R G JOYCE,30/01/2023 00:00,26/02/2023 00:00,P11-2023
P&V,SOUTH AREA RANGERS,SUPPLIES AND SERVICES,FENCES/GATES ETC.,2231,CERCIS LTD T/A PRIMROSE,22/02/2023 00:00,271397,0,CE0764,CERCIS LTD T/A PRIMROSE,30/01/2023 00:00,26/02/2023 00:00,P11-2023
P&V,SOUTH AREA RANGERS,SUPPLIES AND SERVICES,FENCES/GATES ETC.,2231,P120946-SERVICE-Fence Repairs Waterworks Nature Reserve,26/02/2023 00:00,271498,300,JO0019,R G JOYCE,30/01/2023 00:00,26/02/2023 00:00,P11-2023
P&V,SOUTH AREA RANGERS,SUPPLIES AND SERVICES,FENCES/GATES ETC.,2231,P120946-SERVICE-Fence Repairs Leyton Marsh,26/02/2023 00:00,271498,600,JO0019,R G JOYCE,30/01/2023 00:00,26/02/2023 00:00,P11-2023
P&V,RIVER LEE COUNTRY PARK,SUPPLIES AND SERVICES,FENCES/GATES ETC.,2231,P120942-SERVICE-100x Machine Round Posts 75x1.80m,26/02/2023 00:00,271490,415,TI0164,414 TIMBER & FENCING,30/01/2023 00:00,26/02/2023 00:00,P11-2023
P&V,RIVER LEE COUNTRY PARK,SUPPLIES AND SERVICES,FENCES/GATES ETC.,2231,P120942-SERVICE-10x Gate Posts 2.1x1.75x175,26/02/2023 00:00,271490,378.4,TI0164,414 TIMBER & FENCING,30/01/2023 00:00,26/02/2023 00:00,P11-2023
P&V,RIVER LEE COUNTRY PARK,SUPPLIES AND SERVICES,FENCES/GATES ETC.,2231,P120942-SERVICE-Fencing Staples/Nails,26/02/2023 00:00,271491,75.69,TI0164,414 TIMBER & FENCING,30/01/2023 00:00,26/02/2023 00:00,P11-2023
P&V,RIVER LEE COUNTRY PARK,SUPPLIES AND SERVICES,FENCES/GATES ETC.,2231,P120861-SERVICE-Repair Height Barriers at Various Sites,26/02/2023 00:00,271549,870,BA0658,BASE FABRICATIONS LTD,30/01/2023 00:00,26/02/2023 00:00,P11-2023
,LEE VALLEY MARINA SPRINGFIELD,PREMISES RELATED EXPENDITURE,CAR PARKS/ACCESS TRACKS,2235,P120710-SERVICE-To supply 16 tonnes of MOT type 1,08/02/2023 00:00,271021,600,NI0001,A H NICHOLLS & SONS LTD,30/01/2023 00:00,26/02/2023 00:00,P11-2023
CEO,COMMERCIAL ACCOMMODATION,PREMISES RELATED EXPENDITURE,EAST HALE ALLOTMENTS,2261,P117652-SERVICE-Allotment Bins,14/02/2023 00:00,270953,129.36,CL0037,VEOLIA ES (UK) LTD,30/01/2023 00:00,26/02/2023 00:00,P11-2023
CEO,COMMERCIAL ACCOMMODATION,PREMISES RELATED EXPENDITURE,EAST HALE ALLOTMENTS,2261,P117652-SERVICE-Allotment Bins,14/02/2023 00:00,270954,3.6,CL0037,VEOLIA ES (UK) LTD,30/01/2023 00:00,26/02/2023 00:00,P11-2023
CEO,RESIDENTIAL ACCOMMODATION,PREMISES RELATED EXPENDITURE,ENERGY COSTS (ELECTRICITY),2332,11/12/22 - 10/01/23,06/02/2023 00:00,270505,-67,EO0398,E-ON NEXT ENERGY LTD,30/01/2023 00:00,26/02/2023 00:00,P11-2023
CEO,RESIDENTIAL ACCOMMODATION,PREMISES RELATED EXPENDITURE,ENERGY COSTS (ELECTRICITY),2332,11/12/22 - 10/01/23,06/02/2023 00:00,270505,14.55,EO0398,E-ON NEXT ENERGY LTD,30/01/2023 00:00,26/02/2023 00:00,P11-2023
CEO,RESIDENTIAL ACCOMMODATION,PREMISES RELATED EXPENDITURE,ENERGY COSTS (ELECTRICITY),2332,Jan-23,26/02/2023 00:00,270973,94.55,EO0398,E-ON NEXT ENERGY LTD,30/01/2023 00:00,26/02/2023 00:00,P11-2023
CEO,COMMERCIAL ACCOMMODATION,PREMISES RELATED EXPENDITURE,ENERGY COSTS (ELECTRICITY),2332,Jan-23,26/02/2023 00:00,270974,24.11,EO0398,E-ON NEXT ENERGY LTD,30/01/2023 00:00,26/02/2023 00:00,P11-2023
CEO,COMMERCIAL ACCOMMODATION,PREMISES RELATED EXPENDITURE,ENERGY COSTS (ELECTRICITY),2332,Jan-23,26/02/2023 00:00,271135,17.38,EO0398,E-ON NEXT ENERGY LTD,30/01/2023 00:00,26/02/2023 00:00,P11-2023
CEO,COMMERCIAL ACCOMMODATION,PREMISES RELATED EXPENDITURE,ENERGY COSTS (ELECTRICITY),2332,11/01/23 - 10/02/23,26/02/2023 00:00,271311,-67,EO0398,E-ON NEXT ENERGY LTD,30/01/2023 00:00,26/02/2023 00:00,P11-2023
CEO,COMMERCIAL ACCOMMODATION,PREMISES RELATED EXPENDITURE,ENERGY COSTS (ELECTRICITY),2332,11/01/23 - 10/02/23,26/02/2023 00:00,271311,14.58,EO0398,E-ON NEXT ENERGY LTD,30/01/2023 00:00,26/02/2023 00:00,P11-2023
,LEE VALLEY WATERWORKS CENTRE,PREMISES RELATED EXPENDITURE,ENERGY COSTS (ELECTRICITY),2332,Dec-22,20/02/2023 00:00,270434,1889.44,NP0123,NPOWER LIMITED,30/01/2023 00:00,26/02/2023 00:00,P11-2023
,LEE VALLEY WATERWORKS CENTRE,PREMISES RELATED EXPENDITURE,ENERGY COSTS (ELECTRICITY),2332,Jan-23,22/02/2023 00:00,271315,1149.92,NP0123,NPOWER LIMITED,30/01/2023 00:00,26/02/2023 00:00,P11-2023
P&V,LEE VALLEY FARM HOLYFIELDHALL,PREMISES RELATED EXPENDITURE,ENERGY COSTS (ELECTRICITY),2332,P121021-SERVICE-Metre Service Charge,26/02/2023 00:00,271355,64.26,WE0267,STARK CONNECT LIMITED (fmrly WPD SMART METER),30/01/2023 00:00,26/02/2023 00:00,P11-2023
P&V,CAR PARK INCOME,PREMISES RELATED EXPENDITURE,ENERGY COSTS (ELECTRICITY),2332,Jan-23,20/02/2023 00:00,271316,53.43,NP0123,NPOWER LIMITED,30/01/2023 00:00,26/02/2023 00:00,P11-2023
P&V,CAR PARK INCOME,PREMISES RELATED EXPENDITURE,ENERGY COSTS (ELECTRICITY),2332,Jan-23,20/02/2023 00:00,271317,34.65,NP0123,NPOWER LIMITED,30/01/2023 00:00,26/02/2023 00:00,P11-2023
,LV LEISURE CENTRE CAMPSITE,PREMISES RELATED EXPENDITURE,ENERGY COSTS (ELECTRICITY),2332,Dec-22,26/02/2023 00:00,271313,13894.35,NP0123,NPOWER LIMITED,30/01/2023 00:00,26/02/2023 00:00,P11-2023
,LV LEISURE CENTRE CAMPSITE,PREMISES RELATED EXPENDITURE,ENERGY COSTS (ELECTRICITY),2332,Jan-23,26/02/2023 00:00,271314,13068.32,NP0123,NPOWER LIMITED,30/01/2023 00:00,26/02/2023 00:00,P11-2023
P&V,MYDDELTON HOUSE,PREMISES RELATED EXPENDITURE,ENERGY COSTS (GAS),2333,Jan-23,26/02/2023 00:00,271388,5361.93,KE0007,KENT COUNTY COUNCIL (KCS),30/01/2023 00:00,26/02/2023 00:00,P11-2023
CEO,COMMERCIAL ACCOMMODATION,PREMISES RELATED EXPENDITURE,ENERGY COSTS (GAS),2333,18/12/22 - 17/01/23,06/02/2023 00:00,270635,9.89,BR0654,BRITISH GAS TRADING LTD,30/01/2023 00:00,26/02/2023 00:00,P11-2023
,LEE VALLEY MARINA SPRINGFIELD,PREMISES RELATED EXPENDITURE,ENERGY COSTS (GAS),2333,Jan-23,26/02/2023 00:00,271385,1480.89,KE0007,KENT COUNTY COUNCIL (KCS),30/01/2023 00:00,26/02/2023 00:00,P11-2023
,LEE VALLEY MARINA STANSTEAD,PREMISES RELATED EXPENDITURE,ENERGY COSTS (GAS),2333,Jan-23,26/02/2023 00:00,271387,1744.3,KE0007,KENT COUNTY COUNCIL (KCS),30/01/2023 00:00,26/02/2023 00:00,P11-2023
,LEE VALLEY CAMPSITE,PREMISES RELATED EXPENDITURE,ENERGY COSTS (GAS),2333,Jan-23,26/02/2023 00:00,271384,1852.89,KE0007,KENT COUNTY COUNCIL (KCS),30/01/2023 00:00,26/02/2023 00:00,P11-2023
,LEE VALLEY CARAVAN PARK,PREMISES RELATED EXPENDITURE,ENERGY COSTS (GAS),2333,P120930-SERVICE-Gas delivery,15/02/2023 00:00,271176,10321.78,AV0327,AVANTI GAS LIMITED,30/01/2023 00:00,26/02/2023 00:00,P11-2023
,LEE VALLEY CARAVAN PARK,PREMISES RELATED EXPENDITURE,ENERGY COSTS (GAS),2333,P120931-SERVICE-Gas delivery,15/02/2023 00:00,271177,1341.05,AV0327,AVANTI GAS LIMITED,30/01/2023 00:00,26/02/2023 00:00,P11-2023
,LEE VALLEY CARAVAN PARK,PREMISES RELATED EXPENDITURE,ENERGY COSTS (GAS),2333,P121042-SERVICE-Gas delivery,26/02/2023 00:00,271342,5545,AV0327,AVANTI GAS LIMITED,30/01/2023 00:00,26/02/2023 00:00,P11-2023
P&V,GUNPOWDER PARK,PREMISES RELATED EXPENDITURE,ENERGY COSTS (GAS),2333,Jan-23,26/02/2023 00:00,271383,101.52,KE0007,KENT COUNTY COUNCIL (KCS),30/01/2023 00:00,26/02/2023 00:00,P11-2023
,LEE VALLEY MARINA STANSTEAD,PREMISES RELATED EXPENDITURE,RENT (EXTERNAL),2442,CANAL & RIVER TRUST,20/02/2023 00:00,271287,11875,BR0036,CANAL & RIVER TRUST,30/01/2023 00:00,26/02/2023 00:00,P11-2023
P&V,NORTH AREA RANGERS,PREMISES RELATED EXPENDITURE,RENT (EXTERNAL),2442,ROYDON PARISH COUNCIL,26/02/2023 00:00,271554,1077.48,RO0025,ROYDON PARISH COUNCIL,30/01/2023 00:00,26/02/2023 00:00,P11-2023
CEO,RESIDENTIAL ACCOMMODATION,PREMISES RELATED EXPENDITURE,PROPERTY MANAGEMT/LETTING FEES,2447,P120772-SERVICE-Railway Cottage - 6 Month Management Fee,06/02/2023 00:00,270443,750,WA0315,PAUL WALLACE ESTATE AGENTS,30/01/2023 00:00,26/02/2023 00:00,P11-2023
P&V,MYDDELTON HOUSE,PREMISES RELATED EXPENDITURE,WATER,2555,Jan-23,15/02/2023 00:00,271172,1527.84,CA0625,CASTLE WATER LIMITED,30/01/2023 00:00,26/02/2023 00:00,P11-2023
,LEE VALLEY MARINA SPRINGFIELD,PREMISES RELATED EXPENDITURE,WATER,2555,Jan-23,08/02/2023 00:00,270977,1251.02,CA0625,CASTLE WATER LIMITED,30/01/2023 00:00,26/02/2023 00:00,P11-2023
,LEE VALLEY MARINA SPRINGFIELD,PREMISES RELATED EXPENDITURE,WATER,2555,Jan-23,08/02/2023 00:00,270977,1862.84,CA0625,CASTLE WATER LIMITED,30/01/2023 00:00,26/02/2023 00:00,P11-2023
,LEE VALLEY MARINA STANSTEAD,PREMISES RELATED EXPENDITURE,WATER,2555,Jan-23,14/02/2023 00:00,270980,122.24,CA0625,CASTLE WATER LIMITED,30/01/2023 00:00,26/02/2023 00:00,P11-2023
,LEE VALLEY MARINA STANSTEAD,PREMISES RELATED EXPENDITURE,WATER,2555,Jan-23,14/02/2023 00:00,270980,130.84,CA0625,CASTLE WATER LIMITED,30/01/2023 00:00,26/02/2023 00:00,P11-2023
,LEE VALLEY WATERWORKS CENTRE,PREMISES RELATED EXPENDITURE,WATER,2555,Jan-23,21/02/2023 00:00,270981,127.31,CA0625,CASTLE WATER LIMITED,30/01/2023 00:00,26/02/2023 00:00,P11-2023
,LEE VALLEY CAMPSITE,PREMISES RELATED EXPENDITURE,WATER,2555,Jan-23,08/02/2023 00:00,270978,1752.84,CA0625,CASTLE WATER LIMITED,30/01/2023 00:00,26/02/2023 00:00,P11-2023
,LEE VALLEY CARAVAN PARK,PREMISES RELATED EXPENDITURE,WATER,2555,Jan-23,08/02/2023 00:00,270979,2740.98,CA0625,CASTLE WATER LIMITED,30/01/2023 00:00,26/02/2023 00:00,P11-2023
,LEE VALLEY CARAVAN PARK,PREMISES RELATED EXPENDITURE,WATER,2555,Jan-23,08/02/2023 00:00,270979,4240.57,CA0625,CASTLE WATER LIMITED,30/01/2023 00:00,26/02/2023 00:00,P11-2023
,LV LEISURE CENTRE CAMPSITE,PREMISES RELATED EXPENDITURE,WATER,2555,Jan-23,08/02/2023 00:00,270975,34.17,CA0625,CASTLE WATER LIMITED,30/01/2023 00:00,26/02/2023 00:00,P11-2023
,LV LEISURE CENTRE CAMPSITE,PREMISES RELATED EXPENDITURE,WATER,2555,Jan-23,08/02/2023 00:00,270975,33.58,CA0625,CASTLE WATER LIMITED,30/01/2023 00:00,26/02/2023 00:00,P11-2023
,LV LEISURE CENTRE CAMPSITE,PREMISES RELATED EXPENDITURE,WATER,2555,Jan-23,08/02/2023 00:00,270976,721.87,CA0625,CASTLE WATER LIMITED,30/01/2023 00:00,26/02/2023 00:00,P11-2023
,LV LEISURE CENTRE CAMPSITE,PREMISES RELATED EXPENDITURE,WATER,2555,Jan-23,08/02/2023 00:00,270976,787.51,CA0625,CASTLE WATER LIMITED,30/01/2023 00:00,26/02/2023 00:00,P11-2023
,LEE VALLEY MARINA SPRINGFIELD,PREMISES RELATED EXPENDITURE,CLEANING & DOMESTIC SUPPLIES,2666,"P119940-SERVICE-Site cleaning Oct,Nov,Dec,Jan",06/02/2023 00:00,270813,972.31,MA0015,MAYFAIR CLEANING COMPANY LIMITED,30/01/2023 00:00,26/02/2023 00:00,P11-2023
,LEE VALLEY MARINA SPRINGFIELD,PREMISES RELATED EXPENDITURE,CLEANING & DOMESTIC SUPPLIES,2666,P120799-SERVICE-To supply items as requested,15/02/2023 00:00,271090,337.87,HY0043,HYGIENE SYSTEMS LTD,30/01/2023 00:00,26/02/2023 00:00,P11-2023
,LEE VALLEY MARINA STANSTEAD,PREMISES RELATED EXPENDITURE,CLEANING & DOMESTIC SUPPLIES,2666,P120662-SERVICE-initial toilet rolls  Jan 23,26/02/2023 00:00,271580,97.5,IN0012,INITIAL WASHROOM HYGIENE,30/01/2023 00:00,26/02/2023 00:00,P11-2023
P&V,RIVER LEE COUNTRY PARK,PREMISES RELATED EXPENDITURE,CLEANING & DOMESTIC SUPPLIES,2666,P120696-SERVICE-1x Microfibre Cloths Pk10 - PS8511,06/02/2023 00:00,270797,13,TH0008,JKL SOLUTIONS LTD,30/01/2023 00:00,26/02/2023 00:00,P11-2023
P&V,RIVER LEE COUNTRY PARK,PREMISES RELATED EXPENDITURE,CLEANING & DOMESTIC SUPPLIES,2666,P120696-SERVICE-1x Carex Handwash - CPD34619,06/02/2023 00:00,270797,14.46,TH0008,JKL SOLUTIONS LTD,30/01/2023 00:00,26/02/2023 00:00,P11-2023
P&V,RIVER LEE COUNTRY PARK,PREMISES RELATED EXPENDITURE,CLEANING & DOMESTIC SUPPLIES,2666,P120696-SERVICE-1x Toilet Tissue 320 Sheet Pk36 - 78285CP,06/02/2023 00:00,270797,13.77,TH0008,JKL SOLUTIONS LTD,30/01/2023 00:00,26/02/2023 00:00,P11-2023
P&V,RIVER LEE COUNTRY PARK,PREMISES RELATED EXPENDITURE,CLEANING & DOMESTIC SUPPLIES,2666,P120696-SERVICE-1x Toilet Brush & Holder Sety - 52270CP,06/02/2023 00:00,270797,3.02,TH0008,JKL SOLUTIONS LTD,30/01/2023 00:00,26/02/2023 00:00,P11-2023
,LV LEISURE CENTRE CAMPSITE,PREMISES RELATED EXPENDITURE,CLEANING & DOMESTIC SUPPLIES,2666,P120758-SERVICE-cleaning products,26/02/2023 00:00,270930,297.99,HY0043,HYGIENE SYSTEMS LTD,30/01/2023 00:00,26/02/2023 00:00,P11-2023
,LV LEISURE CENTRE CAMPSITE,PREMISES RELATED EXPENDITURE,CLEANING & DOMESTIC SUPPLIES,2666,P120758-SERVICE-cleaning products,26/02/2023 00:00,271161,8,HY0043,HYGIENE SYSTEMS LTD,30/01/2023 00:00,26/02/2023 00:00,P11-2023
CEO,COMMERCIAL ACCOMMODATION,TRANSPORT RELATED EXPENDITURE,TRANSPORT RUNNING EXPENSES,3333,P120773-SERVICE-LV Forge Gas,06/02/2023 00:00,270745,19.61,CA0006,CALOR GAS LIMITED,30/01/2023 00:00,26/02/2023 00:00,P11-2023
P&V,LEE VALLEY FARM HOLYFIELDHALL,TRANSPORT RELATED EXPENDITURE,TRANSPORT RUNNING EXPENSES,3333,P118779-SERVICE-5000ltrs Red Diesel,14/02/2023 00:00,271134,4952.75,TE0052,CERTAS ENERGY UK LIMITED,30/01/2023 00:00,26/02/2023 00:00,P11-2023
P&V,LEE VALLEY FARM HOLYFIELDHALL,TRANSPORT RELATED EXPENDITURE,VEHICLE FUEL,3335,ALLSTAR BUSINESS SOLUTIONS LTD,06/02/2023 00:00,270818,151.56,AR0035,ALLSTAR BUSINESS SOLUTIONS LTD,30/01/2023 00:00,26/02/2023 00:00,P11-2023
,LEE VALLEY CAMPSITE,TRANSPORT RELATED EXPENDITURE,VEHICLE FUEL,3335,ALLSTAR BUSINESS SOLUTIONS LTD,06/02/2023 00:00,270818,62.94,AR0035,ALLSTAR BUSINESS SOLUTIONS LTD,30/01/2023 00:00,26/02/2023 00:00,P11-2023
,LEE VALLEY CARAVAN PARK,TRANSPORT RELATED EXPENDITURE,VEHICLE FUEL,3335,ALLSTAR BUSINESS SOLUTIONS LTD,06/02/2023 00:00,270818,114.86,AR0035,ALLSTAR BUSINESS SOLUTIONS LTD,30/01/2023 00:00,26/02/2023 00:00,P11-2023
P&V,SOUTH AREA RANGERS,TRANSPORT RELATED EXPENDITURE,VEHICLE FUEL,3335,ALLSTAR BUSINESS SOLUTIONS LTD,06/02/2023 00:00,270818,293.43,AR0035,ALLSTAR BUSINESS SOLUTIONS LTD,30/01/2023 00:00,26/02/2023 00:00,P11-2023
P&V,RIVER LEE COUNTRY PARK,TRANSPORT RELATED EXPENDITURE,VEHICLE FUEL,3335,ALLSTAR BUSINESS SOLUTIONS LTD,06/02/2023 00:00,270818,269.04,AR0035,ALLSTAR BUSINESS SOLUTIONS LTD,30/01/2023 00:00,26/02/2023 00:00,P11-2023
,LV LEISURE CENTRE CAMPSITE,TRANSPORT RELATED EXPENDITURE,VEHICLE FUEL,3335,ALLSTAR BUSINESS SOLUTIONS LTD,06/02/2023 00:00,270818,64.79,AR0035,ALLSTAR BUSINESS SOLUTIONS LTD,30/01/2023 00:00,26/02/2023 00:00,P11-2023
,LV LEISURE CENTRE CAMPSITE,TRANSPORT RELATED EXPENDITURE,VEHICLE FUEL,3335,ALLSTAR BUSINESS SOLUTIONS LTD,06/02/2023 00:00,270818,65.92,AR0035,ALLSTAR BUSINESS SOLUTIONS LTD,30/01/2023 00:00,26/02/2023 00:00,P11-2023
P&V,SOUTH AREA RANGERS,TRANSPORT RELATED EXPENDITURE,VEHICLE REPAIRS & MAINTENANCE,3338,P120870-SERVICE-Vehilce Repairs - LT71 HPO,14/02/2023 00:00,271024,310.78,OL0059,OLIVER LANDPOWER LIMITED,30/01/2023 00:00,26/02/2023 00:00,P11-2023
P&V,SOUTH AREA RANGERS,TRANSPORT RELATED EXPENDITURE,VEHICLE REPAIRS & MAINTENANCE,3338,P120874-SERVICE-Vehilce Repairs - LT71 HPN,14/02/2023 00:00,271140,686.02,OL0059,OLIVER LANDPOWER LIMITED,30/01/2023 00:00,26/02/2023 00:00,P11-2023
P&V,SOUTH AREA RANGERS,TRANSPORT RELATED EXPENDITURE,VEHICLE REPAIRS & MAINTENANCE,3338,VEHICLE MAINTENANCE,14/02/2023 00:00,271164,30,FI0001,DIRECTOR OF FINANCE - CASH,30/01/2023 00:00,26/02/2023 00:00,P11-2023
P&V,SOUTH AREA RANGERS,TRANSPORT RELATED EXPENDITURE,VEHICLE REPAIRS & MAINTENANCE,3338,VEHICLE MAINTENANCE,14/02/2023 00:00,271164,25,FI0001,DIRECTOR OF FINANCE - CASH,30/01/2023 00:00,26/02/2023 00:00,P11-2023
P&V,SOUTH AREA RANGERS,TRANSPORT RELATED EXPENDITURE,VEHICLE REPAIRS & MAINTENANCE,3338,VEHICLE MAINTENANCE,14/02/2023 00:00,271164,30,FI0001,DIRECTOR OF FINANCE - CASH,30/01/2023 00:00,26/02/2023 00:00,P11-2023
P&V,RIVER LEE COUNTRY PARK,TRANSPORT RELATED EXPENDITURE,VEHICLE REPAIRS & MAINTENANCE,3338,P120121-SERVICE-2x New Tyres - GL16WJZ,14/02/2023 00:00,271144,137,AD0016,ADVANCE TYRE SERVICE,30/01/2023 00:00,26/02/2023 00:00,P11-2023
P&V,RIVER LEE COUNTRY PARK,TRANSPORT RELATED EXPENDITURE,VEHICLE REPAIRS & MAINTENANCE,3338,P120544-SERVICE-Puncture Repairs - EY20TJZ,14/02/2023 00:00,271144,10,AD0016,ADVANCE TYRE SERVICE,30/01/2023 00:00,26/02/2023 00:00,P11-2023
P&V,VOLUNTEERS (L&E),TRANSPORT RELATED EXPENDITURE,TRAVELLING EXPENSES,3344,TRAVEL EXPENSES 04/05/22-25/01/23,22/02/2023 00:00,271354,93.8,WR0363,JONATHAN WRIGHT,30/01/2023 00:00,26/02/2023 00:00,P11-2023
P&V,VOLUNTEERS (L&E),TRANSPORT RELATED EXPENDITURE,TRAVELLING EXPENSES,3344,TRAVEL & PARKING EXPENSES 02/08/22-25/01/23,22/02/2023 00:00,271378,78.68,CH0761,MRS J C CHANDLER,30/01/2023 00:00,26/02/2023 00:00,P11-2023
,LEE VALLEY MARINA SPRINGFIELD,SUPPLIES AND SERVICES,EQUIPMENT & MATERIALS,4111,P119843-SERVICE-PPE as requested,26/02/2023 00:00,271392,153.63,SA0008,SAFETEC DIRECT LTD,30/01/2023 00:00,26/02/2023 00:00,P11-2023
,LEE VALLEY CAMPSITE,SUPPLIES AND SERVICES,EQUIPMENT & MATERIALS,4111,P120731-SERVICE-Equipment & Materials,07/02/2023 00:00,270808,27.49,AM0406,AMAZON PAYMENTS UK LIMITED,30/01/2023 00:00,26/02/2023 00:00,P11-2023
,LEE VALLEY CAMPSITE,SUPPLIES AND SERVICES,EQUIPMENT & MATERIALS,4111,P120731-SERVICE-Equipment & Materials,07/02/2023 00:00,270809,64.16,AM0406,AMAZON PAYMENTS UK LIMITED,30/01/2023 00:00,26/02/2023 00:00,P11-2023
,LEE VALLEY CAMPSITE,SUPPLIES AND SERVICES,EQUIPMENT & MATERIALS,4111,P120731-SERVICE-Equipment & Materials,07/02/2023 00:00,270810,17.02,AM0406,AMAZON PAYMENTS UK LIMITED,30/01/2023 00:00,26/02/2023 00:00,P11-2023
,LEE VALLEY CAMPSITE,SUPPLIES AND SERVICES,EQUIPMENT & MATERIALS,4111,P120958-SERVICE-Site materials & equipment,21/02/2023 00:00,271320,59.85,SC0057,SCREWFIX DIRECT LTD,30/01/2023 00:00,26/02/2023 00:00,P11-2023
,LEE VALLEY CAMPSITE,SUPPLIES AND SERVICES,EQUIPMENT & MATERIALS,4111,P119820-SERVICE-Site repairs/maintenace,26/02/2023 00:00,271361,14.15,SC0057,SCREWFIX DIRECT LTD,30/01/2023 00:00,26/02/2023 00:00,P11-2023
,LEE VALLEY CARAVAN PARK,SUPPLIES AND SERVICES,EQUIPMENT & MATERIALS,4111,P120882-SERVICE-Outdoor screws,14/02/2023 00:00,270994,49.6,SC0057,SCREWFIX DIRECT LTD,30/01/2023 00:00,26/02/2023 00:00,P11-2023
,LEE VALLEY CARAVAN PARK,SUPPLIES AND SERVICES,EQUIPMENT & MATERIALS,4111,P120883-SERVICE-Countersink,14/02/2023 00:00,270995,20.29,SC0057,SCREWFIX DIRECT LTD,30/01/2023 00:00,26/02/2023 00:00,P11-2023
,LEE VALLEY CARAVAN PARK,SUPPLIES AND SERVICES,EQUIPMENT & MATERIALS,4111,P120801-SERVICE-Posts for car parking and rubber matting,14/02/2023 00:00,271106,118.3,ES0413,ESE DIRECT,30/01/2023 00:00,26/02/2023 00:00,P11-2023
,LEE VALLEY CARAVAN PARK,SUPPLIES AND SERVICES,EQUIPMENT & MATERIALS,4111,P120801-SERVICE-Posts for car parking and rubber matting,14/02/2023 00:00,271108,35.4,ES0413,ESE DIRECT,30/01/2023 00:00,26/02/2023 00:00,P11-2023
,LEE VALLEY CARAVAN PARK,SUPPLIES AND SERVICES,EQUIPMENT & MATERIALS,4111,P120884-SERVICE-ES LED A60,14/02/2023 00:00,271124,16.63,SC0057,SCREWFIX DIRECT LTD,30/01/2023 00:00,26/02/2023 00:00,P11-2023
,LEE VALLEY CARAVAN PARK,SUPPLIES AND SERVICES,EQUIPMENT & MATERIALS,4111,P120885-SERVICE-Sanitary silicone,14/02/2023 00:00,271141,34.15,SC0057,SCREWFIX DIRECT LTD,30/01/2023 00:00,26/02/2023 00:00,P11-2023
,LEE VALLEY CARAVAN PARK,SUPPLIES AND SERVICES,EQUIPMENT & MATERIALS,4111,P120886-SERVICE-Outdoor screws,14/02/2023 00:00,271142,17.49,SC0057,SCREWFIX DIRECT LTD,30/01/2023 00:00,26/02/2023 00:00,P11-2023
,LEE VALLEY CARAVAN PARK,SUPPLIES AND SERVICES,EQUIPMENT & MATERIALS,4111,P120928-SERVICE-Lever lock handles,15/02/2023 00:00,271154,12.83,SC0057,SCREWFIX DIRECT LTD,30/01/2023 00:00,26/02/2023 00:00,P11-2023
,LEE VALLEY CARAVAN PARK,SUPPLIES AND SERVICES,EQUIPMENT & MATERIALS,4111,"P120929-SERVICE-Gloves, brushes, lubricant",15/02/2023 00:00,271155,38.38,SC0057,SCREWFIX DIRECT LTD,30/01/2023 00:00,26/02/2023 00:00,P11-2023
,LEE VALLEY CARAVAN PARK,SUPPLIES AND SERVICES,EQUIPMENT & MATERIALS,4111,"P120933-SERVICE-Cutting discs, telescopic pole",15/02/2023 00:00,271184,104.94,SC0057,SCREWFIX DIRECT LTD,30/01/2023 00:00,26/02/2023 00:00,P11-2023
,LEE VALLEY CARAVAN PARK,SUPPLIES AND SERVICES,EQUIPMENT & MATERIALS,4111,P120935-SERVICE-Lever lock handle,15/02/2023 00:00,271185,38.48,SC0057,SCREWFIX DIRECT LTD,30/01/2023 00:00,26/02/2023 00:00,P11-2023
,LEE VALLEY CARAVAN PARK,SUPPLIES AND SERVICES,EQUIPMENT & MATERIALS,4111,"P120936-SERVICE-Lubricant, paint, bucket",15/02/2023 00:00,271200,145.55,SC0057,SCREWFIX DIRECT LTD,30/01/2023 00:00,26/02/2023 00:00,P11-2023
,LEE VALLEY CARAVAN PARK,SUPPLIES AND SERVICES,EQUIPMENT & MATERIALS,4111,P121044-SERVICE-Hinge cutter and screws,26/02/2023 00:00,271390,12.74,SC0057,SCREWFIX DIRECT LTD,30/01/2023 00:00,26/02/2023 00:00,P11-2023
,LEE VALLEY CARAVAN PARK,SUPPLIES AND SERVICES,EQUIPMENT & MATERIALS,4111,P121019-SERVICE-10 Post for in between HH Car Parking Bays,26/02/2023 00:00,271551,118.3,ES0413,ESE DIRECT,30/01/2023 00:00,26/02/2023 00:00,P11-2023
P&V,SOUTH AREA RANGERS,SUPPLIES AND SERVICES,EQUIPMENT & MATERIALS,4111,P120742-SERVICE-1x 10 Plug Heartsease (Viola tricolor),14/02/2023 00:00,271092,8.25,NA0178,NATURESCAPE BRITISH WILD FLOWERS,30/01/2023 00:00,26/02/2023 00:00,P11-2023
P&V,SOUTH AREA RANGERS,SUPPLIES AND SERVICES,EQUIPMENT & MATERIALS,4111,P120742-SERVICE-1x 10 Plugs Lesser Calamint (Calamintha nepet,14/02/2023 00:00,271092,8.26,NA0178,NATURESCAPE BRITISH WILD FLOWERS,30/01/2023 00:00,26/02/2023 00:00,P11-2023
P&V,SOUTH AREA RANGERS,SUPPLIES AND SERVICES,EQUIPMENT & MATERIALS,4111,P120742-SERVICE-1x 10 Bulb Wild Garlic (Allium ursinum),14/02/2023 00:00,271092,5.16,NA0178,NATURESCAPE BRITISH WILD FLOWERS,30/01/2023 00:00,26/02/2023 00:00,P11-2023
P&V,SOUTH AREA RANGERS,SUPPLIES AND SERVICES,EQUIPMENT & MATERIALS,4111,P120742-SERVICE-3x 9cm Pot Wild Clary (Salvia Verbenaca),14/02/2023 00:00,271092,9.75,NA0178,NATURESCAPE BRITISH WILD FLOWERS,30/01/2023 00:00,26/02/2023 00:00,P11-2023
P&V,SOUTH AREA RANGERS,SUPPLIES AND SERVICES,EQUIPMENT & MATERIALS,4111,P120742-SERVICE-3x 9cm Pot Wild Thyme (Thymus polytrichus),14/02/2023 00:00,271092,9.75,NA0178,NATURESCAPE BRITISH WILD FLOWERS,30/01/2023 00:00,26/02/2023 00:00,P11-2023
P&V,SOUTH AREA RANGERS,SUPPLIES AND SERVICES,EQUIPMENT & MATERIALS,4111,P120742-SERVICE-3x 9cm Pot Yellow Archangel (Lamium galeobdol,14/02/2023 00:00,271092,11.25,NA0178,NATURESCAPE BRITISH WILD FLOWERS,30/01/2023 00:00,26/02/2023 00:00,P11-2023
P&V,SOUTH AREA RANGERS,SUPPLIES AND SERVICES,EQUIPMENT & MATERIALS,4111,P120742-SERVICE-3x 9cm Pot Cowslip (Primula veris),14/02/2023 00:00,271092,9.75,NA0178,NATURESCAPE BRITISH WILD FLOWERS,30/01/2023 00:00,26/02/2023 00:00,P11-2023
P&V,SOUTH AREA RANGERS,SUPPLIES AND SERVICES,EQUIPMENT & MATERIALS,4111,MATERIALS,14/02/2023 00:00,271164,20.98,FI0001,DIRECTOR OF FINANCE - CASH,30/01/2023 00:00,26/02/2023 00:00,P11-2023
P&V,SOUTH AREA RANGERS,SUPPLIES AND SERVICES,EQUIPMENT & MATERIALS,4111,P120945-SERVICE-8x Hammerite Black 2.5L,21/02/2023 00:00,271322,253.27,SC0057,SCREWFIX DIRECT LTD,30/01/2023 00:00,26/02/2023 00:00,P11-2023
P&V,SOUTH AREA RANGERS,SUPPLIES AND SERVICES,EQUIPMENT & MATERIALS,4111,P120945-SERVICE-3x Hammerite Silver 750ml,21/02/2023 00:00,271322,49.98,SC0057,SCREWFIX DIRECT LTD,30/01/2023 00:00,26/02/2023 00:00,P11-2023
P&V,SOUTH AREA RANGERS,SUPPLIES AND SERVICES,EQUIPMENT & MATERIALS,4111,"P120589-SERVICE-10x Sartra Litter Pickers 33""",21/02/2023 00:00,271344,116.6,AP0245,APS LIMITED,30/01/2023 00:00,26/02/2023 00:00,P11-2023
P&V,RIVER LEE COUNTRY PARK,SUPPLIES AND SERVICES,EQUIPMENT & MATERIALS,4111,P120663-SERVICE-2x Stihl FS 461 C-EM Brushcutter / Strimmer (,08/02/2023 00:00,271028,-44.42,JO0109,F R JONES & SON,30/01/2023 00:00,26/02/2023 00:00,P11-2023
P&V,SPORT AND LEISURE,SUPPLIES AND SERVICES,EQUIPMENT & MATERIALS,4111,P120877-SERVICE-Sofia adjustable lumbar operators chair - blu,26/02/2023 00:00,271511,189,TH0008,JKL SOLUTIONS LTD,30/01/2023 00:00,26/02/2023 00:00,P11-2023
P&V,VOLUNTEERS (L&E),SUPPLIES AND SERVICES,EQUIPMENT & MATERIALS,4111,P120518-SERVICE-F90111 30 x Sterile Finger Dressings 3.5cm X,26/02/2023 00:00,270507,9.6,ST0038,ST JOHN AMBULANCE,30/01/2023 00:00,26/02/2023 00:00,P11-2023
P&V,VOLUNTEERS (L&E),SUPPLIES AND SERVICES,EQUIPMENT & MATERIALS,4111,P120518-SERVICE-F99989 40 x Medium HSE Sterile Dressings 12cm,26/02/2023 00:00,271393,-9.6,ST0038,ST JOHN AMBULANCE,30/01/2023 00:00,26/02/2023 00:00,P11-2023
,LV LEISURE CENTRE CAMPSITE,SUPPLIES AND SERVICES,EQUIPMENT & MATERIALS,4111,P120824-SERVICE-Claw hammer,15/02/2023 00:00,270617,3.74,SC0057,SCREWFIX DIRECT LTD,30/01/2023 00:00,26/02/2023 00:00,P11-2023
,LV LEISURE CENTRE CAMPSITE,SUPPLIES AND SERVICES,EQUIPMENT & MATERIALS,4111,"P120828-SERVICE-knife,olt,nails,paint",08/02/2023 00:00,270647,27.95,BQ0164,TRADE UK ACCOUNT,30/01/2023 00:00,26/02/2023 00:00,P11-2023
,LV LEISURE CENTRE CAMPSITE,SUPPLIES AND SERVICES,EQUIPMENT & MATERIALS,4111,P120809-SERVICE-Teepee Edmonton,14/02/2023 00:00,270972,141.67,AM0406,AMAZON PAYMENTS UK LIMITED,30/01/2023 00:00,26/02/2023 00:00,P11-2023
,LV LEISURE CENTRE CAMPSITE,SUPPLIES AND SERVICES,EQUIPMENT & MATERIALS,4111,P120934-SERVICE-EC Tractor Parts,21/02/2023 00:00,271019,18.28,DO0027,ERNEST DOE & SONS LTD,30/01/2023 00:00,26/02/2023 00:00,P11-2023
,LV LEISURE CENTRE CAMPSITE,SUPPLIES AND SERVICES,EQUIPMENT & MATERIALS,4111,P120872-SERVICE-Purchase of Cushman,15/02/2023 00:00,271182,3696.6,CA0698,CAMBRIDGE GOLF COMPANY,30/01/2023 00:00,26/02/2023 00:00,P11-2023
,LV LEISURE CENTRE GOLF COURSE,SUPPLIES AND SERVICES,EQUIPMENT & MATERIALS,4111,P120670-SERVICE-Vehicle repairs,14/02/2023 00:00,271020,64.28,DO0027,ERNEST DOE & SONS LTD,30/01/2023 00:00,26/02/2023 00:00,P11-2023
,LV LEISURE CENTRE GOLF COURSE,SUPPLIES AND SERVICES,EQUIPMENT & MATERIALS,4111,P120808-SERVICE-H&S signs for Golf Course,21/02/2023 00:00,271160,95,SL0528,SLAM SIGNS LTD,30/01/2023 00:00,26/02/2023 00:00,P11-2023
,LEE VALLEY CAMPSITE,SUPPLIES AND SERVICES,EQUIPMENT MAINTENANCE,4112,P120819-SERVICE-Replace Light CC6,15/02/2023 00:00,270937,70,BR0018,BRADSHAW ELECTRICAL LIMITED,30/01/2023 00:00,26/02/2023 00:00,P11-2023
,LEE VALLEY CAMPSITE,SUPPLIES AND SERVICES,EQUIPMENT MAINTENANCE,4112,P120820-SERVICE-Connect staff van Pitch 40,15/02/2023 00:00,270938,80,BR0018,BRADSHAW ELECTRICAL LIMITED,30/01/2023 00:00,26/02/2023 00:00,P11-2023
,LEE VALLEY CAMPSITE,SUPPLIES AND SERVICES,EQUIPMENT MAINTENANCE,4112,P120449-SERVICE-Servicing of hire cycles,21/02/2023 00:00,271186,524.17,HA0457,HANCOCKS CYCLES,30/01/2023 00:00,26/02/2023 00:00,P11-2023
,LEE VALLEY CARAVAN PARK,SUPPLIES AND SERVICES,EQUIPMENT MAINTENANCE,4112,P120708-SERVICE-empty blocked macerator,14/02/2023 00:00,270733,532,CO0550,CONVERT WATER LTD,30/01/2023 00:00,26/02/2023 00:00,P11-2023
,LEE VALLEY CARAVAN PARK,SUPPLIES AND SERVICES,EQUIPMENT MAINTENANCE,4112,"P120873-SERVICE-Taps, wood glue, hinges",14/02/2023 00:00,270756,187.61,SC0057,SCREWFIX DIRECT LTD,30/01/2023 00:00,26/02/2023 00:00,P11-2023
,LEE VALLEY CARAVAN PARK,SUPPLIES AND SERVICES,EQUIPMENT MAINTENANCE,4112,"P120873-SERVICE-Taps, wood glue, hinges",14/02/2023 00:00,270757,-166.64,SC0057,SCREWFIX DIRECT LTD,30/01/2023 00:00,26/02/2023 00:00,P11-2023
,LEE VALLEY CARAVAN PARK,SUPPLIES AND SERVICES,EQUIPMENT MAINTENANCE,4112,P120769-SERVICE-Trailor service,14/02/2023 00:00,270886,693.27,TO0071,G T TOWING,30/01/2023 00:00,26/02/2023 00:00,P11-2023
,LEE VALLEY CARAVAN PARK,SUPPLIES AND SERVICES,EQUIPMENT MAINTENANCE,4112,P120876-SERVICE-Hot tub testing,14/02/2023 00:00,270915,121.72,KI0090,KINGFISHER ENVIRONMENTAL SERVICES LTD,30/01/2023 00:00,26/02/2023 00:00,P11-2023
,LEE VALLEY CARAVAN PARK,SUPPLIES AND SERVICES,EQUIPMENT MAINTENANCE,4112,P120878-SERVICE-Replace lamp in post by HH61,14/02/2023 00:00,270939,70,BR0018,BRADSHAW ELECTRICAL LIMITED,30/01/2023 00:00,26/02/2023 00:00,P11-2023
,LEE VALLEY CARAVAN PARK,SUPPLIES AND SERVICES,EQUIPMENT MAINTENANCE,4112,P120805-SERVICE-Cycle Servicing,26/02/2023 00:00,271305,576.67,HA0457,HANCOCKS CYCLES,30/01/2023 00:00,26/02/2023 00:00,P11-2023
,LEE VALLEY CARAVAN PARK,SUPPLIES AND SERVICES,EQUIPMENT MAINTENANCE,4112,P121043-SERVICE-Fence paint,26/02/2023 00:00,271362,145.78,SC0057,SCREWFIX DIRECT LTD,30/01/2023 00:00,26/02/2023 00:00,P11-2023
P&V,SOUTH AREA RANGERS,SUPPLIES AND SERVICES,EQUIPMENT MAINTENANCE,4112,P120548-SERVICE-Repair Hedge Trimmer,21/02/2023 00:00,271330,85.62,AP0245,APS LIMITED,30/01/2023 00:00,26/02/2023 00:00,P11-2023
P&V,RIVER LEE COUNTRY PARK,SUPPLIES AND SERVICES,EQUIPMENT MAINTENANCE,4112,P120779-SERVICE-Repair Brushcutter,07/02/2023 00:00,270931,385,NA0168,NAZEING GARDEN MACHINERY,30/01/2023 00:00,26/02/2023 00:00,P11-2023
P&V,RIVER LEE COUNTRY PARK,SUPPLIES AND SERVICES,EQUIPMENT MAINTENANCE,4112,REFER TO COMP REF 270765,26/02/2023 00:00,271488,0,BH0581,BHW GROUP,30/01/2023 00:00,26/02/2023 00:00,P11-2023
,LV LEISURE CENTRE CAMPSITE,SUPPLIES AND SERVICES,EQUIPMENT MAINTENANCE,4112,P120325-SERVICE-Equipment Repairs,26/02/2023 00:00,270823,955,GE0440,GTEC'S,30/01/2023 00:00,26/02/2023 00:00,P11-2023
,LV LEISURE CENTRE CAMPSITE,SUPPLIES AND SERVICES,EQUIPMENT MAINTENANCE,4112,P120325-SERVICE-Equipment Repairs,26/02/2023 00:00,270823,845,GE0440,GTEC'S,30/01/2023 00:00,26/02/2023 00:00,P11-2023
,LV LEISURE CENTRE CAMPSITE,SUPPLIES AND SERVICES,EQUIPMENT MAINTENANCE,4112,P120770-SERVICE-RVTV CCTV REPAIR,26/02/2023 00:00,270949,472.45,RV0035,RVTV SECURITY GROUP LTD,30/01/2023 00:00,26/02/2023 00:00,P11-2023
,LV LEISURE CENTRE CAMPSITE,SUPPLIES AND SERVICES,EQUIPMENT MAINTENANCE,4112,P120890-SERVICE-Sawn carcassing,14/02/2023 00:00,271139,27.36,LE0012,LEASIDE TIMBER & BUILDERS MERCHANTS LTD,30/01/2023 00:00,26/02/2023 00:00,P11-2023
,LV LEISURE CENTRE CAMPSITE,SUPPLIES AND SERVICES,EQUIPMENT MAINTENANCE,4112,P121001-SERVICE-paint filler frame silicone oil putty,26/02/2023 00:00,271152,66.25,BQ0164,TRADE UK ACCOUNT,30/01/2023 00:00,26/02/2023 00:00,P11-2023
,LV LEISURE CENTRE CAMPSITE,SUPPLIES AND SERVICES,EQUIPMENT MAINTENANCE,4112,P121002-SERVICE-2 hook up cables,26/02/2023 00:00,271156,46.65,SC0057,SCREWFIX DIRECT LTD,30/01/2023 00:00,26/02/2023 00:00,P11-2023
,LV LEISURE CENTRE CAMPSITE,SUPPLIES AND SERVICES,EQUIPMENT MAINTENANCE,4112,P120999-SERVICE-bike servicing,26/02/2023 00:00,271187,231.67,HA0457,HANCOCKS CYCLES,30/01/2023 00:00,26/02/2023 00:00,P11-2023
,LV LEISURE CENTRE CAMPSITE,SUPPLIES AND SERVICES,EQUIPMENT MAINTENANCE,4112,P120997-SERVICE-euro lock and delivery,26/02/2023 00:00,271391,17.14,SC0057,SCREWFIX DIRECT LTD,30/01/2023 00:00,26/02/2023 00:00,P11-2023
,LV LEISURE CENTRE CAMPSITE,SUPPLIES AND SERVICES,EQUIPMENT MAINTENANCE,4112,P121034-SERVICE-ANNUAL BIKE SERVICES,26/02/2023 00:00,271583,227.5,HA0457,HANCOCKS CYCLES,30/01/2023 00:00,26/02/2023 00:00,P11-2023
R&B,INFORMATION TECHNOLOGY,SUPPLIES AND SERVICES,IT CORE SYSTEMS,4113,P119782-SERVICE-Monthly fees PAYware Ocius Pos,07/02/2023 00:00,270608,118.32,CO0440,VERIFONE SERVICES UK & IRELAND LTD,30/01/2023 00:00,26/02/2023 00:00,P11-2023
R&B,INFORMATION TECHNOLOGY,SUPPLIES AND SERVICES,IT CORE SYSTEMS,4113,P119782-SERVICE-Monthly fees PAYware Ocius Pos,07/02/2023 00:00,270609,828.24,CO0440,VERIFONE SERVICES UK & IRELAND LTD,30/01/2023 00:00,26/02/2023 00:00,P11-2023
R&B,INFORMATION TECHNOLOGY,SUPPLIES AND SERVICES,IT CORE SYSTEMS,4113,P120784-SERVICE-CIPHR Payroll for up to 330 Employees to Feb,14/02/2023 00:00,270805,569.58,CI0721,CIPHR,30/01/2023 00:00,26/02/2023 00:00,P11-2023
R&B,INFORMATION TECHNOLOGY,SUPPLIES AND SERVICES,IT CORE SYSTEMS,4113,P120848-SERVICE-Parktracker base module annual maintenance fe,21/02/2023 00:00,271110,2300,JA0050,JAMM SOLUTIONS LTD,30/01/2023 00:00,26/02/2023 00:00,P11-2023
R&B,INFORMATION TECHNOLOGY,SUPPLIES AND SERVICES,IT CORE SYSTEMS,4113,P121018-SERVICE-CIPHR Payroll March 2023 up to 330 employees,26/02/2023 00:00,271492,569.58,CI0721,CIPHR,30/01/2023 00:00,26/02/2023 00:00,P11-2023
R&B,INFORMATION TECHNOLOGY,SUPPLIES AND SERVICES,IT NETWORK & TELECOMS COSTS,4114,P117871-SERVICE-Monthly SIP Apr 22-Mar 23,08/02/2023 00:00,270922,150.16,FR0131,VOICEFLEX LTD,30/01/2023 00:00,26/02/2023 00:00,P11-2023
R&B,INFORMATION TECHNOLOGY,SUPPLIES AND SERVICES,IT NETWORK & TELECOMS COSTS,4114,P120838-SERVICE-MPLS for all sites Jan 23,14/02/2023 00:00,270944,8682.86,PP0200,PPSNET LIMITED,30/01/2023 00:00,26/02/2023 00:00,P11-2023
,LV LEISURE CENTRE CAMPSITE,SUPPLIES AND SERVICES,EQUIPMENT HIRE,4115,P120729-SERVICE-Cushman Utility Hire,14/02/2023 00:00,271123,1256,CA0698,CAMBRIDGE GOLF COMPANY,30/01/2023 00:00,26/02/2023 00:00,P11-2023
P&V,MYDDELTON HOUSE,SUPPLIES AND SERVICES,IT HARDWARE & SOFTWARE COSTS,4116,ZEN INTERNET LTD,08/02/2023 00:00,270754,29.5,ZE0007,ZEN INTERNET LTD,30/01/2023 00:00,26/02/2023 00:00,P11-2023
P&V,MYDDELTON HOUSE,SUPPLIES AND SERVICES,IT HARDWARE & SOFTWARE COSTS,4116,ZEN INTERNET LTD,15/02/2023 00:00,271121,29.5,ZE0007,ZEN INTERNET LTD,30/01/2023 00:00,26/02/2023 00:00,P11-2023
R&B,INFORMATION TECHNOLOGY,SUPPLIES AND SERVICES,IT HARDWARE & SOFTWARE COSTS,4116,P120785-SERVICE-Hikvision DS-1280ZJ-DM21 Camera Mount Junctio,14/02/2023 00:00,271009,40.84,BR0650,BROADBANDBUYER.COM,30/01/2023 00:00,26/02/2023 00:00,P11-2023
R&B,INFORMATION TECHNOLOGY,SUPPLIES AND SERVICES,IT HARDWARE & SOFTWARE COSTS,4116,"P120785-SERVICE-Hikvision DS-2CD2386G2-IU AcuSense, Pro EasyI",14/02/2023 00:00,271009,490.68,BR0650,BROADBANDBUYER.COM,30/01/2023 00:00,26/02/2023 00:00,P11-2023
R&B,INFORMATION TECHNOLOGY,SUPPLIES AND SERVICES,IT HARDWARE & SOFTWARE COSTS,4116,P120843-SERVICE-Cloud Backup & Recovery for Microsoft 365,14/02/2023 00:00,271027,35,IQ0022,IQUAL,30/01/2023 00:00,26/02/2023 00:00,P11-2023
R&B,INFORMATION TECHNOLOGY,SUPPLIES AND SERVICES,IT HARDWARE & SOFTWARE COSTS,4116,P120843-SERVICE-Mimecast S1Email Filitering Service per Mailb,14/02/2023 00:00,271027,400,IQ0022,IQUAL,30/01/2023 00:00,26/02/2023 00:00,P11-2023
R&B,INFORMATION TECHNOLOGY,SUPPLIES AND SERVICES,IT HARDWARE & SOFTWARE COSTS,4116,"P120843-SERVICE-Datto RMM Device Licence, Qty 220, unit price",14/02/2023 00:00,271027,418,IQ0022,IQUAL,30/01/2023 00:00,26/02/2023 00:00,P11-2023
R&B,INFORMATION TECHNOLOGY,SUPPLIES AND SERVICES,IT HARDWARE & SOFTWARE COSTS,4116,"P120843-SERVICE-CyberFox AutoElevate, qty 30, unit price 2.00",14/02/2023 00:00,271027,60,IQ0022,IQUAL,30/01/2023 00:00,26/02/2023 00:00,P11-2023
,LEE VALLEY MARINA SPRINGFIELD,SUPPLIES AND SERVICES,IT HARDWARE & SOFTWARE COSTS,4116,P120920-SERVICE-Annual Service Maintenance Fee Feb 23,15/02/2023 00:00,271145,139.26,WI0209,WIFI SPARK LIMITED,30/01/2023 00:00,26/02/2023 00:00,P11-2023
,LEE VALLEY MARINA SPRINGFIELD,SUPPLIES AND SERVICES,IT HARDWARE & SOFTWARE COSTS,4116,ZEN INTERNET LTD,15/02/2023 00:00,271188,38,ZE0007,ZEN INTERNET LTD,30/01/2023 00:00,26/02/2023 00:00,P11-2023
,LEE VALLEY MARINA STANSTEAD,SUPPLIES AND SERVICES,IT HARDWARE & SOFTWARE COSTS,4116,P120920-SERVICE-Annual Service Maintenance Fee Feb 23,15/02/2023 00:00,271145,218.36,WI0209,WIFI SPARK LIMITED,30/01/2023 00:00,26/02/2023 00:00,P11-2023
,LEE VALLEY MARINA STANSTEAD,SUPPLIES AND SERVICES,IT HARDWARE & SOFTWARE COSTS,4116,ZEN INTERNET LTD,15/02/2023 00:00,271189,31.32,ZE0007,ZEN INTERNET LTD,30/01/2023 00:00,26/02/2023 00:00,P11-2023
,LEE VALLEY CAMPSITE,SUPPLIES AND SERVICES,IT HARDWARE & SOFTWARE COSTS,4116,P120920-SERVICE-Annual Service Maintenance Fee Feb 23,15/02/2023 00:00,271145,218.92,WI0209,WIFI SPARK LIMITED,30/01/2023 00:00,26/02/2023 00:00,P11-2023
,LEE VALLEY CARAVAN PARK,SUPPLIES AND SERVICES,IT HARDWARE & SOFTWARE COSTS,4116,P120837-SERVICE-Fibre Connection Feb 2023,15/02/2023 00:00,270945,835,PP0200,PPSNET LIMITED,30/01/2023 00:00,26/02/2023 00:00,P11-2023
,LEE VALLEY CARAVAN PARK,SUPPLIES AND SERVICES,IT HARDWARE & SOFTWARE COSTS,4116,P120920-SERVICE-Annual Service Maintenance Fee Feb 23,15/02/2023 00:00,271145,310.65,WI0209,WIFI SPARK LIMITED,30/01/2023 00:00,26/02/2023 00:00,P11-2023
,LV LEISURE CENTRE CAMPSITE,SUPPLIES AND SERVICES,IT HARDWARE & SOFTWARE COSTS,4116,P120920-SERVICE-Annual Service Maintenance Fee Feb 23,15/02/2023 00:00,271145,163.42,WI0209,WIFI SPARK LIMITED,30/01/2023 00:00,26/02/2023 00:00,P11-2023
,LEE VALLEY MARINA SPRINGFIELD,SUPPLIES AND SERVICES,IT MAINTENANCE AGREEMENTS,4119,P120246-SERVICE-Support & Data Nov 22-Mar 23,06/02/2023 00:00,270905,80.24,CY0653,CYBERTILL,30/01/2023 00:00,26/02/2023 00:00,P11-2023
,LEE VALLEY MARINA STANSTEAD,SUPPLIES AND SERVICES,IT MAINTENANCE AGREEMENTS,4119,P120246-SERVICE-Support & Data Nov 22 - Mar23,06/02/2023 00:00,270905,80.29,CY0653,CYBERTILL,30/01/2023 00:00,26/02/2023 00:00,P11-2023
,LEE VALLEY CAMPSITE,SUPPLIES AND SERVICES,IT MAINTENANCE AGREEMENTS,4119,P119809-SERVICE-Monthly Subscrption Nov 22 - Mar 23,22/02/2023 00:00,271138,145.5,NE0218,NETGUIDES LIMITED,30/01/2023 00:00,26/02/2023 00:00,P11-2023
,LEE VALLEY CARAVAN PARK,SUPPLIES AND SERVICES,IT MAINTENANCE AGREEMENTS,4119,P119809-SERVICE-Monthly Subscriptions Nov 22 - Mar 23,22/02/2023 00:00,271138,145.5,NE0218,NETGUIDES LIMITED,30/01/2023 00:00,26/02/2023 00:00,P11-2023
P&V,ALMOST WILD CAMPSITE,SUPPLIES AND SERVICES,IT MAINTENANCE AGREEMENTS,4119,P119809-SERVICE-Monthly Subscrption Nov 22 - Mar 23,22/02/2023 00:00,271138,145.5,NE0218,NETGUIDES LIMITED,30/01/2023 00:00,26/02/2023 00:00,P11-2023
,LV LEISURE CENTRE CAMPSITE,SUPPLIES AND SERVICES,IT MAINTENANCE AGREEMENTS,4119,P119809-SERVICE-Monthly Subscrption Nov 22 - Mar 23,22/02/2023 00:00,271138,145.5,NE0218,NETGUIDES LIMITED,30/01/2023 00:00,26/02/2023 00:00,P11-2023
,LV LEISURE CENTRE GOLF COURSE,SUPPLIES AND SERVICES,IT MAINTENANCE AGREEMENTS,4119,P120841-SERVICE-Digitickets Services January 2023,15/02/2023 00:00,271000,426.65,DI0304,DIGITAL TICKETING SYSTEMS LTD (DIGITICKETS),30/01/2023 00:00,26/02/2023 00:00,P11-2023
P&V,SOUTH AREA RANGERS,SUPPLIES AND SERVICES,MATERIALS (LOCKS),4124,LOCKS,14/02/2023 00:00,271164,9.5,FI0001,DIRECTOR OF FINANCE - CASH,30/01/2023 00:00,26/02/2023 00:00,P11-2023
,LV LEISURE CENTRE CAMPSITE,SUPPLIES AND SERVICES,MATERIALS (LOCKS),4124,P120688-SERVICE-Delivery,06/02/2023 00:00,270806,12,LO0020,LOCK AND KEY SERVICES,30/01/2023 00:00,26/02/2023 00:00,P11-2023
,LV LEISURE CENTRE CAMPSITE,SUPPLIES AND SERVICES,MATERIALS (LOCKS),4124,P120688-SERVICE-ASSA Lock & Key - C1-1-4,06/02/2023 00:00,270806,106.98,LO0020,LOCK AND KEY SERVICES,30/01/2023 00:00,26/02/2023 00:00,P11-2023
,LEE VALLEY CARAVAN PARK,SUPPLIES AND SERVICES,MATERIALS (GROUNDS MAINT),4125,P120813-SERVICE-Dog Waste Bins,14/02/2023 00:00,271107,195.9,ES0413,ESE DIRECT,30/01/2023 00:00,26/02/2023 00:00,P11-2023
,LEE VALLEY CARAVAN PARK,SUPPLIES AND SERVICES,MATERIALS (GROUNDS MAINT),4125,P120813-SERVICE-Dog Waste Bins,14/02/2023 00:00,271150,12.55,ES0413,ESE DIRECT,30/01/2023 00:00,26/02/2023 00:00,P11-2023
,LV LEISURE CENTRE CAMPSITE,SUPPLIES AND SERVICES,MATERIALS (GROUNDS MAINT),4125,P120830-SERVICE-equipment maintenance,08/02/2023 00:00,270895,135.32,AP0245,APS LIMITED,30/01/2023 00:00,26/02/2023 00:00,P11-2023
,LV LEISURE CENTRE CAMPSITE,SUPPLIES AND SERVICES,MATERIALS (GROUNDS MAINT),4125,P120831-SERVICE-equipment maintenance,08/02/2023 00:00,270896,138.11,AP0245,APS LIMITED,30/01/2023 00:00,26/02/2023 00:00,P11-2023
,LEE VALLEY CARAVAN PARK,SUPPLIES AND SERVICES,MATERIALS (PLANTS & SHRUBS),4126,P120806-SERVICE-30 x 3ft Laurels for Pecky Pods,21/02/2023 00:00,271016,499.75,CL0093,CLOCKHOUSE NURSERY,30/01/2023 00:00,26/02/2023 00:00,P11-2023
P&V,MYDDELTON HOUSE GARDENS,SUPPLIES AND SERVICES,MATERIALS (PLANTS & SHRUBS),4126,P120569-SERVICE-tamar seeds order jan 23,26/02/2023 00:00,271489,1.35,TA0591,TAMAR ORGANICS,30/01/2023 00:00,26/02/2023 00:00,P11-2023
,LEE VALLEY MARINA SPRINGFIELD,SUPPLIES AND SERVICES,MATERIALS (TOOLS & PLANT),4127,P120975-SERVICE-6 x Clarke 5 Tonne Bottle Jack,26/02/2023 00:00,271503,136.14,MA0004,MACHINE MART LIMITED,30/01/2023 00:00,26/02/2023 00:00,P11-2023
,LEE VALLEY MARINA SPRINGFIELD,SUPPLIES AND SERVICES,MATERIALS (TOOLS & PLANT),4127,P120975-SERVICE-Clarke 4 socket cable code 010815326,26/02/2023 00:00,271503,46.79,MA0004,MACHINE MART LIMITED,30/01/2023 00:00,26/02/2023 00:00,P11-2023
,STANSTEAD RECHARGEABLE WORKS,SUPPLIES AND SERVICES,MATERIALS (TOOLS & PLANT),4127,P120691-SERVICE-bearing,21/02/2023 00:00,270936,28.63,AS0036,ASAP SUPPLIES,30/01/2023 00:00,26/02/2023 00:00,P11-2023
,STANSTEAD RECHARGEABLE WORKS,SUPPLIES AND SERVICES,MATERIALS (TOOLS & PLANT),4127,P120691-SERVICE-extra for delivery,21/02/2023 00:00,270936,5,AS0036,ASAP SUPPLIES,30/01/2023 00:00,26/02/2023 00:00,P11-2023
,STANSTEAD RECHARGEABLE WORKS,SUPPLIES AND SERVICES,MATERIALS (TOOLS & PLANT),4127,P120811-SERVICE-tractor training pt2 + regs + certs,14/02/2023 00:00,271008,450,SA0137,SAFFRON WALDEN AGRICULTURAL TRAINING GROUP,30/01/2023 00:00,26/02/2023 00:00,P11-2023
,STANSTEAD RECHARGEABLE WORKS,SUPPLIES AND SERVICES,MATERIALS (TOOLS & PLANT),4127,P120810-SERVICE-matt c srewfix bits,15/02/2023 00:00,271143,23.71,SC0057,SCREWFIX DIRECT LTD,30/01/2023 00:00,26/02/2023 00:00,P11-2023
,STANSTEAD RECHARGEABLE WORKS,SUPPLIES AND SERVICES,MATERIALS (TOOLS & PLANT),4127,P120810-SERVICE-rods for JJ x 5,15/02/2023 00:00,271143,13,SC0057,SCREWFIX DIRECT LTD,30/01/2023 00:00,26/02/2023 00:00,P11-2023
,STANSTEAD RECHARGEABLE WORKS,SUPPLIES AND SERVICES,MATERIALS (TOOLS & PLANT),4127,P120927-SERVICE-w/s misc items feb 23,22/02/2023 00:00,271321,163.18,SC0057,SCREWFIX DIRECT LTD,30/01/2023 00:00,26/02/2023 00:00,P11-2023
,STANSTEAD RECHARGEABLE WORKS,SUPPLIES AND SERVICES,MATERIALS (ENG OTHER),4130,PERFECT WELDING,06/02/2023 00:00,270914,-1598.48,WE0257,PERFECT WELDING,30/01/2023 00:00,26/02/2023 00:00,P11-2023
,STANSTEAD RECHARGEABLE WORKS,SUPPLIES AND SERVICES,MATERIALS (ENG OTHER),4130,PERFECT WELDING,06/02/2023 00:00,270914,1488.48,WE0257,PERFECT WELDING,30/01/2023 00:00,26/02/2023 00:00,P11-2023
,STANSTEAD RECHARGEABLE WORKS,SUPPLIES AND SERVICES,MATERIALS (ENG OTHER),4130,PERFECT WELDING,06/02/2023 00:00,270914,110,WE0257,PERFECT WELDING,30/01/2023 00:00,26/02/2023 00:00,P11-2023
,STANSTEAD RECHARGEABLE WORKS,SUPPLIES AND SERVICES,MATERIALS (ENG OTHER),4130,P120695-SERVICE-welding equipment 7 materials,06/02/2023 00:00,270914,1598.48,WE0257,PERFECT WELDING,30/01/2023 00:00,26/02/2023 00:00,P11-2023
,STANSTEAD RECHARGEABLE WORKS,SUPPLIES AND SERVICES,MATERIALS (ENG OTHER),4130,P120314-SERVICE-bearing,14/02/2023 00:00,270934,28.63,AS0036,ASAP SUPPLIES,30/01/2023 00:00,26/02/2023 00:00,P11-2023
,STANSTEAD RECHARGEABLE WORKS,SUPPLIES AND SERVICES,MATERIALS (ENG OTHER),4130,P120792-SERVICE-vetus repair seal,14/02/2023 00:00,270998,20.21,AS0036,ASAP SUPPLIES,30/01/2023 00:00,26/02/2023 00:00,P11-2023
,STANSTEAD RECHARGEABLE WORKS,SUPPLIES AND SERVICES,MATERIALS (ENG OTHER),4130,P120926-SERVICE-workshop part,22/02/2023 00:00,271306,150,TH0642,THOMAS PRECISION ENGINEERS,30/01/2023 00:00,26/02/2023 00:00,P11-2023
P&V,ALMOST WILD CAMPSITE,SUPPLIES AND SERVICES,MATERIALS (MEDICAL),4132,P121020-SERVICE-Eye Wash Station,26/02/2023 00:00,271541,17.4,FI0215,VALUE PRODUCTS LTD,30/01/2023 00:00,26/02/2023 00:00,P11-2023
P&V,LEE VALLEY FARM HOLYFIELDHALL,SUPPLIES AND SERVICES,FEED,4133,P120854-SERVICE-Optima/Prime Rearer,14/02/2023 00:00,270900,12408.48,BO0246,FOR FARMERS UK LTD,30/01/2023 00:00,26/02/2023 00:00,P11-2023
P&V,LEE VALLEY FARM HOLYFIELDHALL,SUPPLIES AND SERVICES,FEED,4133,P120855-SERVICE-Boosterlac,14/02/2023 00:00,270901,1703,BO0246,FOR FARMERS UK LTD,30/01/2023 00:00,26/02/2023 00:00,P11-2023
P&V,LEE VALLEY FARM HOLYFIELDHALL,SUPPLIES AND SERVICES,FEED,4133,P120856-SERVICE-Maxcare Dairy,14/02/2023 00:00,270902,657.15,BO0246,FOR FARMERS UK LTD,30/01/2023 00:00,26/02/2023 00:00,P11-2023
P&V,LEE VALLEY FARM HOLYFIELDHALL,SUPPLIES AND SERVICES,FEED,4133,P120858-SERVICE-Nutrimol,14/02/2023 00:00,271003,3292.6,BO0246,FOR FARMERS UK LTD,30/01/2023 00:00,26/02/2023 00:00,P11-2023
P&V,LEE VALLEY FARM HOLYFIELDHALL,SUPPLIES AND SERVICES,FEED,4133,P120979-SERVICE-Selcoplus,22/02/2023 00:00,271157,4809.4,BO0246,FOR FARMERS UK LTD,30/01/2023 00:00,26/02/2023 00:00,P11-2023
P&V,LEE VALLEY FARM HOLYFIELDHALL,SUPPLIES AND SERVICES,FEED,4133,P121022-SERVICE-LV Dairy Meal,26/02/2023 00:00,271477,5868.74,HE0449,HEYGATES COUNTRY FEEDS LTD,30/01/2023 00:00,26/02/2023 00:00,P11-2023
P&V,LEE VALLEY FARM HOLYFIELDHALL,SUPPLIES AND SERVICES,DAIRY SUNDRIES,4138,P119870-SERVICE-Animal Removal,06/02/2023 00:00,270801,154,MA0074,W MARTIN & SON LIMITED,30/01/2023 00:00,26/02/2023 00:00,P11-2023
P&V,LEE VALLEY FARM HOLYFIELDHALL,SUPPLIES AND SERVICES,DAIRY SUNDRIES,4138,P119870-SERVICE-Animal Removal,06/02/2023 00:00,270824,54,MA0074,W MARTIN & SON LIMITED,30/01/2023 00:00,26/02/2023 00:00,P11-2023
P&V,LEE VALLEY FARM HOLYFIELDHALL,SUPPLIES AND SERVICES,DAIRY SUNDRIES,4138,P120857-SERVICE-Animal Removal,14/02/2023 00:00,270908,125,MA0074,W MARTIN & SON LIMITED,30/01/2023 00:00,26/02/2023 00:00,P11-2023
P&V,LEE VALLEY FARM HOLYFIELDHALL,SUPPLIES AND SERVICES,DAIRY SUNDRIES,4138,P117958-SERVICE-Liquid Nitrogen,14/02/2023 00:00,271014,85,GE0005,GENUS BREEDING LTD,30/01/2023 00:00,26/02/2023 00:00,P11-2023
P&V,LEE VALLEY FARM HOLYFIELDHALL,SUPPLIES AND SERVICES,DAIRY SUNDRIES,4138,P120443-SERVICE-Dairy Sundries,21/02/2023 00:00,271193,234.58,MI0023,MILL DAIRY SERVICES,30/01/2023 00:00,26/02/2023 00:00,P11-2023
,LV CAMPSITE CARAVAN SALES,SUPPLIES AND SERVICES,MISCELLANEOUS CARAVAN COSTS,4174,P120728-SERVICE-Introduction DW 98,06/02/2023 00:00,270803,2200,LO0459,LONDON LODGES UK,30/01/2023 00:00,26/02/2023 00:00,P11-2023
,LV CAMPSITE CARAVAN SALES,SUPPLIES AND SERVICES,MISCELLANEOUS CARAVAN COSTS,4174,P120728-SERVICE-Introduction SC 02,06/02/2023 00:00,270804,2200,LO0459,LONDON LODGES UK,30/01/2023 00:00,26/02/2023 00:00,P11-2023
,LEE VALLEY CARAVAN PARK,SUPPLIES AND SERVICES,MISCELLANEOUS CARAVAN COSTS,4174,P120331-SERVICE-Replacement Boiler,14/02/2023 00:00,271148,1500,SO0400,SOUTHERN GREEN SERVICES LIMITED,30/01/2023 00:00,26/02/2023 00:00,P11-2023
R&B,INFORMATION TECHNOLOGY,SUPPLIES AND SERVICES,CLOTHING & UNIFORMS,4225,P120981-SERVICE-LV Logo sewn in right chest & with smaller 7c,26/02/2023 00:00,271523,29.95,DI0017,DIRECT BOOT & SHOE SUPPLIES,30/01/2023 00:00,26/02/2023 00:00,P11-2023
P&V,LEE VALLEY FARM HOLYFIELDHALL,SUPPLIES AND SERVICES,CLOTHING & UNIFORMS,4225,DIRECT BOOT & SHOE SUPPLIES,14/02/2023 00:00,270794,19.49,DI0017,DIRECT BOOT & SHOE SUPPLIES,30/01/2023 00:00,26/02/2023 00:00,P11-2023
P&V,LEE VALLEY FARM HOLYFIELDHALL,SUPPLIES AND SERVICES,CLOTHING & UNIFORMS,4225,DIRECT BOOT & SHOE SUPPLIES,14/02/2023 00:00,270794,16.01,DI0017,DIRECT BOOT & SHOE SUPPLIES,30/01/2023 00:00,26/02/2023 00:00,P11-2023
P&V,LEE VALLEY FARM HOLYFIELDHALL,SUPPLIES AND SERVICES,CLOTHING & UNIFORMS,4225,DIRECT BOOT & SHOE SUPPLIES,14/02/2023 00:00,270794,19.49,DI0017,DIRECT BOOT & SHOE SUPPLIES,30/01/2023 00:00,26/02/2023 00:00,P11-2023
P&V,MYDDELTON HOUSE GARDENS,SUPPLIES AND SERVICES,CLOTHING & UNIFORMS,4225,DIRECT BOOT & SHOE SUPPLIES,14/02/2023 00:00,270794,1,DI0017,DIRECT BOOT & SHOE SUPPLIES,30/01/2023 00:00,26/02/2023 00:00,P11-2023
P&V,MYDDELTON HOUSE GARDENS,SUPPLIES AND SERVICES,CLOTHING & UNIFORMS,4225,DIRECT BOOT & SHOE SUPPLIES,14/02/2023 00:00,270794,44,DI0017,DIRECT BOOT & SHOE SUPPLIES,30/01/2023 00:00,26/02/2023 00:00,P11-2023
P&V,SOUTH AREA RANGERS,SUPPLIES AND SERVICES,CLOTHING & UNIFORMS,4225,P120625-SERVICE-4x Technical Light Work Gloves - Husqvarna,21/02/2023 00:00,271324,70,JO0109,F R JONES & SON,30/01/2023 00:00,26/02/2023 00:00,P11-2023
P&V,SOUTH AREA RANGERS,SUPPLIES AND SERVICES,CLOTHING & UNIFORMS,4225,P120625-SERVICE-1 x Chainsaw Boots (Class 1),21/02/2023 00:00,271324,233.09,JO0109,F R JONES & SON,30/01/2023 00:00,26/02/2023 00:00,P11-2023
P&V,WILDLIFE DISCOVERY CENTRE,SUPPLIES AND SERVICES,CLOTHING & UNIFORMS,4225,DIRECT BOOT & SHOE SUPPLIES,14/02/2023 00:00,270794,14,DI0017,DIRECT BOOT & SHOE SUPPLIES,30/01/2023 00:00,26/02/2023 00:00,P11-2023
P&V,WILDLIFE DISCOVERY CENTRE,SUPPLIES AND SERVICES,CLOTHING & UNIFORMS,4225,DIRECT BOOT & SHOE SUPPLIES,14/02/2023 00:00,270794,12,DI0017,DIRECT BOOT & SHOE SUPPLIES,30/01/2023 00:00,26/02/2023 00:00,P11-2023
P&V,WILDLIFE DISCOVERY CENTRE,SUPPLIES AND SERVICES,CLOTHING & UNIFORMS,4225,DIRECT BOOT & SHOE SUPPLIES,14/02/2023 00:00,270794,15,DI0017,DIRECT BOOT & SHOE SUPPLIES,30/01/2023 00:00,26/02/2023 00:00,P11-2023
P&V,WILDLIFE DISCOVERY CENTRE,SUPPLIES AND SERVICES,CLOTHING & UNIFORMS,4225,DIRECT BOOT & SHOE SUPPLIES,14/02/2023 00:00,270794,3.48,DI0017,DIRECT BOOT & SHOE SUPPLIES,30/01/2023 00:00,26/02/2023 00:00,P11-2023
P&V,RIVER LEE COUNTRY PARK,SUPPLIES AND SERVICES,CLOTHING & UNIFORMS,4225,DIRECT BOOT & SHOE SUPPLIES,14/02/2023 00:00,270794,33,DI0017,DIRECT BOOT & SHOE SUPPLIES,30/01/2023 00:00,26/02/2023 00:00,P11-2023
P&V,VOLUNTEERS (L&E),SUPPLIES AND SERVICES,CLOTHING & UNIFORMS,4225,P120704-SERVICE-24 x 4199 Black Brushed Heavy Cap - With LV L,14/02/2023 00:00,270794,132,DI0017,DIRECT BOOT & SHOE SUPPLIES,30/01/2023 00:00,26/02/2023 00:00,P11-2023
P&V,VOLUNTEERS (L&E),SUPPLIES AND SERVICES,CLOTHING & UNIFORMS,4225,DIRECT BOOT & SHOE SUPPLIES,14/02/2023 00:00,270794,55,DI0017,DIRECT BOOT & SHOE SUPPLIES,30/01/2023 00:00,26/02/2023 00:00,P11-2023
P&V,VOLUNTEERS (L&E),SUPPLIES AND SERVICES,CLOTHING & UNIFORMS,4225,DIRECT BOOT & SHOE SUPPLIES,14/02/2023 00:00,270794,-132,DI0017,DIRECT BOOT & SHOE SUPPLIES,30/01/2023 00:00,26/02/2023 00:00,P11-2023
P&V,VOLUNTEERS (L&E),SUPPLIES AND SERVICES,CLOTHING & UNIFORMS,4225,DIRECT BOOT & SHOE SUPPLIES,14/02/2023 00:00,270794,-15,DI0017,DIRECT BOOT & SHOE SUPPLIES,30/01/2023 00:00,26/02/2023 00:00,P11-2023
P&V,VOLUNTEERS (L&E),SUPPLIES AND SERVICES,CLOTHING & UNIFORMS,4225,DIRECT BOOT & SHOE SUPPLIES,14/02/2023 00:00,270794,-15,DI0017,DIRECT BOOT & SHOE SUPPLIES,30/01/2023 00:00,26/02/2023 00:00,P11-2023
P&V,VOLUNTEERS (L&E),SUPPLIES AND SERVICES,CLOTHING & UNIFORMS,4225,P120704-SERVICE-1 x L UN019 Black Full Zip Fleeces with Sewn,14/02/2023 00:00,270794,15,DI0017,DIRECT BOOT & SHOE SUPPLIES,30/01/2023 00:00,26/02/2023 00:00,P11-2023
P&V,VOLUNTEERS (L&E),SUPPLIES AND SERVICES,CLOTHING & UNIFORMS,4225,DIRECT BOOT & SHOE SUPPLIES,14/02/2023 00:00,270794,-19.49,DI0017,DIRECT BOOT & SHOE SUPPLIES,30/01/2023 00:00,26/02/2023 00:00,P11-2023
P&V,VOLUNTEERS (L&E),SUPPLIES AND SERVICES,CLOTHING & UNIFORMS,4225,DIRECT BOOT & SHOE SUPPLIES,14/02/2023 00:00,270794,-19.49,DI0017,DIRECT BOOT & SHOE SUPPLIES,30/01/2023 00:00,26/02/2023 00:00,P11-2023
P&V,VOLUNTEERS (L&E),SUPPLIES AND SERVICES,CLOTHING & UNIFORMS,4225,DIRECT BOOT & SHOE SUPPLIES,14/02/2023 00:00,270794,-19.49,DI0017,DIRECT BOOT & SHOE SUPPLIES,30/01/2023 00:00,26/02/2023 00:00,P11-2023
P&V,VOLUNTEERS (L&E),SUPPLIES AND SERVICES,CLOTHING & UNIFORMS,4225,P120704-SERVICE-1 x Size L KK403 Mens Kustom Kit Polo with Se,14/02/2023 00:00,270794,19.49,DI0017,DIRECT BOOT & SHOE SUPPLIES,30/01/2023 00:00,26/02/2023 00:00,P11-2023
P&V,VOLUNTEERS (L&E),SUPPLIES AND SERVICES,CLOTHING & UNIFORMS,4225,P120704-SERVICE-1 x M UN019 Black Full Zip Fleeces with Sewn,14/02/2023 00:00,270794,15,DI0017,DIRECT BOOT & SHOE SUPPLIES,30/01/2023 00:00,26/02/2023 00:00,P11-2023
P&V,VOLUNTEERS (L&E),SUPPLIES AND SERVICES,CLOTHING & UNIFORMS,4225,DIRECT BOOT & SHOE SUPPLIES,14/02/2023 00:00,270794,-12,DI0017,DIRECT BOOT & SHOE SUPPLIES,30/01/2023 00:00,26/02/2023 00:00,P11-2023
P&V,VOLUNTEERS (L&E),SUPPLIES AND SERVICES,CLOTHING & UNIFORMS,4225,P120704-SERVICE-1 x Size M KK403 Mens Kustom Kit Polo with Se,14/02/2023 00:00,270794,19.49,DI0017,DIRECT BOOT & SHOE SUPPLIES,30/01/2023 00:00,26/02/2023 00:00,P11-2023
P&V,VOLUNTEERS (L&E),SUPPLIES AND SERVICES,CLOTHING & UNIFORMS,4225,P120704-SERVICE-1 x Size S KK403 Mens Kustom Kit Polo with Se,14/02/2023 00:00,270794,19.49,DI0017,DIRECT BOOT & SHOE SUPPLIES,30/01/2023 00:00,26/02/2023 00:00,P11-2023
P&V,VOLUNTEERS (L&E),SUPPLIES AND SERVICES,CLOTHING & UNIFORMS,4225,P120704-SERVICE-1 x 36inch Regular TR505 Uneek Cargo Trouser,14/02/2023 00:00,270794,12,DI0017,DIRECT BOOT & SHOE SUPPLIES,30/01/2023 00:00,26/02/2023 00:00,P11-2023
,LV LEISURE CENTRE GOLF COURSE,SUPPLIES AND SERVICES,CLOTHING & UNIFORMS,4225,P120823-SERVICE-Safety boots,15/02/2023 00:00,270617,47.5,SC0057,SCREWFIX DIRECT LTD,30/01/2023 00:00,26/02/2023 00:00,P11-2023
CEO,PROPERTY,SUPPLIES AND SERVICES,OFFICE EXPENSES,4311,P120775-SERVICE-Red & Black A3 Lined Notebook Pack of 5 (JDJ9,14/02/2023 00:00,270929,38.03,TH0008,JKL SOLUTIONS LTD,30/01/2023 00:00,26/02/2023 00:00,P11-2023
CEO,PROPERTY,SUPPLIES AND SERVICES,OFFICE EXPENSES,4311,P120775-SERVICE-Calculator,14/02/2023 00:00,270929,6.36,TH0008,JKL SOLUTIONS LTD,30/01/2023 00:00,26/02/2023 00:00,P11-2023
CEO,PROPERTY,SUPPLIES AND SERVICES,OFFICE EXPENSES,4311,P120775-SERVICE-Red & Black A4 Lined Notebook Pack of 5 (JDL9,14/02/2023 00:00,270929,51.45,TH0008,JKL SOLUTIONS LTD,30/01/2023 00:00,26/02/2023 00:00,P11-2023
,LEE VALLEY MARINA STANSTEAD,SUPPLIES AND SERVICES,OFFICE EXPENSES,4311,P120624-SERVICE-JKL Misc Office Stationery,06/02/2023 00:00,270575,39.2,TH0008,JKL SOLUTIONS LTD,30/01/2023 00:00,26/02/2023 00:00,P11-2023
,LEE VALLEY MARINA STANSTEAD,SUPPLIES AND SERVICES,OFFICE EXPENSES,4311,P120624-SERVICE-JKL Misc Office Stationery,06/02/2023 00:00,270750,-10.1,TH0008,JKL SOLUTIONS LTD,30/01/2023 00:00,26/02/2023 00:00,P11-2023
,LEE VALLEY MARINA STANSTEAD,SUPPLIES AND SERVICES,OFFICE EXPENSES,4311,P120766-SERVICE-misc stationery office,14/02/2023 00:00,270928,93,TH0008,JKL SOLUTIONS LTD,30/01/2023 00:00,26/02/2023 00:00,P11-2023
,LEE VALLEY MARINA STANSTEAD,SUPPLIES AND SERVICES,OFFICE EXPENSES,4311,P120952-SERVICE-laminator pouches and staple extractors,22/02/2023 00:00,271363,19.57,TH0008,JKL SOLUTIONS LTD,30/01/2023 00:00,26/02/2023 00:00,P11-2023
,LEE VALLEY CARAVAN PARK,SUPPLIES AND SERVICES,OFFICE EXPENSES,4311,P120694-SERVICE-Stationery supplies,14/02/2023 00:00,270742,190.01,TH0008,JKL SOLUTIONS LTD,30/01/2023 00:00,26/02/2023 00:00,P11-2023
,LEE VALLEY CARAVAN PARK,SUPPLIES AND SERVICES,OFFICE EXPENSES,4311,P120875-SERVICE-Stocktake,14/02/2023 00:00,270911,165,VE0038,VENNERS LTD,30/01/2023 00:00,26/02/2023 00:00,P11-2023
,LEE VALLEY CARAVAN PARK,SUPPLIES AND SERVICES,OFFICE EXPENSES,4311,P120844-SERVICE-Stationery,15/02/2023 00:00,271198,119.25,TH0008,JKL SOLUTIONS LTD,30/01/2023 00:00,26/02/2023 00:00,P11-2023
P&V,RIVER LEE COUNTRY PARK,SUPPLIES AND SERVICES,OFFICE EXPENSES,4311,P120696-SERVICE-1x A3 Photo Copier Paper - KF01089,06/02/2023 00:00,270797,18.38,TH0008,JKL SOLUTIONS LTD,30/01/2023 00:00,26/02/2023 00:00,P11-2023
P&V,RIVER LEE COUNTRY PARK,SUPPLIES AND SERVICES,OFFICE EXPENSES,4311,P120696-SERVICE-1x Bostik Blu Tack Pk12 - BK80108,06/02/2023 00:00,270797,23.4,TH0008,JKL SOLUTIONS LTD,30/01/2023 00:00,26/02/2023 00:00,P11-2023
P&V,RIVER LEE COUNTRY PARK,SUPPLIES AND SERVICES,OFFICE EXPENSES,4311,P120696-SERVICE-1x Post It Note Cube - 3M 23162,06/02/2023 00:00,270797,7.16,TH0008,JKL SOLUTIONS LTD,30/01/2023 00:00,26/02/2023 00:00,P11-2023
P&V,RIVER LEE COUNTRY PARK,SUPPLIES AND SERVICES,OFFICE EXPENSES,4311,P120696-SERVICE-1x Business Card Holder - KF00716,06/02/2023 00:00,270797,5.97,TH0008,JKL SOLUTIONS LTD,30/01/2023 00:00,26/02/2023 00:00,P11-2023
P&V,RIVER LEE COUNTRY PARK,SUPPLIES AND SERVICES,OFFICE EXPENSES,4311,P120696-SERVICE-3x Value X A4 Clipboard - 18267HA,06/02/2023 00:00,270797,5.34,TH0008,JKL SOLUTIONS LTD,30/01/2023 00:00,26/02/2023 00:00,P11-2023
P&V,SPORT AND LEISURE,SUPPLIES AND SERVICES,OFFICE EXPENSES,4311,P120715-SERVICE-Various stationery,06/02/2023 00:00,270753,42.02,TH0008,JKL SOLUTIONS LTD,30/01/2023 00:00,26/02/2023 00:00,P11-2023
P&V,LEE VALLEY FARM HOLYFIELDHALL,SUPPLIES AND SERVICES,SUBSCRIPTIONS,4334,P120978-SERVICE-Subscription,26/02/2023 00:00,271088,775.85,NF0042,NFU,30/01/2023 00:00,26/02/2023 00:00,P11-2023
P&V,LEE VALLEY FARM HOLYFIELDHALL,SUPPLIES AND SERVICES,SUBSCRIPTIONS,4334,P117608-SERVICE-Subs,21/02/2023 00:00,271099,414.08,NA0005,NATIONAL MILK RECORDS PLC,30/01/2023 00:00,26/02/2023 00:00,P11-2023
,LEE VALLEY CARAVAN PARK,SUPPLIES AND SERVICES,POSTAGE & MAILING,4445,P120966-SERVICE-Re delivery Charge,21/02/2023 00:00,271333,16.5,ES0413,ESE DIRECT,30/01/2023 00:00,26/02/2023 00:00,P11-2023
R&B,REVENUE SUSPENSE (AUTHORITY),SUPPLIES AND SERVICES,TELEPHONES (MOBILE),4484,Dec-22,06/02/2023 00:00,270363,488.82,GA0432,GAMMA TELECOM LTD,30/01/2023 00:00,26/02/2023 00:00,P11-2023
R&B,REVENUE SUSPENSE (AUTHORITY),SUPPLIES AND SERVICES,TELEPHONES (MOBILE),4484,Jan-23,06/02/2023 00:00,270884,916.22,VO0010,VODAFONE  LIMITED (CORPORATE),30/01/2023 00:00,26/02/2023 00:00,P11-2023
R&B,REVENUE SUSPENSE (AUTHORITY),SUPPLIES AND SERVICES,TELEPHONES (MOBILE),4484,Jan-23,22/02/2023 00:00,271101,387.66,GA0432,GAMMA TELECOM LTD,30/01/2023 00:00,26/02/2023 00:00,P11-2023
P&V,MYDDELTON HOUSE,SUPPLIES AND SERVICES,SUBSISTENCE,4501,P120866-SERVICE-Milk,14/02/2023 00:00,271091,132.46,HA0259,STUART BARTON-HAGGER LIMITED,30/01/2023 00:00,26/02/2023 00:00,P11-2023
P&V,SPORTS DEVELOPMENT GRANTS & AG,SUPPLIES AND SERVICES,HOSPITALITY,4505,GREENWICH LEISURE LTD,06/02/2023 00:00,268965,110,GR0097,GREENWICH LEISURE LTD,30/01/2023 00:00,26/02/2023 00:00,P11-2023
P&V,SPORTS DEVELOPMENT GRANTS & AG,SUPPLIES AND SERVICES,HOSPITALITY,4505,GREENWICH LEISURE LTD,06/02/2023 00:00,270897,-110,GR0097,GREENWICH LEISURE LTD,30/01/2023 00:00,26/02/2023 00:00,P11-2023
P&V,SOUTH AREA RANGERS,SUPPLIES AND SERVICES,VOLUNTEERS EXPENSES,4506,VOLUNTEERS,14/02/2023 00:00,271164,4.22,FI0001,DIRECTOR OF FINANCE - CASH,30/01/2023 00:00,26/02/2023 00:00,P11-2023
P&V,SOUTH AREA RANGERS,SUPPLIES AND SERVICES,VOLUNTEERS EXPENSES,4506,VOLUNTEERS,14/02/2023 00:00,271164,4.05,FI0001,DIRECTOR OF FINANCE - CASH,30/01/2023 00:00,26/02/2023 00:00,P11-2023
P&V,SOUTH AREA RANGERS,INTERNAL HOSPITALITY,INTERNAL HOSPITALITY,4507,SUGAR,14/02/2023 00:00,271164,1.58,FI0001,DIRECTOR OF FINANCE - CASH,30/01/2023 00:00,26/02/2023 00:00,P11-2023
P&V,FISHERIES MANAGEMENT,SUPPLIES AND SERVICES,MARKETING,4603,P120922-SERVICE-Global Birdfair - 2023,15/02/2023 00:00,271173,845.01,GL0453,GLOBAL BIRDFAIR LTD,30/01/2023 00:00,26/02/2023 00:00,P11-2023
,LEE VALLEY CAMPSITE,SUPPLIES AND SERVICES,MARKETING,4603,P120730-SERVICE-SC Accomodation & Hire,07/02/2023 00:00,270799,97.5,WA0063,WARNERS GROUP PUBLICATIONS PLC,30/01/2023 00:00,26/02/2023 00:00,P11-2023
,LEE VALLEY CAMPSITE,SUPPLIES AND SERVICES,MARKETING,4603,P120912-SERVICE-SC Uk Campsite Entry,15/02/2023 00:00,270909,89.99,UK0025,UK CAMPSITE CO UK,30/01/2023 00:00,26/02/2023 00:00,P11-2023
,LEE VALLEY CAMPSITE,SUPPLIES AND SERVICES,MARKETING,4603,P120967-SERVICE-SC WiFi Flyers HH owners,26/02/2023 00:00,271486,16.24,SO0582,SOLOPRESS,30/01/2023 00:00,26/02/2023 00:00,P11-2023
,LEE VALLEY CARAVAN PARK,SUPPLIES AND SERVICES,MARKETING,4603,P120730-SERVICE-DW Accomodation & Hire,07/02/2023 00:00,270799,97.5,WA0063,WARNERS GROUP PUBLICATIONS PLC,30/01/2023 00:00,26/02/2023 00:00,P11-2023
,LEE VALLEY CARAVAN PARK,SUPPLIES AND SERVICES,MARKETING,4603,P120967-SERVICE-DW WiFi Flers HH owners,26/02/2023 00:00,271486,16.24,SO0582,SOLOPRESS,30/01/2023 00:00,26/02/2023 00:00,P11-2023
,LV LEISURE CENTRE CAMPSITE,SUPPLIES AND SERVICES,MARKETING,4603,P120912-SERVICE-Edmonton Uk Campsite Entry Marketing,15/02/2023 00:00,270909,89.99,UK0025,UK CAMPSITE CO UK,30/01/2023 00:00,26/02/2023 00:00,P11-2023
,LEE VALLEY WATERWORKS CENTRE,SUPPLIES AND SERVICES,PEST CONTROL,4625,P120953-SERVICE-Pest Control - WaterWorks - Jan - Mar,21/02/2023 00:00,271291,130,VE0006,VERMINATE CITY & RURAL PEST CONTROL LTD,30/01/2023 00:00,26/02/2023 00:00,P11-2023
P&V,NORTH AREA RANGERS,SUPPLIES AND SERVICES,PEST CONTROL,4625,P118091-SERVICE-Supply and fit 2x Rat Bait Boxes at Dobbs Wei,14/02/2023 00:00,270375,65,VE0006,VERMINATE CITY & RURAL PEST CONTROL LTD,30/01/2023 00:00,26/02/2023 00:00,P11-2023
P&V,NORTH AREA RANGERS,SUPPLIES AND SERVICES,PEST CONTROL,4625,P117772-SERVICE-Pest Control - Ware Town Centre - Jan,26/02/2023 00:00,271302,53.34,VE0006,VERMINATE CITY & RURAL PEST CONTROL LTD,30/01/2023 00:00,26/02/2023 00:00,P11-2023
P&V,SOUTH AREA RANGERS,SUPPLIES AND SERVICES,PEST CONTROL,4625,P117769-SERVICE-Pest Control - Tottenham Marshes - Feb,26/02/2023 00:00,271294,46.67,VE0006,VERMINATE CITY & RURAL PEST CONTROL LTD,30/01/2023 00:00,26/02/2023 00:00,P11-2023
P&V,RIVER LEE COUNTRY PARK,SUPPLIES AND SERVICES,PEST CONTROL,4625,P117770-SERVICE-Pest Control - North Sites - Jan - Mar 2023,26/02/2023 00:00,271304,200,VE0006,VERMINATE CITY & RURAL PEST CONTROL LTD,30/01/2023 00:00,26/02/2023 00:00,P11-2023
R&B,FINANCE & RESOURCES MANAGEMENT,SUPPLIES AND SERVICES,DEBT RECOVERY FEES,4646,P117729-SERVICE-DEBT RECOVERY FEES 2022/2023,21/02/2023 00:00,271348,217.39,LE0069,LEGAL RECOVERIES AND COLLECTIONS LIMITED,30/01/2023 00:00,26/02/2023 00:00,P11-2023
,LEE VALLEY MARINA STANSTEAD,SUPPLIES AND SERVICES,SECURITY,4650,P120376-SERVICE-broken barrier arm fix -oval pole arm adapter,06/02/2023 00:00,270787,191.17,AI0262,AIS ( ADVANCED INTEGRATED SECURITY),30/01/2023 00:00,26/02/2023 00:00,P11-2023
,LEE VALLEY MARINA STANSTEAD,SUPPLIES AND SERVICES,SECURITY,4650,P120513-SERVICE-3 boxes paxton fobs,06/02/2023 00:00,270788,106,AI0262,AIS ( ADVANCED INTEGRATED SECURITY),30/01/2023 00:00,26/02/2023 00:00,P11-2023
P&V,SOUTH AREA RANGERS,SUPPLIES AND SERVICES,SECURITY,4650,P118178-SERVICE-Security - South of Park,26/02/2023 00:00,271395,8241.77,PA0059,PARKGUARD LTD,30/01/2023 00:00,26/02/2023 00:00,P11-2023
P&V,RIVER LEE COUNTRY PARK,SUPPLIES AND SERVICES,SECURITY,4650,P118180-SERVICE-Security - North of Park,26/02/2023 00:00,271394,5109.8,PA0059,PARKGUARD LTD,30/01/2023 00:00,26/02/2023 00:00,P11-2023
CEO,LVLC SERVICE CHARGE,SUPPLIES AND SERVICES,SECURITY,4650,P120299-SERVICE-Security,06/02/2023 00:00,270612,191.76,SA0626,SAFE SITE SECURITY SOLUTIONS LTD,30/01/2023 00:00,26/02/2023 00:00,P11-2023
CEO,LVLC SERVICE CHARGE,SUPPLIES AND SERVICES,SECURITY,4650,P120299-SERVICE-Security,06/02/2023 00:00,270814,2972.28,SA0626,SAFE SITE SECURITY SOLUTIONS LTD,30/01/2023 00:00,26/02/2023 00:00,P11-2023
CEO,LVLC SERVICE CHARGE,SUPPLIES AND SERVICES,SECURITY,4650,P119848-SERVICE-1 Hour Parkguard Patrol at Picketts Lock Adde,26/02/2023 00:00,271119,961.91,PA0059,PARKGUARD LTD,30/01/2023 00:00,26/02/2023 00:00,P11-2023
R&B,INFORMATION TECHNOLOGY,SUPPLIES AND SERVICES,OFFSITE ARCHIVED STORAGE,4667,P120956-SERVICE-January 2023 off site archive,21/02/2023 00:00,271174,371.94,DA0154,RESTORE PLC,30/01/2023 00:00,26/02/2023 00:00,P11-2023
,LV HOCKEY AND TENNIS CENTRE,SUPPLIES AND SERVICES,ENTERTAINMENT & OTHER LICENCES,4711,2021 & 2022 ANNUAL PREMISES LICENCE,15/02/2023 00:00,271210,1700,WA0005,LONDON BOROUGH OF WALTHAM FOREST,30/01/2023 00:00,26/02/2023 00:00,P11-2023
P&V,LEE VALLEY FARM HOLYFIELDHALL,THIRD PARTY PAYMENTS,VETERINARY SERVICES,4718,P120980-SERVICE-Vets,22/02/2023 00:00,271165,1813.98,HA0443,HAMPDEN VETERINARY HOSPITAL,30/01/2023 00:00,26/02/2023 00:00,P11-2023
P&V,YOUTH AND SCHOOLS,SUPPLIES AND SERVICES,ACTIVITIES (SCHOOLS),4725,P120243-SERVICE-30 x Orienteering Maps RLCP,26/02/2023 00:00,271495,30,CH0294,CHIGWELL & EPPING FOREST ORIENTEERING CLUB,30/01/2023 00:00,26/02/2023 00:00,P11-2023
P&V,MYDDLETON HSE HERITAGE CENTRE,SUPPLIES AND SERVICES,NET CATERING PURCHASES,4777,BIDFOOD,06/02/2023 00:00,270819,10.79,360001,BIDFOOD,30/01/2023 00:00,26/02/2023 00:00,P11-2023
P&V,MYDDLETON HSE HERITAGE CENTRE,SUPPLIES AND SERVICES,NET CATERING PURCHASES,4777,BIDFOOD,06/02/2023 00:00,270819,-405.63,360001,BIDFOOD,30/01/2023 00:00,26/02/2023 00:00,P11-2023
P&V,MYDDLETON HSE HERITAGE CENTRE,SUPPLIES AND SERVICES,NET CATERING PURCHASES,4777,BIDFOOD,06/02/2023 00:00,270819,394.84,360001,BIDFOOD,30/01/2023 00:00,26/02/2023 00:00,P11-2023
P&V,MYDDLETON HSE HERITAGE CENTRE,SUPPLIES AND SERVICES,NET CATERING PURCHASES,4777,P120661-SERVICE-food & drinks,06/02/2023 00:00,270819,13.64,360001,BIDFOOD,30/01/2023 00:00,26/02/2023 00:00,P11-2023
P&V,MYDDLETON HSE HERITAGE CENTRE,SUPPLIES AND SERVICES,NET CATERING PURCHASES,4777,P120554-SERVICE-Food/Drink wk 10/01/2023,06/02/2023 00:00,270819,405.63,360001,BIDFOOD,30/01/2023 00:00,26/02/2023 00:00,P11-2023
P&V,MYDDLETON HSE HERITAGE CENTRE,SUPPLIES AND SERVICES,NET CATERING PURCHASES,4777,P120429-SERVICE-Food/drink order wk comm 19 Dec,06/02/2023 00:00,270819,215.75,360001,BIDFOOD,30/01/2023 00:00,26/02/2023 00:00,P11-2023
P&V,MYDDLETON HSE HERITAGE CENTRE,SUPPLIES AND SERVICES,NET CATERING PURCHASES,4777,P120554-SERVICE-Food/Drink wk 10/01/2023,14/02/2023 00:00,271022,194.37,360001,BIDFOOD,30/01/2023 00:00,26/02/2023 00:00,P11-2023
P&V,MYDDLETON HSE HERITAGE CENTRE,SUPPLIES AND SERVICES,NET CATERING PURCHASES,4777,P119761-SERVICE-Food & Drink order week com 17 Oct 2022,14/02/2023 00:00,271022,28.95,360001,BIDFOOD,30/01/2023 00:00,26/02/2023 00:00,P11-2023
P&V,MYDDLETON HSE HERITAGE CENTRE,SUPPLIES AND SERVICES,NET CATERING PURCHASES,4777,BIDFOOD,14/02/2023 00:00,271102,174.13,360001,BIDFOOD,30/01/2023 00:00,26/02/2023 00:00,P11-2023
P&V,MYDDLETON HSE HERITAGE CENTRE,SUPPLIES AND SERVICES,NET CATERING PURCHASES,4777,P120905-SERVICE-food/drinks,14/02/2023 00:00,271102,854.84,360001,BIDFOOD,30/01/2023 00:00,26/02/2023 00:00,P11-2023
P&V,MYDDLETON HSE HERITAGE CENTRE,SUPPLIES AND SERVICES,NET CATERING PURCHASES,4777,BIDFOOD,14/02/2023 00:00,271102,-854.84,360001,BIDFOOD,30/01/2023 00:00,26/02/2023 00:00,P11-2023
P&V,MYDDLETON HSE HERITAGE CENTRE,SUPPLIES AND SERVICES,NET CATERING PURCHASES,4777,BIDFOOD,14/02/2023 00:00,271102,680.71,360001,BIDFOOD,30/01/2023 00:00,26/02/2023 00:00,P11-2023
,LEE VALLEY MARINA SPRINGFIELD,SUPPLIES AND SERVICES,TRADING AC - EXTERNAL PURCHASE,4875,P120693-SERVICE-Chandlery Stock various,06/02/2023 00:00,270643,462.24,MI0200,MIDLAND CHANDLERS LIMITED,30/01/2023 00:00,26/02/2023 00:00,P11-2023
,LEE VALLEY MARINA SPRINGFIELD,SUPPLIES AND SERVICES,TRADING AC - EXTERNAL PURCHASE,4875,P120240-SERVICE-Coal and Gas,06/02/2023 00:00,270917,-36,SM0664,KG SMITH & SON,30/01/2023 00:00,26/02/2023 00:00,P11-2023
,LEE VALLEY MARINA SPRINGFIELD,SUPPLIES AND SERVICES,TRADING AC - EXTERNAL PURCHASE,4875,P120364-SERVICE-Coal and kindling,06/02/2023 00:00,270918,2510,SM0664,KG SMITH & SON,30/01/2023 00:00,26/02/2023 00:00,P11-2023
,LEE VALLEY MARINA SPRINGFIELD,SUPPLIES AND SERVICES,TRADING AC - EXTERNAL PURCHASE,4875,P120364-SERVICE-Coal and kindling,06/02/2023 00:00,270919,390,SM0664,KG SMITH & SON,30/01/2023 00:00,26/02/2023 00:00,P11-2023
,LEE VALLEY MARINA SPRINGFIELD,SUPPLIES AND SERVICES,TRADING AC - EXTERNAL PURCHASE,4875,P120364-SERVICE-Coal and gas,06/02/2023 00:00,270919,67.5,SM0664,KG SMITH & SON,30/01/2023 00:00,26/02/2023 00:00,P11-2023
,LEE VALLEY MARINA SPRINGFIELD,SUPPLIES AND SERVICES,TRADING AC - EXTERNAL PURCHASE,4875,P120639-SERVICE-Engineering parts,07/02/2023 00:00,270933,141.2,AS0036,ASAP SUPPLIES,30/01/2023 00:00,26/02/2023 00:00,P11-2023
,LEE VALLEY MARINA SPRINGFIELD,SUPPLIES AND SERVICES,TRADING AC - EXTERNAL PURCHASE,4875,P120639-SERVICE-Engineering parts,07/02/2023 00:00,270935,39.34,AS0036,ASAP SUPPLIES,30/01/2023 00:00,26/02/2023 00:00,P11-2023
,LEE VALLEY MARINA SPRINGFIELD,SUPPLIES AND SERVICES,TRADING AC - EXTERNAL PURCHASE,4875,P120693-SERVICE-Duplicate order delivered,14/02/2023 00:00,270946,426.02,MI0200,MIDLAND CHANDLERS LIMITED,30/01/2023 00:00,26/02/2023 00:00,P11-2023
,LEE VALLEY MARINA SPRINGFIELD,SUPPLIES AND SERVICES,TRADING AC - EXTERNAL PURCHASE,4875,P120744-SERVICE-Impeller for customer's engine,21/02/2023 00:00,270947,36.06,EP0353,E P BARRUS LTD,30/01/2023 00:00,26/02/2023 00:00,P11-2023
,LEE VALLEY MARINA SPRINGFIELD,SUPPLIES AND SERVICES,TRADING AC - EXTERNAL PURCHASE,4875,P120822-SERVICE-To supply items as on quotation 1928696473,15/02/2023 00:00,271089,2569.56,AS0304,KLOECKNER METALS UK (formerly ASD METAL SERV),30/01/2023 00:00,26/02/2023 00:00,P11-2023
,LEE VALLEY MARINA SPRINGFIELD,SUPPLIES AND SERVICES,TRADING AC - EXTERNAL PURCHASE,4875,P120814-SERVICE-Chandlery Stock,14/02/2023 00:00,271093,446.53,MI0200,MIDLAND CHANDLERS LIMITED,30/01/2023 00:00,26/02/2023 00:00,P11-2023
,LEE VALLEY MARINA SPRINGFIELD,SUPPLIES AND SERVICES,TRADING AC - EXTERNAL PURCHASE,4875,P120816-SERVICE-Cable and gas fittings,21/02/2023 00:00,271095,224.73,AQ0033,AQUAFAX LIMITED,30/01/2023 00:00,26/02/2023 00:00,P11-2023
,LEE VALLEY MARINA SPRINGFIELD,SUPPLIES AND SERVICES,TRADING AC - EXTERNAL PURCHASE,4875,P120816-SERVICE-Cable and gas fittings,14/02/2023 00:00,271118,7.94,AQ0033,AQUAFAX LIMITED,30/01/2023 00:00,26/02/2023 00:00,P11-2023
,LEE VALLEY MARINA SPRINGFIELD,SUPPLIES AND SERVICES,TRADING AC - EXTERNAL PURCHASE,4875,P120281-SERVICE-Chandlery Stock fire accessories,21/02/2023 00:00,271183,164,CA0660,CALFIRE SPARELINE LIMITED,30/01/2023 00:00,26/02/2023 00:00,P11-2023
,LEE VALLEY MARINA SPRINGFIELD,SUPPLIES AND SERVICES,TRADING AC - EXTERNAL PURCHASE,4875,P120816-SERVICE-Cable and gas fittings,21/02/2023 00:00,271196,3.97,AQ0033,AQUAFAX LIMITED,30/01/2023 00:00,26/02/2023 00:00,P11-2023
,LEE VALLEY MARINA SPRINGFIELD,SUPPLIES AND SERVICES,TRADING AC - EXTERNAL PURCHASE,4875,P120891-SERVICE-Chandlery Stock general,21/02/2023 00:00,271308,12.72,MI0200,MIDLAND CHANDLERS LIMITED,30/01/2023 00:00,26/02/2023 00:00,P11-2023
,LEE VALLEY MARINA SPRINGFIELD,SUPPLIES AND SERVICES,TRADING AC - EXTERNAL PURCHASE,4875,P120891-SERVICE-Chandlery Stock general,21/02/2023 00:00,271309,247.96,MI0200,MIDLAND CHANDLERS LIMITED,30/01/2023 00:00,26/02/2023 00:00,P11-2023
,LEE VALLEY MARINA SPRINGFIELD,SUPPLIES AND SERVICES,TRADING AC - EXTERNAL PURCHASE,4875,P120963-SERVICE-Chandlery Stock - general,26/02/2023 00:00,271352,596.37,MI0200,MIDLAND CHANDLERS LIMITED,30/01/2023 00:00,26/02/2023 00:00,P11-2023
,LEE VALLEY MARINA SPRINGFIELD,SUPPLIES AND SERVICES,TRADING AC - EXTERNAL PURCHASE,4875,P120964-SERVICE-Gas and Plumbing parts,26/02/2023 00:00,271353,237.37,AQ0033,AQUAFAX LIMITED,30/01/2023 00:00,26/02/2023 00:00,P11-2023
,LEE VALLEY MARINA SPRINGFIELD,SUPPLIES AND SERVICES,TRADING AC - EXTERNAL PURCHASE,4875,P120764-SERVICE-Chandlery Stock - water pumps,22/02/2023 00:00,271356,345.46,AS0036,ASAP SUPPLIES,30/01/2023 00:00,26/02/2023 00:00,P11-2023
,LEE VALLEY MARINA SPRINGFIELD,SUPPLIES AND SERVICES,TRADING AC - EXTERNAL PURCHASE,4875,P120467-SERVICE-Chandlery Stock including stove,26/02/2023 00:00,271357,760,MI0200,MIDLAND CHANDLERS LIMITED,30/01/2023 00:00,26/02/2023 00:00,P11-2023
,LEE VALLEY MARINA SPRINGFIELD,SUPPLIES AND SERVICES,TRADING AC - EXTERNAL PURCHASE,4875,P120963-SERVICE-Chandlery Stock - general,26/02/2023 00:00,271485,14.8,MI0200,MIDLAND CHANDLERS LIMITED,30/01/2023 00:00,26/02/2023 00:00,P11-2023
,STANSTEAD RECHARGEABLE WORKS,SUPPLIES AND SERVICES,TRADING AC - EXTERNAL PURCHASE,4875,P120718-SERVICE-customer pump,06/02/2023 00:00,270759,156.73,AQ0033,AQUAFAX LIMITED,30/01/2023 00:00,26/02/2023 00:00,P11-2023
,STANSTEAD RECHARGEABLE WORKS,SUPPLIES AND SERVICES,TRADING AC - EXTERNAL PURCHASE,4875,P119681-SERVICE-aquafax chandlery Oct 22 items,06/02/2023 00:00,270760,8.26,AQ0033,AQUAFAX LIMITED,30/01/2023 00:00,26/02/2023 00:00,P11-2023
,STANSTEAD RECHARGEABLE WORKS,SUPPLIES AND SERVICES,TRADING AC - EXTERNAL PURCHASE,4875,P120091-SERVICE-Chandlery stock Nov 22,06/02/2023 00:00,270761,8.26,AQ0033,AQUAFAX LIMITED,30/01/2023 00:00,26/02/2023 00:00,P11-2023
,STANSTEAD RECHARGEABLE WORKS,SUPPLIES AND SERVICES,TRADING AC - EXTERNAL PURCHASE,4875,P120701-SERVICE-chandlery stock,06/02/2023 00:00,270763,517.99,MI0200,MIDLAND CHANDLERS LIMITED,30/01/2023 00:00,26/02/2023 00:00,P11-2023
,STANSTEAD RECHARGEABLE WORKS,SUPPLIES AND SERVICES,TRADING AC - EXTERNAL PURCHASE,4875,P120701-SERVICE-chandlery stock,06/02/2023 00:00,270764,322.16,MI0200,MIDLAND CHANDLERS LIMITED,30/01/2023 00:00,26/02/2023 00:00,P11-2023
,STANSTEAD RECHARGEABLE WORKS,SUPPLIES AND SERVICES,TRADING AC - EXTERNAL PURCHASE,4875,P120699-SERVICE-Elsan,06/02/2023 00:00,270766,729.61,EL0376,ELSAN LTD,30/01/2023 00:00,26/02/2023 00:00,P11-2023
,STANSTEAD RECHARGEABLE WORKS,SUPPLIES AND SERVICES,TRADING AC - EXTERNAL PURCHASE,4875,P120698-SERVICE-chandlery stock,06/02/2023 00:00,270772,21.41,AQ0033,AQUAFAX LIMITED,30/01/2023 00:00,26/02/2023 00:00,P11-2023
,STANSTEAD RECHARGEABLE WORKS,SUPPLIES AND SERVICES,TRADING AC - EXTERNAL PURCHASE,4875,P120698-SERVICE-chandlery stock,06/02/2023 00:00,270773,4.86,AQ0033,AQUAFAX LIMITED,30/01/2023 00:00,26/02/2023 00:00,P11-2023
,STANSTEAD RECHARGEABLE WORKS,SUPPLIES AND SERVICES,TRADING AC - EXTERNAL PURCHASE,4875,P120745-SERVICE-chandlery stock,06/02/2023 00:00,270811,892.87,MI0200,MIDLAND CHANDLERS LIMITED,30/01/2023 00:00,26/02/2023 00:00,P11-2023
,STANSTEAD RECHARGEABLE WORKS,SUPPLIES AND SERVICES,TRADING AC - EXTERNAL PURCHASE,4875,P120736-SERVICE-red diesel @ 0.95p per ltr,06/02/2023 00:00,270913,2090,SP0543,SPEEDY FUELS LIMITED,30/01/2023 00:00,26/02/2023 00:00,P11-2023
,STANSTEAD RECHARGEABLE WORKS,SUPPLIES AND SERVICES,TRADING AC - EXTERNAL PURCHASE,4875,P120725-SERVICE-chandlery stock,14/02/2023 00:00,270920,111.75,CA0660,CALFIRE SPARELINE LIMITED,30/01/2023 00:00,26/02/2023 00:00,P11-2023
,STANSTEAD RECHARGEABLE WORKS,SUPPLIES AND SERVICES,TRADING AC - EXTERNAL PURCHASE,4875,P120440-SERVICE-calor gas,06/02/2023 00:00,270923,805.25,SM0664,KG SMITH & SON,30/01/2023 00:00,26/02/2023 00:00,P11-2023
,STANSTEAD RECHARGEABLE WORKS,SUPPLIES AND SERVICES,TRADING AC - EXTERNAL PURCHASE,4875,KG SMITH & SON,06/02/2023 00:00,270924,565,SM0664,KG SMITH & SON,30/01/2023 00:00,26/02/2023 00:00,P11-2023
,STANSTEAD RECHARGEABLE WORKS,SUPPLIES AND SERVICES,TRADING AC - EXTERNAL PURCHASE,4875,KG SMITH & SON,06/02/2023 00:00,270924,-1331.75,SM0664,KG SMITH & SON,30/01/2023 00:00,26/02/2023 00:00,P11-2023
,STANSTEAD RECHARGEABLE WORKS,SUPPLIES AND SERVICES,TRADING AC - EXTERNAL PURCHASE,4875,KG SMITH & SON,06/02/2023 00:00,270924,766.75,SM0664,KG SMITH & SON,30/01/2023 00:00,26/02/2023 00:00,P11-2023
,STANSTEAD RECHARGEABLE WORKS,SUPPLIES AND SERVICES,TRADING AC - EXTERNAL PURCHASE,4875,P120659-SERVICE-chand stock jan 23,06/02/2023 00:00,270924,1331.75,SM0664,KG SMITH & SON,30/01/2023 00:00,26/02/2023 00:00,P11-2023
,STANSTEAD RECHARGEABLE WORKS,SUPPLIES AND SERVICES,TRADING AC - EXTERNAL PURCHASE,4875,P120314-SERVICE-chandlery stock,14/02/2023 00:00,270934,72.71,AS0036,ASAP SUPPLIES,30/01/2023 00:00,26/02/2023 00:00,P11-2023
,STANSTEAD RECHARGEABLE WORKS,SUPPLIES AND SERVICES,TRADING AC - EXTERNAL PURCHASE,4875,P120721-SERVICE-ropes,14/02/2023 00:00,270989,48.2,DS0201,DSM GROUP,30/01/2023 00:00,26/02/2023 00:00,P11-2023
,STANSTEAD RECHARGEABLE WORKS,SUPPLIES AND SERVICES,TRADING AC - EXTERNAL PURCHASE,4875,P120721-SERVICE-ropes,14/02/2023 00:00,270990,542.23,DS0201,DSM GROUP,30/01/2023 00:00,26/02/2023 00:00,P11-2023
,STANSTEAD RECHARGEABLE WORKS,SUPPLIES AND SERVICES,TRADING AC - EXTERNAL PURCHASE,4875,P120745-SERVICE-chandlery stock,14/02/2023 00:00,270996,69.31,MI0200,MIDLAND CHANDLERS LIMITED,30/01/2023 00:00,26/02/2023 00:00,P11-2023
,STANSTEAD RECHARGEABLE WORKS,SUPPLIES AND SERVICES,TRADING AC - EXTERNAL PURCHASE,4875,P120745-SERVICE-chandlery stock,21/02/2023 00:00,270997,5.81,MI0200,MIDLAND CHANDLERS LIMITED,30/01/2023 00:00,26/02/2023 00:00,P11-2023
,STANSTEAD RECHARGEABLE WORKS,SUPPLIES AND SERVICES,TRADING AC - EXTERNAL PURCHASE,4875,P120745-SERVICE-chandlery stock,21/02/2023 00:00,270997,25.65,MI0200,MIDLAND CHANDLERS LIMITED,30/01/2023 00:00,26/02/2023 00:00,P11-2023
,STANSTEAD RECHARGEABLE WORKS,SUPPLIES AND SERVICES,TRADING AC - EXTERNAL PURCHASE,4875,P120792-SERVICE-chandlery stock,14/02/2023 00:00,270998,67.36,AS0036,ASAP SUPPLIES,30/01/2023 00:00,26/02/2023 00:00,P11-2023
,STANSTEAD RECHARGEABLE WORKS,SUPPLIES AND SERVICES,TRADING AC - EXTERNAL PURCHASE,4875,P120698-SERVICE-chandlery stock,14/02/2023 00:00,270999,8.66,AQ0033,AQUAFAX LIMITED,30/01/2023 00:00,26/02/2023 00:00,P11-2023
,STANSTEAD RECHARGEABLE WORKS,SUPPLIES AND SERVICES,TRADING AC - EXTERNAL PURCHASE,4875,P120473-SERVICE-chandlery stock,26/02/2023 00:00,271002,2.43,AQ0033,AQUAFAX LIMITED,30/01/2023 00:00,26/02/2023 00:00,P11-2023
,STANSTEAD RECHARGEABLE WORKS,SUPPLIES AND SERVICES,TRADING AC - EXTERNAL PURCHASE,4875,P120226-SERVICE-chandlery stock,15/02/2023 00:00,271017,930.18,EC0394,MANBAT LTD T/AS,30/01/2023 00:00,26/02/2023 00:00,P11-2023
,STANSTEAD RECHARGEABLE WORKS,SUPPLIES AND SERVICES,TRADING AC - EXTERNAL PURCHASE,4875,MIDLAND CHANDLERS LIMITED,14/02/2023 00:00,271094,540.37,MI0200,MIDLAND CHANDLERS LIMITED,30/01/2023 00:00,26/02/2023 00:00,P11-2023
,STANSTEAD RECHARGEABLE WORKS,SUPPLIES AND SERVICES,TRADING AC - EXTERNAL PURCHASE,4875,MIDLAND CHANDLERS LIMITED,14/02/2023 00:00,271094,27.44,MI0200,MIDLAND CHANDLERS LIMITED,30/01/2023 00:00,26/02/2023 00:00,P11-2023
,STANSTEAD RECHARGEABLE WORKS,SUPPLIES AND SERVICES,TRADING AC - EXTERNAL PURCHASE,4875,MIDLAND CHANDLERS LIMITED,14/02/2023 00:00,271094,-567.81,MI0200,MIDLAND CHANDLERS LIMITED,30/01/2023 00:00,26/02/2023 00:00,P11-2023
,STANSTEAD RECHARGEABLE WORKS,SUPPLIES AND SERVICES,TRADING AC - EXTERNAL PURCHASE,4875,P120821-SERVICE-chandlery stock,14/02/2023 00:00,271094,567.81,MI0200,MIDLAND CHANDLERS LIMITED,30/01/2023 00:00,26/02/2023 00:00,P11-2023
,STANSTEAD RECHARGEABLE WORKS,SUPPLIES AND SERVICES,TRADING AC - EXTERNAL PURCHASE,4875,P120840-SERVICE-chandlery stock,14/02/2023 00:00,271096,237.7,AQ0033,AQUAFAX LIMITED,30/01/2023 00:00,26/02/2023 00:00,P11-2023
,STANSTEAD RECHARGEABLE WORKS,SUPPLIES AND SERVICES,TRADING AC - EXTERNAL PURCHASE,4875,P120821-SERVICE-chandlery stock,14/02/2023 00:00,271109,322.16,MI0200,MIDLAND CHANDLERS LIMITED,30/01/2023 00:00,26/02/2023 00:00,P11-2023
,STANSTEAD RECHARGEABLE WORKS,SUPPLIES AND SERVICES,TRADING AC - EXTERNAL PURCHASE,4875,P120840-SERVICE-chandlery stock,21/02/2023 00:00,271151,2.58,AQ0033,AQUAFAX LIMITED,30/01/2023 00:00,26/02/2023 00:00,P11-2023
,STANSTEAD RECHARGEABLE WORKS,SUPPLIES AND SERVICES,TRADING AC - EXTERNAL PURCHASE,4875,P120865-SERVICE-chandlery stock,21/02/2023 00:00,271194,22.31,AS0036,ASAP SUPPLIES,30/01/2023 00:00,26/02/2023 00:00,P11-2023
,STANSTEAD RECHARGEABLE WORKS,SUPPLIES AND SERVICES,TRADING AC - EXTERNAL PURCHASE,4875,P120865-SERVICE-chandlery stock,21/02/2023 00:00,271195,93.93,AS0036,ASAP SUPPLIES,30/01/2023 00:00,26/02/2023 00:00,P11-2023
,STANSTEAD RECHARGEABLE WORKS,SUPPLIES AND SERVICES,TRADING AC - EXTERNAL PURCHASE,4875,"P120817-SERVICE-gas, kindling, logs",26/02/2023 00:00,271338,755.2,SM0664,KG SMITH & SON,30/01/2023 00:00,26/02/2023 00:00,P11-2023
,STANSTEAD RECHARGEABLE WORKS,SUPPLIES AND SERVICES,TRADING AC - EXTERNAL PURCHASE,4875,P120940-SERVICE-white diesel  Feb 23,22/02/2023 00:00,271347,358.3,SP0543,SPEEDY FUELS LIMITED,30/01/2023 00:00,26/02/2023 00:00,P11-2023
,STANSTEAD RECHARGEABLE WORKS,SUPPLIES AND SERVICES,TRADING AC - EXTERNAL PURCHASE,4875,P120965-SERVICE-Chandlery items,26/02/2023 00:00,271351,211.93,MI0200,MIDLAND CHANDLERS LIMITED,30/01/2023 00:00,26/02/2023 00:00,P11-2023
,STANSTEAD RECHARGEABLE WORKS,SUPPLIES AND SERVICES,TRADING AC - EXTERNAL PURCHASE,4875,P121010-SERVICE-chandlery stock,26/02/2023 00:00,271536,240.08,AQ0033,AQUAFAX LIMITED,30/01/2023 00:00,26/02/2023 00:00,P11-2023
,STANSTEAD RECHARGEABLE WORKS,SUPPLIES AND SERVICES,TRADING AC - EXTERNAL PURCHASE,4875,P121012-SERVICE-chandlery stock,26/02/2023 00:00,271537,479.37,MI0200,MIDLAND CHANDLERS LIMITED,30/01/2023 00:00,26/02/2023 00:00,P11-2023
P&V,MYDDELTON HOUSE GARDENS,SUPPLIES AND SERVICES,TRADING AC - EXTERNAL PURCHASE,4875,"P120860-SERVICE-Chainsaw Trousers, Gloves & Boots/Travel Aid",14/02/2023 00:00,270932,187.46,SC0057,SCREWFIX DIRECT LTD,30/01/2023 00:00,26/02/2023 00:00,P11-2023
,LV LEISURE CENTRE CAMPSITE,SUPPLIES AND SERVICES,TRADING AC - EXTERNAL PURCHASE,4875,P120827-SERVICE-stock take,08/02/2023 00:00,270620,150,VE0038,VENNERS LTD,30/01/2023 00:00,26/02/2023 00:00,P11-2023
,LV LEISURE CENTRE CAMPSITE,SUPPLIES AND SERVICES,TRADING AC - EXTERNAL PURCHASE,4875,"P120829-SERVICE-hi vis,foil blanket",26/02/2023 00:00,270774,9.5,FI0215,VALUE PRODUCTS LTD,30/01/2023 00:00,26/02/2023 00:00,P11-2023
,LEE VALLEY CAMPSITE,SUPPLIES AND SERVICES,BOTTLED GAS,4877,P120450-SERVICE-Stock   47KG Gas cannisters,06/02/2023 00:00,270822,736.95,FL0147,FLOGAS BRITAIN LIMITED,30/01/2023 00:00,26/02/2023 00:00,P11-2023
,LEE VALLEY CAMPSITE,SUPPLIES AND SERVICES,BOTTLED GAS,4877,P120436-SERVICE-Gas Cannisters Stock,08/02/2023 00:00,271015,883.39,FL0147,FLOGAS BRITAIN LIMITED,30/01/2023 00:00,26/02/2023 00:00,P11-2023
,LEE VALLEY CAMPSITE,SUPPLIES AND SERVICES,BOTTLED GAS,4877,P121017-SERVICE-4x 13 KG,26/02/2023 00:00,271381,147.4,CA0006,CALOR GAS LIMITED,30/01/2023 00:00,26/02/2023 00:00,P11-2023
,LEE VALLEY CAMPSITE,SUPPLIES AND SERVICES,BOTTLED GAS,4877,P121017-SERVICE-2X 47KG,26/02/2023 00:00,271381,176.02,CA0006,CALOR GAS LIMITED,30/01/2023 00:00,26/02/2023 00:00,P11-2023
CEO,CHIEF EXECUTIVE,SUPPLIES AND SERVICES,UNRECONCILED COMPANY CARD EXP,4880,P ANDREWS - FEB 2023 CREDIT CARD STATEMENT,08/02/2023 00:00,270970,62,NA0007,NATWEST CARD CENTRE,30/01/2023 00:00,26/02/2023 00:00,P11-2023
P&V,MYDDELTON HOUSE,SUPPLIES AND SERVICES,UNRECONCILED COMPANY CARD EXP,4880,G FLAVIEN  - FEB 2023 CREDIT CARD STATEMENT,08/02/2023 00:00,270970,1157.7,NA0007,NATWEST CARD CENTRE,30/01/2023 00:00,26/02/2023 00:00,P11-2023
CEO,PR/COMMUNICATIONS,SUPPLIES AND SERVICES,UNRECONCILED COMPANY CARD EXP,4880,S BROMBERG  - FEB 2023 CREDIT CARD STATEMENT,08/02/2023 00:00,270970,8.38,NA0007,NATWEST CARD CENTRE,30/01/2023 00:00,26/02/2023 00:00,P11-2023
R&B,FINANCE & RESOURCES MANAGEMENT,SUPPLIES AND SERVICES,UNRECONCILED COMPANY CARD EXP,4880,L READ  - FEB 2023 CREDIT CARD STATEMENT,08/02/2023 00:00,270970,65,NA0007,NATWEST CARD CENTRE,30/01/2023 00:00,26/02/2023 00:00,P11-2023
R&B,INFORMATION TECHNOLOGY,SUPPLIES AND SERVICES,UNRECONCILED COMPANY CARD EXP,4880,S CLARK  - FEB 2023 CREDIT CARD STATEMENT,08/02/2023 00:00,270970,1394.37,NA0007,NATWEST CARD CENTRE,30/01/2023 00:00,26/02/2023 00:00,P11-2023
,LEE VALLEY MARINA SPRINGFIELD,SUPPLIES AND SERVICES,UNRECONCILED COMPANY CARD EXP,4880,T BEAN  - FEB 2023 CREDIT CARD STATEMENT,08/02/2023 00:00,270970,-323.74,NA0007,NATWEST CARD CENTRE,30/01/2023 00:00,26/02/2023 00:00,P11-2023
,LEE VALLEY MARINA SPRINGFIELD,SUPPLIES AND SERVICES,UNRECONCILED COMPANY CARD EXP,4880,L SCOTT  - FEB 2023 CREDIT CARD STATEMENT,08/02/2023 00:00,270970,40.47,NA0007,NATWEST CARD CENTRE,30/01/2023 00:00,26/02/2023 00:00,P11-2023
,LEE VALLEY MARINA STANSTEAD,SUPPLIES AND SERVICES,UNRECONCILED COMPANY CARD EXP,4880,C BAKER  - FEB 2023 CREDIT CARD STATEMENT,08/02/2023 00:00,270970,-5.46,NA0007,NATWEST CARD CENTRE,30/01/2023 00:00,26/02/2023 00:00,P11-2023
,LEE VALLEY MARINA STANSTEAD,SUPPLIES AND SERVICES,UNRECONCILED COMPANY CARD EXP,4880,J MANTON  - FEB 2023 CREDIT CARD STATEMENT,08/02/2023 00:00,270970,490.36,NA0007,NATWEST CARD CENTRE,30/01/2023 00:00,26/02/2023 00:00,P11-2023
P&V,LEE VALLEY FARM HOLYFIELDHALL,SUPPLIES AND SERVICES,UNRECONCILED COMPANY CARD EXP,4880,J PAINTER  - FEB 2023 CREDIT CARD STATEMENT,08/02/2023 00:00,270970,10,NA0007,NATWEST CARD CENTRE,30/01/2023 00:00,26/02/2023 00:00,P11-2023
,LEE VALLEY CARAVAN PARK,SUPPLIES AND SERVICES,UNRECONCILED COMPANY CARD EXP,4880,I RUSSELL  - FEB 2023 CREDIT CARD STATEMENT,08/02/2023 00:00,270970,1783.61,NA0007,NATWEST CARD CENTRE,30/01/2023 00:00,26/02/2023 00:00,P11-2023
P&V,YOUTH AND SCHOOLS,SUPPLIES AND SERVICES,UNRECONCILED COMPANY CARD EXP,4880,K WHEELER  - FEB 2023 CREDIT CARD STATEMENT,08/02/2023 00:00,270970,21.97,NA0007,NATWEST CARD CENTRE,30/01/2023 00:00,26/02/2023 00:00,P11-2023
P&V,MYDDELTON HOUSE GARDENS,SUPPLIES AND SERVICES,UNRECONCILED COMPANY CARD EXP,4880,R HARMES - FEB 2023 CREDIT CARD STATEMENT,08/02/2023 00:00,270970,141.15,NA0007,NATWEST CARD CENTRE,30/01/2023 00:00,26/02/2023 00:00,P11-2023
P&V,MYDDLETON HSE HERITAGE CENTRE,SUPPLIES AND SERVICES,UNRECONCILED COMPANY CARD EXP,4880,E BOAKO-AGGREY  - FEB 2023 CREDIT CARD STATEMENT,08/02/2023 00:00,270970,7.1,NA0007,NATWEST CARD CENTRE,30/01/2023 00:00,26/02/2023 00:00,P11-2023
P&V,BIODIVERSITY ACTION PLAN,SUPPLIES AND SERVICES,UNRECONCILED COMPANY CARD EXP,4880,C PATRICK  - FEB 2023 CREDIT CARD STATEMENT,08/02/2023 00:00,270970,359.84,NA0007,NATWEST CARD CENTRE,30/01/2023 00:00,26/02/2023 00:00,P11-2023
P&V,OPERATIONAL MANAGEMENT (L&E),SUPPLIES AND SERVICES,UNRECONCILED COMPANY CARD EXP,4880,D HUTLEY  - FEB 2023 CREDIT CARD STATEMENT,08/02/2023 00:00,270970,180.85,NA0007,NATWEST CARD CENTRE,30/01/2023 00:00,26/02/2023 00:00,P11-2023
P&V,OPERATIONAL MANAGEMENT (L&E),SUPPLIES AND SERVICES,UNRECONCILED COMPANY CARD EXP,4880,J CARNEY  - FEB 2023 CREDIT CARD STATEMENT,08/02/2023 00:00,270970,24,NA0007,NATWEST CARD CENTRE,30/01/2023 00:00,26/02/2023 00:00,P11-2023
P&V,SPORT AND LEISURE,SUPPLIES AND SERVICES,UNRECONCILED COMPANY CARD EXP,4880,A SACKETT  - FEB 2023 CREDIT CARD STATEMENT,08/02/2023 00:00,270970,458.2,NA0007,NATWEST CARD CENTRE,30/01/2023 00:00,26/02/2023 00:00,P11-2023
CEO,COMMERCIAL ACCOMMODATION,SUPPLIES AND SERVICES,OTHER EXPENSES,4899,P117468-SERVICE-Land Registry Fees,26/02/2023 00:00,271510,45,HM0032,HM LAND REGISTRY,30/01/2023 00:00,26/02/2023 00:00,P11-2023
CEO,COMMONWEALTH GAMES 2022,SUPPLIES AND SERVICES,OTHER EXPENSES,4899,P119235-SERVICE-CWG GM bank reinstatement,06/02/2023 00:00,270352,313.5,GL0214,GLENDALE GROUNDS MANAGEMENT LIMITED,30/01/2023 00:00,26/02/2023 00:00,P11-2023
CEO,COMMONWEALTH GAMES 2022,SUPPLIES AND SERVICES,OTHER EXPENSES,4899,P119233-SERVICE-CWG Cedec,26/02/2023 00:00,270353,853.81,GL0214,GLENDALE GROUNDS MANAGEMENT LIMITED,30/01/2023 00:00,26/02/2023 00:00,P11-2023
P&V,LEE VALLEY FARM HOLYFIELDHALL,SUPPLIES AND SERVICES,OTHER EXPENSES,4899,P120753-SERVICE-Chiller Unit (Hunter Model) + Extras + Delive,14/02/2023 00:00,270987,14000,FI0292,FISHER MODULAR CONSTRUCTION (UK) LTD,30/01/2023 00:00,26/02/2023 00:00,P11-2023
,LEE VALLEY CAMPSITE,SUPPLIES AND SERVICES,OTHER EXPENSES,4899,P120788-SERVICE-Venners Stocktake 13/01/23,06/02/2023 00:00,270912,165,VE0038,VENNERS LTD,30/01/2023 00:00,26/02/2023 00:00,P11-2023
P&V,RIVER LEE COUNTRY PARK,SUPPLIES AND SERVICES,OTHER EXPENSES,4899,P117481-SERVICE-LV Sculpture Trail Works,22/02/2023 00:00,271025,1225,HE0267,HEARTS OF OAK ORGANISATION,30/01/2023 00:00,26/02/2023 00:00,P11-2023
P&V,RIVER LEE COUNTRY PARK,SUPPLIES AND SERVICES,OTHER EXPENSES,4899,P117481-SERVICE-LV Sculpture Trail Works,22/02/2023 00:00,271025,20,HE0267,HEARTS OF OAK ORGANISATION,30/01/2023 00:00,26/02/2023 00:00,P11-2023
P&V,RIVER LEE COUNTRY PARK,SUPPLIES AND SERVICES,OTHER EXPENSES,4899,P117481-SERVICE-LV Sculpture Trail Works,22/02/2023 00:00,271025,175,HE0267,HEARTS OF OAK ORGANISATION,30/01/2023 00:00,26/02/2023 00:00,P11-2023
P&V,RIVER LEE COUNTRY PARK,SUPPLIES AND SERVICES,OTHER EXPENSES,4899,P117481-SERVICE-LV Sculpture Trail Works,22/02/2023 00:00,271025,1225,HE0267,HEARTS OF OAK ORGANISATION,30/01/2023 00:00,26/02/2023 00:00,P11-2023
P&V,RIVER LEE COUNTRY PARK,SUPPLIES AND SERVICES,OTHER EXPENSES,4899,P117481-SERVICE-LV Sculpture Trail Works,22/02/2023 00:00,271025,350,HE0267,HEARTS OF OAK ORGANISATION,30/01/2023 00:00,26/02/2023 00:00,P11-2023
P&V,COMMUNITY ACCESS FUND,SUPPLIES AND SERVICES,OTHER EXPENSES,4899,P120282-SERVICE-HTC quarter 3 CAF payment,21/02/2023 00:00,270446,944,GR0097,GREENWICH LEISURE LTD,30/01/2023 00:00,26/02/2023 00:00,P11-2023
P&V,COMMUNITY ACCESS FUND,SUPPLIES AND SERVICES,OTHER EXPENSES,4899,P118555-SERVICE-CAF activities VeloPark Qrt 1,21/02/2023 00:00,271331,1010,GR0097,GREENWICH LEISURE LTD,30/01/2023 00:00,26/02/2023 00:00,P11-2023
,LV LEISURE CENTRE CAMPSITE,SUPPLIES AND SERVICES,OTHER EXPENSES,4899,P120574-SERVICE-Dimitri Timesheet December,07/02/2023 00:00,270968,1140,NE0225,DIMITRI NEOPHYTOU - A/C CLOSED REFER TO HR,30/01/2023 00:00,26/02/2023 00:00,P11-2023
CEO,PROPERTY,CAPITAL EXPENDITURE,CAPITAL EXPENDITURE,4990,P120566-SERVICE-Disposal of Former Mile and Langley Nurseries,07/02/2023 00:00,270413,77625,MO0036,MONTAGU EVANS LLP,30/01/2023 00:00,26/02/2023 00:00,P11-2023
P&V,"ASSET PROTECTION, MAINT, DEVEL",CAPITAL EXPENDITURE,CAPITAL EXPENDITURE,4990,P118400-SERVICE-2 no PL7121/935 350kw FLYGT Cast Iron Submers,06/02/2023 00:00,270619,165159.62,CL0039,XYLEM WATER SOLUTIONS UK  LIMITED,30/01/2023 00:00,26/02/2023 00:00,P11-2023
P&V,"ASSET PROTECTION, MAINT, DEVEL",CAPITAL EXPENDITURE,CAPITAL EXPENDITURE,4990,P118406-SERVICE-Control System Schedule Upgrade at White Wate,06/02/2023 00:00,270921,43578.48,TO0640,TOTAL AUTOMATION AND POWER,30/01/2023 00:00,26/02/2023 00:00,P11-2023
P&V,"ASSET PROTECTION, MAINT, DEVEL",CAPITAL EXPENDITURE,CAPITAL EXPENDITURE,4990,P119031-SERVICE-remove Olympic Pump 4 to the work shop for a,26/02/2023 00:00,270925,2146,CL0039,XYLEM WATER SOLUTIONS UK  LIMITED,30/01/2023 00:00,26/02/2023 00:00,P11-2023
P&V,"ASSET PROTECTION, MAINT, DEVEL",CAPITAL EXPENDITURE,CAPITAL EXPENDITURE,4990,CAPSER,21/02/2023 00:00,271126,-4425,MO0041,CAPSER,30/01/2023 00:00,26/02/2023 00:00,P11-2023
P&V,"ASSET PROTECTION, MAINT, DEVEL",CAPITAL EXPENDITURE,CAPITAL EXPENDITURE,4990,P120289-SERVICE-Dobbs Weir Gas install Trenching and ducting,21/02/2023 00:00,271126,4425,MO0041,CAPSER,30/01/2023 00:00,26/02/2023 00:00,P11-2023
P&V,"ASSET PROTECTION, MAINT, DEVEL",CAPITAL EXPENDITURE,CAPITAL EXPENDITURE,4990,CAPSER,21/02/2023 00:00,271126,4000,MO0041,CAPSER,30/01/2023 00:00,26/02/2023 00:00,P11-2023
P&V,"ASSET PROTECTION, MAINT, DEVEL",CAPITAL EXPENDITURE,CAPITAL EXPENDITURE,4990,CAPSER,21/02/2023 00:00,271126,425,MO0041,CAPSER,30/01/2023 00:00,26/02/2023 00:00,P11-2023
P&V,"ASSET PROTECTION, MAINT, DEVEL",CAPITAL EXPENDITURE,CAPITAL EXPENDITURE,4990,CAPSER,21/02/2023 00:00,271127,-980,MO0041,CAPSER,30/01/2023 00:00,26/02/2023 00:00,P11-2023
P&V,"ASSET PROTECTION, MAINT, DEVEL",CAPITAL EXPENDITURE,CAPITAL EXPENDITURE,4990,P120795-SERVICE-DW - To take down and reposition fence on new,21/02/2023 00:00,271127,980,MO0041,CAPSER,30/01/2023 00:00,26/02/2023 00:00,P11-2023
P&V,"ASSET PROTECTION, MAINT, DEVEL",CAPITAL EXPENDITURE,CAPITAL EXPENDITURE,4990,CAPSER,21/02/2023 00:00,271127,600,MO0041,CAPSER,30/01/2023 00:00,26/02/2023 00:00,P11-2023
P&V,"ASSET PROTECTION, MAINT, DEVEL",CAPITAL EXPENDITURE,CAPITAL EXPENDITURE,4990,CAPSER,21/02/2023 00:00,271127,380,MO0041,CAPSER,30/01/2023 00:00,26/02/2023 00:00,P11-2023
P&V,"ASSET PROTECTION, MAINT, DEVEL",CAPITAL EXPENDITURE,CAPITAL EXPENDITURE,4990,CAPSER,21/02/2023 00:00,271128,250,MO0041,CAPSER,30/01/2023 00:00,26/02/2023 00:00,P11-2023
P&V,"ASSET PROTECTION, MAINT, DEVEL",CAPITAL EXPENDITURE,CAPITAL EXPENDITURE,4990,P120796-SERVICE-DW - To  take down and reposition picket fenc,21/02/2023 00:00,271128,850,MO0041,CAPSER,30/01/2023 00:00,26/02/2023 00:00,P11-2023
P&V,"ASSET PROTECTION, MAINT, DEVEL",CAPITAL EXPENDITURE,CAPITAL EXPENDITURE,4990,CAPSER,21/02/2023 00:00,271128,-850,MO0041,CAPSER,30/01/2023 00:00,26/02/2023 00:00,P11-2023
P&V,"ASSET PROTECTION, MAINT, DEVEL",CAPITAL EXPENDITURE,CAPITAL EXPENDITURE,4990,CAPSER,21/02/2023 00:00,271128,600,MO0041,CAPSER,30/01/2023 00:00,26/02/2023 00:00,P11-2023
P&V,"ASSET PROTECTION, MAINT, DEVEL",CAPITAL EXPENDITURE,CAPITAL EXPENDITURE,4990,CAPSER,21/02/2023 00:00,271129,-990,MO0041,CAPSER,30/01/2023 00:00,26/02/2023 00:00,P11-2023
P&V,"ASSET PROTECTION, MAINT, DEVEL",CAPITAL EXPENDITURE,CAPITAL EXPENDITURE,4990,CAPSER,21/02/2023 00:00,271129,490,MO0041,CAPSER,30/01/2023 00:00,26/02/2023 00:00,P11-2023
P&V,"ASSET PROTECTION, MAINT, DEVEL",CAPITAL EXPENDITURE,CAPITAL EXPENDITURE,4990,CAPSER,21/02/2023 00:00,271129,500,MO0041,CAPSER,30/01/2023 00:00,26/02/2023 00:00,P11-2023
P&V,"ASSET PROTECTION, MAINT, DEVEL",CAPITAL EXPENDITURE,CAPITAL EXPENDITURE,4990,P120797-SERVICE-DW - To cut down and remove from site two row,21/02/2023 00:00,271129,990,MO0041,CAPSER,30/01/2023 00:00,26/02/2023 00:00,P11-2023
P&V,"ASSET PROTECTION, MAINT, DEVEL",CAPITAL EXPENDITURE,CAPITAL EXPENDITURE,4990,CAPSER,21/02/2023 00:00,271130,-850,MO0041,CAPSER,30/01/2023 00:00,26/02/2023 00:00,P11-2023
P&V,"ASSET PROTECTION, MAINT, DEVEL",CAPITAL EXPENDITURE,CAPITAL EXPENDITURE,4990,CAPSER,21/02/2023 00:00,271130,600,MO0041,CAPSER,30/01/2023 00:00,26/02/2023 00:00,P11-2023
P&V,"ASSET PROTECTION, MAINT, DEVEL",CAPITAL EXPENDITURE,CAPITAL EXPENDITURE,4990,CAPSER,21/02/2023 00:00,271130,250,MO0041,CAPSER,30/01/2023 00:00,26/02/2023 00:00,P11-2023
P&V,"ASSET PROTECTION, MAINT, DEVEL",CAPITAL EXPENDITURE,CAPITAL EXPENDITURE,4990,P120798-SERVICE-DW - To take down and reposition existing  5,21/02/2023 00:00,271130,850,MO0041,CAPSER,30/01/2023 00:00,26/02/2023 00:00,P11-2023
P&V,"ASSET PROTECTION, MAINT, DEVEL",CAPITAL EXPENDITURE,CAPITAL EXPENDITURE,4990,KENDALL & SONS LIMITED,26/02/2023 00:00,271131,1012,KE0023,KENDALL & SONS LIMITED,30/01/2023 00:00,26/02/2023 00:00,P11-2023
P&V,"ASSET PROTECTION, MAINT, DEVEL",CAPITAL EXPENDITURE,CAPITAL EXPENDITURE,4990,KENDALL & SONS LIMITED,26/02/2023 00:00,271131,3243,KE0023,KENDALL & SONS LIMITED,30/01/2023 00:00,26/02/2023 00:00,P11-2023
P&V,"ASSET PROTECTION, MAINT, DEVEL",CAPITAL EXPENDITURE,CAPITAL EXPENDITURE,4990,P120232-SERVICE-To carry out repairs to bridge no 89 handrail,26/02/2023 00:00,271131,4255,KE0023,KENDALL & SONS LIMITED,30/01/2023 00:00,26/02/2023 00:00,P11-2023
P&V,"ASSET PROTECTION, MAINT, DEVEL",CAPITAL EXPENDITURE,CAPITAL EXPENDITURE,4990,KENDALL & SONS LIMITED,26/02/2023 00:00,271131,-4255,KE0023,KENDALL & SONS LIMITED,30/01/2023 00:00,26/02/2023 00:00,P11-2023
P&V,"ASSET PROTECTION, MAINT, DEVEL",CAPITAL EXPENDITURE,CAPITAL EXPENDITURE,4990,P121030-SERVICE-Call out to chill out room -remove broken doo,26/02/2023 00:00,271132,340,KE0023,KENDALL & SONS LIMITED,30/01/2023 00:00,26/02/2023 00:00,P11-2023
P&V,"ASSET PROTECTION, MAINT, DEVEL",CAPITAL EXPENDITURE,CAPITAL EXPENDITURE,4990,P120943-SERVICE-Air Test -Springfield Marina Workshop,21/02/2023 00:00,271327,250,LI0432,LIFE ENVIRONMENTAL SERVICES LTD,30/01/2023 00:00,26/02/2023 00:00,P11-2023
P&V,"ASSET PROTECTION, MAINT, DEVEL",CAPITAL EXPENDITURE,CAPITAL EXPENDITURE,4990,P120129-SERVICE-LVWWC Expansion of Conference room,26/02/2023 00:00,271340,62739.23,CA0508,CARMELCREST LTD,30/01/2023 00:00,26/02/2023 00:00,P11-2023
P&V,"ASSET PROTECTION, MAINT, DEVEL",CAPITAL EXPENDITURE,CAPITAL EXPENDITURE,4990,P120892-SERVICE-DW - Remove the double garage roof all approx,26/02/2023 00:00,271368,900,LI0432,LIFE ENVIRONMENTAL SERVICES LTD,30/01/2023 00:00,26/02/2023 00:00,P11-2023
P&V,"ASSET PROTECTION, MAINT, DEVEL",CAPITAL EXPENDITURE,CAPITAL EXPENDITURE,4990,P120892-SERVICE-Additional cahrge attended on Saturday,26/02/2023 00:00,271368,250,LI0432,LIFE ENVIRONMENTAL SERVICES LTD,30/01/2023 00:00,26/02/2023 00:00,P11-2023
P&V,"ASSET PROTECTION, MAINT, DEVEL",CAPITAL EXPENDITURE,CAPITAL EXPENDITURE,4990,P119560-SERVICE-Replace Sounder/Beacons at White Water Centre,26/02/2023 00:00,271379,1040.2,AD0015,ADT FIRE & SECURITY PLC,30/01/2023 00:00,26/02/2023 00:00,P11-2023
P&V,"ASSET PROTECTION, MAINT, DEVEL",CAPITAL EXPENDITURE,CAPITAL EXPENDITURE,4990,P120944-SERVICE-DW Field distribution board,26/02/2023 00:00,271575,1120,BR0018,BRADSHAW ELECTRICAL LIMITED,30/01/2023 00:00,26/02/2023 00:00,P11-2023
P&V,"ASSET PROTECTION, MAINT, DEVEL",CAPITAL EXPENDITURE,CAPITAL EXPENDITURE,4990,P119971-SERVICE-Feeder Pillar Upgrade at Springfield Marina,26/02/2023 00:00,271578,245,BR0018,BRADSHAW ELECTRICAL LIMITED,30/01/2023 00:00,26/02/2023 00:00,P11-2023
P&V,"ASSET PROTECTION, MAINT, DEVEL",CAPITAL EXPENDITURE,CAPITAL EXPENDITURE,4990,P119971-SERVICE-Feeder Pillar Upgrade at Springfield Marina,26/02/2023 00:00,271578,16670,BR0018,BRADSHAW ELECTRICAL LIMITED,30/01/2023 00:00,26/02/2023 00:00,P11-2023
P&V,"ASSET PROTECTION, MAINT, DEVEL",CAPITAL EXPENDITURE,CAPITAL EXPENDITURE,4990,P120794-SERVICE-Emergency roof Repairs to WWC main building r,26/02/2023 00:00,271586,1750,FI0249,FIELD & CO ROOFING LTD,30/01/2023 00:00,26/02/2023 00:00,P11-2023
P&V,"ASSET PROTECTION, MAINT, DEVEL",CAPITAL EXPENDITURE,CAPITAL EXPENDITURE,4990,P120988-SERVICE-Roof Repair at Myddelton Main House,26/02/2023 00:00,271599,580,FI0249,FIELD & CO ROOFING LTD,30/01/2023 00:00,26/02/2023 00:00,P11-2023
P&V,"ASSET PROTECTION, MAINT, DEVEL",CAPITAL EXPENDITURE,CAPITAL EXPENDITURE,4990,P120987-SERVICE-Roof Repair at Gate Lodge at Myddelton House,26/02/2023 00:00,271600,260,FI0249,FIELD & CO ROOFING LTD,30/01/2023 00:00,26/02/2023 00:00,P11-2023
R&B,INFORMATION TECHNOLOGY,CAPITAL EXPENDITURE,CAPITAL EXPENDITURE,4990,P120667-SERVICE-Yealink meeting kit,14/02/2023 00:00,270622,1260.99,ON0137,ONEDIRECT LTD,30/01/2023 00:00,26/02/2023 00:00,P11-2023
R&B,INFORMATION TECHNOLOGY,CAPITAL EXPENDITURE,CAPITAL EXPENDITURE,4990,"P120746-SERVICE-Yealink VCM34 169.99, plus warranty 6.71",14/02/2023 00:00,270798,176.7,ON0137,ONEDIRECT LTD,30/01/2023 00:00,26/02/2023 00:00,P11-2023
R&B,INFORMATION TECHNOLOGY,CAPITAL EXPENDITURE,CAPITAL EXPENDITURE,4990,P118194-SERVICE-Finance System Upgrade - Implementation proje,07/02/2023 00:00,270883,15315.38,CE0021,ADVANCED BUSINESS SOLUTIONS,30/01/2023 00:00,26/02/2023 00:00,P11-2023
R&B,INFORMATION TECHNOLOGY,CAPITAL EXPENDITURE,CAPITAL EXPENDITURE,4990,P117357-SERVICE-Survey & Network Design for Dobbs Weir,21/02/2023 00:00,271202,1950,RE0354,RENOVOTEC LTD,30/01/2023 00:00,26/02/2023 00:00,P11-2023
R&B,INFORMATION TECHNOLOGY,CAPITAL EXPENDITURE,CAPITAL EXPENDITURE,4990,P120973-SERVICE-Dobbs Weir Public WiFi Hardware,26/02/2023 00:00,271203,9624.88,RE0354,RENOVOTEC LTD,30/01/2023 00:00,26/02/2023 00:00,P11-2023
R&B,INFORMATION TECHNOLOGY,CAPITAL EXPENDITURE,CAPITAL EXPENDITURE,4990,P117358-SERVICE-Public WiFi Install for Dobbs Weir,21/02/2023 00:00,271204,7637.5,RE0354,RENOVOTEC LTD,30/01/2023 00:00,26/02/2023 00:00,P11-2023
R&B,INFORMATION TECHNOLOGY,CAPITAL EXPENDITURE,CAPITAL EXPENDITURE,4990,P120743-SERVICE-Service Desk Entity (8 Hours) - 1 Year,21/02/2023 00:00,271205,1223.84,RE0354,RENOVOTEC LTD,30/01/2023 00:00,26/02/2023 00:00,P11-2023
R&B,INFORMATION TECHNOLOGY,CAPITAL EXPENDITURE,CAPITAL EXPENDITURE,4990,P120743-SERVICE-CloudRuckus SmartZone - 1AP - 1 Year,21/02/2023 00:00,271206,650,RE0354,RENOVOTEC LTD,30/01/2023 00:00,26/02/2023 00:00,P11-2023
R&B,INFORMATION TECHNOLOGY,CAPITAL EXPENDITURE,CAPITAL EXPENDITURE,4990,P120686-SERVICE-Dobbs Weir - Out of Orginal Scope Materials,21/02/2023 00:00,271207,2916.79,RE0354,RENOVOTEC LTD,30/01/2023 00:00,26/02/2023 00:00,P11-2023
R&B,INFORMATION TECHNOLOGY,CAPITAL EXPENDITURE,CAPITAL EXPENDITURE,4990,P120686-SERVICE-Dobbs Weir - Out of Orginal Scope Materials,21/02/2023 00:00,271208,1300,RE0354,RENOVOTEC LTD,30/01/2023 00:00,26/02/2023 00:00,P11-2023
R&B,INFORMATION TECHNOLOGY,CAPITAL EXPENDITURE,CAPITAL EXPENDITURE,4990,P120686-SERVICE-CloudRuckus SmartZone Cloud,21/02/2023 00:00,271209,300,RE0354,RENOVOTEC LTD,30/01/2023 00:00,26/02/2023 00:00,P11-2023
R&B,INFORMATION TECHNOLOGY,CAPITAL EXPENDITURE,CAPITAL EXPENDITURE,4990,P117357-SERVICE-Survey & Network Design Sewardestone,26/02/2023 00:00,271350,1950,RE0354,RENOVOTEC LTD,30/01/2023 00:00,26/02/2023 00:00,P11-2023
R&B,INFORMATION TECHNOLOGY,CAPITAL EXPENDITURE,CAPITAL EXPENDITURE,4990,P120991-SERVICE-EssCable LC-LC 2m Multimode Duplex LSZH Fibre,26/02/2023 00:00,271494,18.42,BR0650,BROADBANDBUYER.COM,30/01/2023 00:00,26/02/2023 00:00,P11-2023
R&B,INFORMATION TECHNOLOGY,CAPITAL EXPENDITURE,CAPITAL EXPENDITURE,4990,P120991-SERVICE-EssCable LC-LC 1m Mulitimode Duplex LSZH Fibr,26/02/2023 00:00,271494,15.36,BR0650,BROADBANDBUYER.COM,30/01/2023 00:00,26/02/2023 00:00,P11-2023
R&B,INFORMATION TECHNOLOGY,CAPITAL EXPENDITURE,CAPITAL EXPENDITURE,4990,P120991-SERVICE-Delivery,26/02/2023 00:00,271494,3.5,BR0650,BROADBANDBUYER.COM,30/01/2023 00:00,26/02/2023 00:00,P11-2023
R&B,INFORMATION TECHNOLOGY,CAPITAL EXPENDITURE,CAPITAL EXPENDITURE,4990,P120991-SERVICE-Netgear GS728TPv2 24 Port Smart Managed Rackm,26/02/2023 00:00,271502,273.33,BR0650,BROADBANDBUYER.COM,30/01/2023 00:00,26/02/2023 00:00,P11-2023
,LEE VALLEY CAMPSITE,CAPITAL EXPENDITURE,CAPITAL EXPENDITURE,4990,P120957-SERVICE-dishwasher,21/02/2023 00:00,271332,292.5,AO0495,AO RETAIL LIMITED - B2B,30/01/2023 00:00,26/02/2023 00:00,P11-2023
,LEE VALLEY CAMPSITE,CAPITAL EXPENDITURE,CAPITAL EXPENDITURE,4990,P120957-SERVICE-delivery,21/02/2023 00:00,271332,16.67,AO0495,AO RETAIL LIMITED - B2B,30/01/2023 00:00,26/02/2023 00:00,P11-2023
,LEE VALLEY CAMPSITE,CAPITAL EXPENDITURE,CAPITAL EXPENDITURE,4990,P120957-SERVICE-vat,21/02/2023 00:00,271332,286.82,AO0495,AO RETAIL LIMITED - B2B,30/01/2023 00:00,26/02/2023 00:00,P11-2023
,LEE VALLEY CAMPSITE,CAPITAL EXPENDITURE,CAPITAL EXPENDITURE,4990,P120957-SERVICE-washer dryer,21/02/2023 00:00,271332,524.17,AO0495,AO RETAIL LIMITED - B2B,30/01/2023 00:00,26/02/2023 00:00,P11-2023
,LEE VALLEY CAMPSITE,CAPITAL EXPENDITURE,CAPITAL EXPENDITURE,4990,P120957-SERVICE-microwave,21/02/2023 00:00,271332,324.17,AO0495,AO RETAIL LIMITED - B2B,30/01/2023 00:00,26/02/2023 00:00,P11-2023
,LEE VALLEY CAMPSITE,CAPITAL EXPENDITURE,CAPITAL EXPENDITURE,4990,P120957-SERVICE-under counter freezer,21/02/2023 00:00,271332,276.67,AO0495,AO RETAIL LIMITED - B2B,30/01/2023 00:00,26/02/2023 00:00,P11-2023
,LEE VALLEY CARAVAN PARK,CAPITAL EXPENDITURE,CAPITAL EXPENDITURE,4990,P120481-SERVICE-Dobbs Weir Fibre & Data works.,14/02/2023 00:00,270796,6320,DE0318,DESIGN AND MANAGEMENT SYSTEMS LTD,30/01/2023 00:00,26/02/2023 00:00,P11-2023
P&V,EAST INDIA DOCK AND BOW CREEK,CAPITAL EXPENDITURE,CAPITAL EXPENDITURE,4990,P117437-SERVICE-East India Dock Basin Works,26/02/2023 00:00,271493,3800,HA0116,HASKONING UK LTD,30/01/2023 00:00,26/02/2023 00:00,P11-2023
P&V,NORTH AREA RANGERS,CAPITAL EXPENDITURE,CAPITAL EXPENDITURE,4990,P118501-SERVICE-PEA for St Paul's Field,26/02/2023 00:00,271513,2230,TE0626,TEMPLE GROUP LTD,30/01/2023 00:00,26/02/2023 00:00,P11-2023
P&V,BIODIVERSITY ACTION PLAN,CAPITAL EXPENDITURE,CAPITAL EXPENDITURE,4990,P120720-SERVICE-3x Energizer Ultimate Lithium AA x10 pack (wi,06/02/2023 00:00,270785,37.48,NA0230,NATURESPY,30/01/2023 00:00,26/02/2023 00:00,P11-2023
P&V,BIODIVERSITY ACTION PLAN,CAPITAL EXPENDITURE,CAPITAL EXPENDITURE,4990,P120720-SERVICE-3x Browning HP5 Security Box,06/02/2023 00:00,270785,87.47,NA0230,NATURESPY,30/01/2023 00:00,26/02/2023 00:00,P11-2023
P&V,BIODIVERSITY ACTION PLAN,CAPITAL EXPENDITURE,CAPITAL EXPENDITURE,4990,P120720-SERVICE-DPD next day delivery to Myddelton House,06/02/2023 00:00,270785,4.96,NA0230,NATURESPY,30/01/2023 00:00,26/02/2023 00:00,P11-2023
P&V,BIODIVERSITY ACTION PLAN,CAPITAL EXPENDITURE,CAPITAL EXPENDITURE,4990,P120720-SERVICE-3x Masterlock 8mm Python Cable Lock (Keyed Al,06/02/2023 00:00,270785,64.97,NA0230,NATURESPY,30/01/2023 00:00,26/02/2023 00:00,P11-2023
P&V,BIODIVERSITY ACTION PLAN,CAPITAL EXPENDITURE,CAPITAL EXPENDITURE,4990,P120720-SERVICE-3x 32GB SanDisk Ultra Class 10 Cards (additio,06/02/2023 00:00,270785,20,NA0230,NATURESPY,30/01/2023 00:00,26/02/2023 00:00,P11-2023
P&V,BIODIVERSITY ACTION PLAN,CAPITAL EXPENDITURE,CAPITAL EXPENDITURE,4990,P120720-SERVICE-3x Browning Spec Ops Elite HP5 with Standard,06/02/2023 00:00,270785,499.97,NA0230,NATURESPY,30/01/2023 00:00,26/02/2023 00:00,P11-2023
P&V,BIODIVERSITY ACTION PLAN,CAPITAL EXPENDITURE,CAPITAL EXPENDITURE,4990,P120720-SERVICE-3x Energizer Ultimate Lithium AA x10 pack (ad,06/02/2023 00:00,270785,39.98,NA0230,NATURESPY,30/01/2023 00:00,26/02/2023 00:00,P11-2023
P&V,BIODIVERSITY ACTION PLAN,CAPITAL EXPENDITURE,CAPITAL EXPENDITURE,4990,P120717-SERVICE-Clear Bramble at Lee Park Way,21/02/2023 00:00,271289,940,JO0019,R G JOYCE,30/01/2023 00:00,26/02/2023 00:00,P11-2023
P&V,BIODIVERSITY ACTION PLAN,CAPITAL EXPENDITURE,CAPITAL EXPENDITURE,4990,P117392-SERVICE-Showground Survey,26/02/2023 00:00,271500,12525,TE0626,TEMPLE GROUP LTD,30/01/2023 00:00,26/02/2023 00:00,P11-2023
P&V,BIODIVERSITY ACTION PLAN,CAPITAL EXPENDITURE,CAPITAL EXPENDITURE,4990,P118412-SERVICE-River Corridor Survey Along the Small River L,26/02/2023 00:00,271504,6255,TE0626,TEMPLE GROUP LTD,30/01/2023 00:00,26/02/2023 00:00,P11-2023
,LEE VALLEY ICE CENTRE,CAPITAL EXPENDITURE,CAPITAL EXPENDITURE,4990,P120716-SERVICE-New Gates at LVIC for access to LVM -  Quote,06/02/2023 00:00,270769,8649.5,DE0013,DENNIS SECURITY CENTRE,30/01/2023 00:00,26/02/2023 00:00,P11-2023
,LEE VALLEY ICE CENTRE,CAPITAL EXPENDITURE,CAPITAL EXPENDITURE,4990,P120782-SERVICE-Monthly projected work as per interim certifi,09/02/2023 00:00,270882,1105897.41,BU0634,BUCKINGHAM GROUP CONTRACTING LIMITED,30/01/2023 00:00,26/02/2023 00:00,P11-2023
,LEE VALLEY ICE CENTRE,CAPITAL EXPENDITURE,CAPITAL EXPENDITURE,4990,P121032-SERVICE-project management January 2023,26/02/2023 00:00,270910,42826,WR0199,WRENBRIDGE LAND LTD,30/01/2023 00:00,26/02/2023 00:00,P11-2023
P&V,"ASSET PROTECTION, MAINT, DEVEL",THIRD PARTY PAYMENTS,EVENTS,5101,P120951-SERVICE-WWC start ramp,26/02/2023 00:00,271364,950,AN0029,ANDRIS BERZINS + ASSOCIATES,30/01/2023 00:00,26/02/2023 00:00,P11-2023
P&V,"ASSET PROTECTION, MAINT, DEVEL",THIRD PARTY PAYMENTS,EVENTS,5101,P120950-SERVICE-Additional time spent on WWC ramp drawings,26/02/2023 00:00,271365,700,AN0029,ANDRIS BERZINS + ASSOCIATES,30/01/2023 00:00,26/02/2023 00:00,P11-2023
P&V,EVENTS MANAGEMENT (PR),THIRD PARTY PAYMENTS,EVENTS,5101,P120863-SERVICE-1 x section behind fence on slope to bridge o,26/02/2023 00:00,271587,820,VE0004,PRINCIPAL TREES LTD,30/01/2023 00:00,26/02/2023 00:00,P11-2023
P&V,EVENTS MANAGEMENT (PR),THIRD PARTY PAYMENTS,MAJOR EVENTS (EXPENDITURE),5102,P120356-SERVICE-VeloPark repair of damaged blue netting,14/02/2023 00:00,271001,2125,ST0483,STAN LIMITED,30/01/2023 00:00,26/02/2023 00:00,P11-2023
P&V,EVENTS MANAGEMENT (PR),THIRD PARTY PAYMENTS,MAJOR EVENTS (EXPENDITURE),5102,P119555-SERVICE-Overnight Security for the Track Champions Le,26/02/2023 00:00,271505,206.89,WI0227,WISE SECURITY SERVICES,30/01/2023 00:00,26/02/2023 00:00,P11-2023
P&V,EVENTS MANAGEMENT (PR),THIRD PARTY PAYMENTS,MAJOR EVENTS (EXPENDITURE),5102,P120313-SERVICE-TCL - Car park compound additional cover,26/02/2023 00:00,271506,396,WI0227,WISE SECURITY SERVICES,30/01/2023 00:00,26/02/2023 00:00,P11-2023
CEO,PR/COMMUNICATIONS,THIRD PARTY PAYMENTS,CONSULTANTS (GENERAL),5110,P119606-SERVICE-Additional Comms support provided - paid on P,21/02/2023 00:00,271175,846.25,LO0024,LONDON COMMUNICATIONS AGENCY LTD,30/01/2023 00:00,26/02/2023 00:00,P11-2023
P&V,"ASSET PROTECTION, MAINT, DEVEL",THIRD PARTY PAYMENTS,CONSULTANTS (GENERAL),5110,P116883-SERVICE-WWC Conference Rms Fees,21/02/2023 00:00,271286,4300,CO0748,COOPER ASSOCIATES,30/01/2023 00:00,26/02/2023 00:00,P11-2023
R&B,FINANCE & RESOURCES MANAGEMENT,THIRD PARTY PAYMENTS,CONSULTANTS (GENERAL),5110,P120850-SERVICE-Finance and accountancy support 2022/23,08/02/2023 00:00,270971,33600,EN0035,LONDON BOROUGH OF ENFIELD,30/01/2023 00:00,26/02/2023 00:00,P11-2023
R&B,INTERNAL AUDIT/HEALTH & SAFETY,THIRD PARTY PAYMENTS,CONSULTANTS (GENERAL),5110,P120955-SERVICE-Audit days,21/02/2023 00:00,271312,1134,CR0543,CROYDON CORPORATE DEBT RECOVERY SERVICE,30/01/2023 00:00,26/02/2023 00:00,P11-2023
R&B,INTERNAL AUDIT/HEALTH & SAFETY,THIRD PARTY PAYMENTS,CONSULTANTS (GENERAL),5110,P121029-SERVICE-IA Plan 22/23 Audit Management,26/02/2023 00:00,271377,8127,CR0543,CROYDON CORPORATE DEBT RECOVERY SERVICE,30/01/2023 00:00,26/02/2023 00:00,P11-2023
CEO,LEGAL SERVICES,THIRD PARTY PAYMENTS,CONSULTANTS (GENERAL),5110,P120776-SERVICE-GLL Advice,06/02/2023 00:00,270885,1477.4,WO0344,WOMBLE BOND DICKINSON (UK) LLP,30/01/2023 00:00,26/02/2023 00:00,P11-2023
CEO,LEGAL SERVICES,THIRD PARTY PAYMENTS,CONSULTANTS (GENERAL),5110,WOMBLE BOND DICKINSON (UK) LLP,21/02/2023 00:00,271318,-2184.2,WO0344,WOMBLE BOND DICKINSON (UK) LLP,30/01/2023 00:00,26/02/2023 00:00,P11-2023
CEO,LEGAL SERVICES,THIRD PARTY PAYMENTS,CONSULTANTS (GENERAL),5110,WOMBLE BOND DICKINSON (UK) LLP,21/02/2023 00:00,271318,2285.45,WO0344,WOMBLE BOND DICKINSON (UK) LLP,30/01/2023 00:00,26/02/2023 00:00,P11-2023
CEO,LEGAL SERVICES,THIRD PARTY PAYMENTS,CONSULTANTS (GENERAL),5110,"P120668-SERVICE-Unlawful Access at Sunnyside, Cathagena",21/02/2023 00:00,271318,-2285.45,WO0344,WOMBLE BOND DICKINSON (UK) LLP,30/01/2023 00:00,26/02/2023 00:00,P11-2023
CEO,LEGAL SERVICES,THIRD PARTY PAYMENTS,CONSULTANTS (GENERAL),5110,WOMBLE BOND DICKINSON (UK) LLP,21/02/2023 00:00,271318,-101.25,WO0344,WOMBLE BOND DICKINSON (UK) LLP,30/01/2023 00:00,26/02/2023 00:00,P11-2023
P&V,SPORT AND LEISURE,THIRD PARTY PAYMENTS,CONSULTANTS (HEALTH & SAFETY),5123,P119861-SERVICE-Annual Health and Safety contract Yr1,26/02/2023 00:00,271508,11458.33,RI0053,RIGHT DIRECTIONS (MANAGEMENT) LTD,30/01/2023 00:00,26/02/2023 00:00,P11-2023
P&V,SPORTS DEVELOPMENT GRANTS & AG,THIRD PARTY PAYMENTS,CONTRIBUTIONS/GRANTS MADE,5140,P120400-SERVICE-Active Communities Grant,06/02/2023 00:00,270898,2229,GR0097,GREENWICH LEISURE LTD,30/01/2023 00:00,26/02/2023 00:00,P11-2023
R&B,BALANCE SHEET (AUTHORITY),CREDITORS,EMPLOYEES INCOME TAX,6701,PAYE,14/02/2023 00:00,270985,54806.11,HM0368,HMRC,30/01/2023 00:00,26/02/2023 00:00,P11-2023
R&B,BALANCE SHEET (AUTHORITY),CREDITORS,EMPLOYEES NATIONAL INSURANCE,6702,PAYE,14/02/2023 00:00,270985,26135.4,HM0368,HMRC,30/01/2023 00:00,26/02/2023 00:00,P11-2023
R&B,BALANCE SHEET (AUTHORITY),CREDITORS,EMPLOYERS NATIONAL INSURANCE,6704,PAYE,14/02/2023 00:00,270985,41007.64,HM0368,HMRC,30/01/2023 00:00,26/02/2023 00:00,P11-2023
R&B,BALANCE SHEET (AUTHORITY),CREDITORS,EMPLOYEES PENSION LGPS,6706,AVC CONTRIBUTION,14/02/2023 00:00,270983,125,LO0455,LOCAL GOVERNMENT AVC DEPARTMENT,30/01/2023 00:00,26/02/2023 00:00,P11-2023
R&B,BALANCE SHEET (AUTHORITY),CREDITORS,EMPLOYEES PENSION LGPS,6706,EMPLOYEES CONTRIBUTIONS,14/02/2023 00:00,270984,26576.58,LO0334,LONDON PENSION FUND OPERATIONAL ACCOUNT,30/01/2023 00:00,26/02/2023 00:00,P11-2023
R&B,BALANCE SHEET (AUTHORITY),CREDITORS,EMPLOYERS PENSION LGPS,6707,EMPLOYER CONTRIBUTIONS,14/02/2023 00:00,270984,56511.73,LO0334,LONDON PENSION FUND OPERATIONAL ACCOUNT,30/01/2023 00:00,26/02/2023 00:00,P11-2023
R&B,BALANCE SHEET (AUTHORITY),CREDITORS,EMPLOYEES STUDENT LOANS,6709,PAYE,14/02/2023 00:00,270985,1044,HM0368,HMRC,30/01/2023 00:00,26/02/2023 00:00,P11-2023
R&B,BALANCE SHEET (AUTHORITY),CREDITORS,EMPLOYEES AEO/DEO,6710,JG208689B,14/02/2023 00:00,270986,418.85,DE0325,DEPARTMENT FOR WORKS AND PENSIONS,30/01/2023 00:00,26/02/2023 00:00,P11-2023
R&B,BALANCE SHEET (AUTHORITY),CREDITORS,EMPLOYEES UNION SUBSCRIPTIONS,6711,MEMBERSHIP FEES,14/02/2023 00:00,270982,57,UN0002,UNISON Greater London Region,30/01/2023 00:00,26/02/2023 00:00,P11-2023
R&B,BALANCE SHEET (AUTHORITY),CREDITORS,CONSTRUCTION INDUSTRY SCHEME,6721,KENDALL & SONS LIMITED,01/02/2023 00:00,270856,-175.2,KE0023,KENDALL & SONS LIMITED,30/01/2023 00:00,26/02/2023 00:00,P11-2023
R&B,BALANCE SHEET (AUTHORITY),CREDITORS,CONSTRUCTION INDUSTRY SCHEME,6721,JONES,14/02/2023 00:00,271171,126,IN0016,INLAND REVENUE ONLY 948/L1005,30/01/2023 00:00,26/02/2023 00:00,P11-2023
R&B,BALANCE SHEET (AUTHORITY),CREDITORS,CONSTRUCTION INDUSTRY SCHEME,6721,JOYCE,14/02/2023 00:00,271171,480,IN0016,INLAND REVENUE ONLY 948/L1005,30/01/2023 00:00,26/02/2023 00:00,P11-2023
R&B,BALANCE SHEET (AUTHORITY),CREDITORS,CONSTRUCTION INDUSTRY SCHEME,6721,KENDALLS,14/02/2023 00:00,271171,551,IN0016,INLAND REVENUE ONLY 948/L1005,30/01/2023 00:00,26/02/2023 00:00,P11-2023
R&B,BALANCE SHEET (AUTHORITY),CREDITORS,CONSTRUCTION INDUSTRY SCHEME,6721,CASPER,14/02/2023 00:00,271171,282,IN0016,INLAND REVENUE ONLY 948/L1005,30/01/2023 00:00,26/02/2023 00:00,P11-2023
R&B,BALANCE SHEET (AUTHORITY),CREDITORS,CONSTRUCTION INDUSTRY SCHEME,6721,R G JOYCE,15/02/2023 00:00,271248,-30,JO0019,R G JOYCE,30/01/2023 00:00,26/02/2023 00:00,P11-2023
R&B,BALANCE SHEET (AUTHORITY),CREDITORS,CONSTRUCTION INDUSTRY SCHEME,6721,R G JOYCE,22/02/2023 00:00,271444,-318,JO0019,R G JOYCE,30/01/2023 00:00,26/02/2023 00:00,P11-2023
R&B,BALANCE SHEET (AUTHORITY),CREDITORS,CONSTRUCTION INDUSTRY SCHEME,6721,CAPSER,22/02/2023 00:00,271453,-359,MO0041,CAPSER,30/01/2023 00:00,26/02/2023 00:00,P11-2023
P&V,CAR PARK INCOME,INCOME,CAR PARKING INCOME,9730,P120783-SERVICE-P&D Recharge GPP - Jan 2023,06/02/2023 00:00,270816,37.62,PA0372,PARKINGEYE LIMITED,30/01/2023 00:00,26/02/2023 00:00,P11-2023
P&V,CAR PARK INCOME,INCOME,CAR PARKING INCOME,9730,P120783-SERVICE-P&D Recharge Pindar - Jan 2023,06/02/2023 00:00,270816,19.92,PA0372,PARKINGEYE LIMITED,30/01/2023 00:00,26/02/2023 00:00,P11-2023
P&V,CAR PARK INCOME,INCOME,CAR PARKING INCOME,9730,P120783-SERVICE-P&D Recharge FG - Jan 2023,06/02/2023 00:00,270816,35.7,PA0372,PARKINGEYE LIMITED,30/01/2023 00:00,26/02/2023 00:00,P11-2023
P&V,CAR PARK INCOME,INCOME,CAR PARKING INCOME,9730,P120783-SERVICE-P&D Recharge CMM - Jan 2023,06/02/2023 00:00,270816,3.36,PA0372,PARKINGEYE LIMITED,30/01/2023 00:00,26/02/2023 00:00,P11-2023
P&V,CAR PARK INCOME,INCOME,CAR PARKING INCOME,9730,P120783-SERVICE-P&D Recharge CA110656 - Jan 2023,06/02/2023 00:00,270816,25.74,PA0372,PARKINGEYE LIMITED,30/01/2023 00:00,26/02/2023 00:00,P11-2023
P&V,CAR PARK INCOME,INCOME,CAR PARKING INCOME,9730,P120783-SERVICE-P&D Recharge WAG - Jan 2023,06/02/2023 00:00,270816,9.96,PA0372,PARKINGEYE LIMITED,30/01/2023 00:00,26/02/2023 00:00,P11-2023
P&V,CAR PARK INCOME,INCOME,CAR PARKING INCOME,9730,P120783-SERVICE-Paid Parking Tickets Used - Clayton- Jan 2023,06/02/2023 00:00,270887,0.08,PA0372,PARKINGEYE LIMITED,30/01/2023 00:00,26/02/2023 00:00,P11-2023
P&V,CAR PARK INCOME,INCOME,CAR PARKING INCOME,9730,P120783-SERVICE-Paid Parking Tickets Used - CMM - Jan 2023,06/02/2023 00:00,270887,0.34,PA0372,PARKINGEYE LIMITED,30/01/2023 00:00,26/02/2023 00:00,P11-2023
P&V,CAR PARK INCOME,INCOME,CAR PARKING INCOME,9730,P120783-SERVICE-Paid Parking Tickets Used - FG - Jan 2023,06/02/2023 00:00,270887,3.75,PA0372,PARKINGEYE LIMITED,30/01/2023 00:00,26/02/2023 00:00,P11-2023
P&V,CAR PARK INCOME,INCOME,CAR PARKING INCOME,9730,P120783-SERVICE-Paid Parking Tickets Used - GPP - Jan 2023,06/02/2023 00:00,270887,3.88,PA0372,PARKINGEYE LIMITED,30/01/2023 00:00,26/02/2023 00:00,P11-2023
P&V,CAR PARK INCOME,INCOME,CAR PARKING INCOME,9730,P120783-SERVICE-Paid Parking Tickets Used - WAG - Jan 2023,06/02/2023 00:00,270887,1.04,PA0372,PARKINGEYE LIMITED,30/01/2023 00:00,26/02/2023 00:00,P11-2023
P&V,CAR PARK INCOME,INCOME,CAR PARKING INCOME,9730,PARKINGEYE LIMITED,06/02/2023 00:00,270888,-52.27,PA0372,PARKINGEYE LIMITED,30/01/2023 00:00,26/02/2023 00:00,P11-2023
P&V,CAR PARK INCOME,INCOME,CAR PARKING INCOME,9730,PARKINGEYE LIMITED,06/02/2023 00:00,270889,-7,PA0372,PARKINGEYE LIMITED,30/01/2023 00:00,26/02/2023 00:00,P11-2023
P&V,CAR PARK INCOME,INCOME,CAR PARKING INCOME,9730,PARKINGEYE LIMITED,06/02/2023 00:00,270890,-32,PA0372,PARKINGEYE LIMITED,30/01/2023 00:00,26/02/2023 00:00,P11-2023
P&V,CAR PARK INCOME,INCOME,CAR PARKING INCOME,9730,PARKINGEYE LIMITED,06/02/2023 00:00,270891,-77.93,PA0372,PARKINGEYE LIMITED,30/01/2023 00:00,26/02/2023 00:00,P11-2023
P&V,CAR PARK INCOME,INCOME,CAR PARKING INCOME,9730,PARKINGEYE LIMITED,06/02/2023 00:00,270892,-74.13,PA0372,PARKINGEYE LIMITED,30/01/2023 00:00,26/02/2023 00:00,P11-2023
P&V,CAR PARK INCOME,INCOME,CAR PARKING INCOME,9730,PARKINGEYE LIMITED,06/02/2023 00:00,270893,-30.68,PA0372,PARKINGEYE LIMITED,30/01/2023 00:00,26/02/2023 00:00,P11-2023
P&V,CAR PARK INCOME,INCOME,CAR PARKING INCOME,9730,PARKINGEYE LIMITED,06/02/2023 00:00,270894,-34.04,PA0372,PARKINGEYE LIMITED,30/01/2023 00:00,26/02/2023 00:00,P11-2023
P&V,CAR PARK INCOME,INCOME,CAR PARKING INCOME,9730,PARKINGEYE LIMITED,06/02/2023 00:00,270906,-4159.46,PA0372,PARKINGEYE LIMITED,30/01/2023 00:00,26/02/2023 00:00,P11-2023
P&V,CAR PARK INCOME,INCOME,CAR PARKING INCOME,9730,PARKINGEYE LIMITED,06/02/2023 00:00,270906,309.43,PA0372,PARKINGEYE LIMITED,30/01/2023 00:00,26/02/2023 00:00,P11-2023
P&V,CAR PARK INCOME,INCOME,CAR PARKING INCOME,9730,PARKINGEYE LIMITED,20/02/2023 00:00,271328,-114.16,PA0372,PARKINGEYE LIMITED,30/01/2023 00:00,26/02/2023 00:00,P11-2023
P&V,SPORTS DEVELOPMENT GRANTS & AG,INCOME,OTHER INCOME,9950,P120399-SERVICE-2x Instalements LTA Open Court payments,06/02/2023 00:00,270899,2134,GR0097,GREENWICH LEISURE LTD,30/01/2023 00:00,26/02/2023 00:00,P11-2023
